Directorate,Department,Expenditure Type,Ref.Doc.1,Vendor Name,Expenditure Amount (exc VAT),Payment Date
Delivery Units,Assurance,Other Services,1028644802,WATES PROPERTY SERVICES LTD,522.00,04/09/2023
Delivery Units,Assurance,Audit Fee,1029155602,PRICEWATERHOUSE COOPERS,"5,000.00",22/09/2023
Delivery Units,Assurance,Professional Services,1029465102,CHARTERED INST. INTERNAL AUDITORS,"3,038.00",28/09/2023
Delivery Units,Assurance,Training,1029311602,LONDON BOROUGH OF BARKINGDAGEN,500.00,25/09/2023
Delivery Units,Assurance,Software Licences & Support,1012161403,EQUIFAX LTD,"8,975.00",11/09/2023
Delivery Units,Assurance,Software Licences & Support,1020063403,EQUIFAX LTD,"9,872.50",11/09/2023
Delivery Units,Assurance,Software Licences & Support,1028271303,EQUIFAX LTD,19.00,12/09/2023
Delivery Units,Assurance,Software Licences & Support,1028645601,EQUIFAX LTD,8.00,04/09/2023
Delivery Units,Assurance,Software Licences & Support,1028645802,EQUIFAX LTD,8.00,04/09/2023
Delivery Units,Assurance,Software Licences & Support,1028646102,EQUIFAX LTD,4.00,04/09/2023
Delivery Units,Assurance,Software Licences & Support,1028655501,EQUIFAX LTD,4.00,04/09/2023
Delivery Units,Strategy and Resources,Other Establishments - Third P,0080069560,GLA LEVIES,"50,633.80",07/09/2023
Delivery Units,Strategy and Resources,Other Establishments - Third P,0080069970,LEE VALLEY REGIONAL PARK AUTH.,"32,407.20",19/09/2023
Delivery Units,Strategy and Resources,Other Services,0080070181,North London Waste Authority ,"897,742.00",27/09/2023
Delivery Units,Customer and Place,Building Repairs & Maintenance,1028897501,THE BARNETGROUP LIMITED,"2,634.90",11/09/2023
Delivery Units,Customer and Place,Other Awards,1029154301,THE BARNETGROUP LIMITED,"-228,936.08",22/09/2023
Delivery Units,Customer and Place,Professional Services,1028597601,PeopleScout Limited,343.70,01/09/2023
Delivery Units,Customer and Place,Professional Services,1028656201,PeopleScout Limited,229.81,04/09/2023
Delivery Units,Customer and Place,Professional Services,1029150301,WSP UK LIMITED,"2,200.00",18/09/2023
Delivery Units,Customer and Place,Professional Services,1029309001,PeopleScout Limited,286.75,21/09/2023
Delivery Units,Customer and Place,Professional Services,1029464101,PeopleScout Limited,647.39,26/09/2023
Delivery Units,Customer and Place,Professional Services,1028812201,CAPITA BUSINESS SERVICES LTD,"6,599.64",07/09/2023
Delivery Units,Customer and Place,Professional Services,1029161001,CAPITA BUSINESS SERVICES LTD,"5,522.83",19/09/2023
Delivery Units,Childrens Service DSG,Education CFR Funding Advances,0050072109,DANEGROVE PRIMARY SCHOOL,"239,866.99",21/09/2023
Delivery Units,Customer and Place,Building Repairs & Maintenance,1025097903,Orion Building Engineering Services Ltd,613.35,05/09/2023
Delivery Units,Customer and Place,Building Repairs & Maintenance,1025098303,Orion Building Engineering Services Ltd,90.00,05/09/2023
Delivery Units,Customer and Place,Building Repairs & Maintenance,1025250604,RGE SERVICES,"1,727.00",13/09/2023
Delivery Units,Customer and Place,Building Repairs & Maintenance,1026351001,WSP (Real Estate and,"5,532.50",19/09/2023
Delivery Units,Customer and Place,Building Repairs & Maintenance,1027644503,Sureserve Fire & Electrical Ltd,36.00,29/09/2023
Delivery Units,Customer and Place,Building Repairs & Maintenance,1027645303,Sureserve Fire & Electrical Ltd,36.00,29/09/2023
Delivery Units,Customer and Place,Building Repairs & Maintenance,1027646203,Sureserve Fire & Electrical Ltd,36.00,29/09/2023
Delivery Units,Customer and Place,Building Repairs & Maintenance,1027646503,Sureserve Fire & Electrical Ltd,79.20,29/09/2023
Delivery Units,Customer and Place,Building Repairs & Maintenance,1027648503,Integrated Water Services Ltd,126.00,25/09/2023
Delivery Units,Customer and Place,Building Repairs & Maintenance,1027649303,Integrated Water Services Ltd,117.20,25/09/2023
Delivery Units,Customer and Place,Building Repairs & Maintenance,1027649603,Integrated Water Services Ltd,127.20,25/09/2023
Delivery Units,Customer and Place,Building Repairs & Maintenance,1027649803,Integrated Water Services Ltd,117.20,25/09/2023
Delivery Units,Customer and Place,Building Repairs & Maintenance,1027650003,Integrated Water Services Ltd,117.20,25/09/2023
Delivery Units,Customer and Place,Building Repairs & Maintenance,1027650203,Integrated Water Services Ltd,117.20,25/09/2023
Delivery Units,Customer and Place,Building Repairs & Maintenance,1027737203,Integrated Water Services Ltd,589.44,25/09/2023
Delivery Units,Customer and Place,Building Repairs & Maintenance,1028000003,Integrated Water Services Ltd,450.00,25/09/2023
Delivery Units,Customer and Place,Building Repairs & Maintenance,1028044503,RGE SERVICES,"13,696.00",11/09/2023
Delivery Units,Customer and Place,Building Repairs & Maintenance,1028090702,Integrated Water Services Ltd,192.00,01/09/2023
Delivery Units,Customer and Place,Building Repairs & Maintenance,1028091802,Integrated Water Services Ltd,148.40,01/09/2023
Delivery Units,Customer and Place,Building Repairs & Maintenance,1028092603,Integrated Water Services Ltd,200.00,25/09/2023
Delivery Units,Customer and Place,Building Repairs & Maintenance,1028093003,Integrated Water Services Ltd,192.00,25/09/2023
Delivery Units,Customer and Place,Building Repairs & Maintenance,1028093503,Elite Entrance Systems Ltd,"3,074.28",22/09/2023
Delivery Units,Customer and Place,Building Repairs & Maintenance,1028094203,Elite Entrance Systems Ltd,"14,600.00",22/09/2023
Delivery Units,Customer and Place,Building Repairs & Maintenance,1028095703,Elite Entrance Systems Ltd,"1,230.00",22/09/2023
Delivery Units,Customer and Place,Building Repairs & Maintenance,1028102203,Integrated Water Services Ltd,110.00,25/09/2023
Delivery Units,Customer and Place,Building Repairs & Maintenance,1028102303,Integrated Water Services Ltd,667.80,25/09/2023
Delivery Units,Customer and Place,Building Repairs & Maintenance,1028102903,Integrated Water Services Ltd,86.57,25/09/2023
Delivery Units,Customer and Place,Building Repairs & Maintenance,1028219403,Integrated Water Services Ltd,445.20,25/09/2023
Delivery Units,Customer and Place,Building Repairs & Maintenance,1028220003,Integrated Water Services Ltd,"1,018.00",25/09/2023
Delivery Units,Customer and Place,Building Repairs & Maintenance,1028220803,Integrated Water Services Ltd,148.40,25/09/2023
Delivery Units,Customer and Place,Building Repairs & Maintenance,1028221704,Integrated Water Services Ltd,450.00,25/09/2023
Delivery Units,Customer and Place,Building Repairs & Maintenance,1028222303,Integrated Water Services Ltd,350.00,25/09/2023
Delivery Units,Customer and Place,Building Repairs & Maintenance,1028407904,Integrated Water Services Ltd,158.33,25/09/2023
Delivery Units,Customer and Place,Building Repairs & Maintenance,1028410103,Integrated Water Services Ltd,221.05,25/09/2023
Delivery Units,Customer and Place,Building Repairs & Maintenance,1028410603,Integrated Water Services Ltd,73.68,25/09/2023
Delivery Units,Customer and Place,Building Repairs & Maintenance,1028411602,Integrated Water Services Ltd,294.72,01/09/2023
Delivery Units,Customer and Place,Building Repairs & Maintenance,1028411902,Integrated Water Services Ltd,500.00,01/09/2023
Delivery Units,Customer and Place,Building Repairs & Maintenance,1028412002,Integrated Water Services Ltd,450.00,01/09/2023
Delivery Units,Customer and Place,Building Repairs & Maintenance,1028412102,Integrated Water Services Ltd,450.00,01/09/2023
Delivery Units,Customer and Place,Building Repairs & Maintenance,1028412303,Integrated Water Services Ltd,192.00,26/09/2023
Delivery Units,Customer and Place,Building Repairs & Maintenance,1028412403,Integrated Water Services Ltd,450.00,25/09/2023
Delivery Units,Customer and Place,Building Repairs & Maintenance,1028552403,Integrated Water Services Ltd,"2,038.84",25/09/2023
Delivery Units,Customer and Place,Building Repairs & Maintenance,1028553703,Integrated Water Services Ltd,147.36,25/09/2023
Delivery Units,Customer and Place,Building Repairs & Maintenance,1028649002,PRECISION LIFT SERVICES LTD,646.97,22/09/2023
Delivery Units,Customer and Place,Building Repairs & Maintenance,1028649102,PRECISION LIFT SERVICES LTD,459.36,22/09/2023
Delivery Units,Customer and Place,Building Repairs & Maintenance,1028650102,PRECISION LIFT SERVICES LTD,629.97,22/09/2023
Delivery Units,Customer and Place,Building Repairs & Maintenance,1028650402,PRECISION LIFT SERVICES LTD,288.75,22/09/2023
Delivery Units,Customer and Place,Building Repairs & Maintenance,1028655103,Sureserve Fire & Electrical Ltd,36.00,29/09/2023
Delivery Units,Customer and Place,Building Repairs & Maintenance,1028655303,Sureserve Fire & Electrical Ltd,126.43,29/09/2023
Delivery Units,Customer and Place,Building Repairs & Maintenance,1028655403,Sureserve Fire & Electrical Ltd,45.95,29/09/2023
Delivery Units,Customer and Place,Building Repairs & Maintenance,1028707102,Integrated Water Services Ltd,256.00,25/09/2023
Delivery Units,Customer and Place,Building Repairs & Maintenance,1028707202,Integrated Water Services Ltd,864.00,25/09/2023
Delivery Units,Customer and Place,Building Repairs & Maintenance,1028707302,Integrated Water Services Ltd,147.36,25/09/2023
Delivery Units,Customer and Place,Building Repairs & Maintenance,1028707402,Integrated Water Services Ltd,399.98,25/09/2023
Delivery Units,Customer and Place,Building Repairs & Maintenance,1028707502,Integrated Water Services Ltd,73.68,25/09/2023
Delivery Units,Customer and Place,Building Repairs & Maintenance,1028707602,Integrated Water Services Ltd,450.00,25/09/2023
Delivery Units,Customer and Place,Building Repairs & Maintenance,1028707903,Sureserve Fire & Electrical Ltd,"2,972.22",28/09/2023
Delivery Units,Customer and Place,Building Repairs & Maintenance,1028708003,Integrated Water Services Ltd,73.68,25/09/2023
Delivery Units,Customer and Place,Building Repairs & Maintenance,1028708103,Integrated Water Services Ltd,450.00,25/09/2023
Delivery Units,Customer and Place,Building Repairs & Maintenance,1028755901,Carter Security Ltd,415.00,06/09/2023
Delivery Units,Customer and Place,Building Repairs & Maintenance,1028756101,Carter Security Ltd,618.60,06/09/2023
Delivery Units,Customer and Place,Building Repairs & Maintenance,1028759103,Integrated Water Services Ltd,"5,771.71",25/09/2023
Delivery Units,Customer and Place,Building Repairs & Maintenance,1028855101,E-Z-Rect Limited,575.00,08/09/2023
Delivery Units,Customer and Place,Building Repairs & Maintenance,1028955203,Sureserve Fire & Electrical Ltd,36.00,29/09/2023
Delivery Units,Customer and Place,Building Repairs & Maintenance,1029106002,PRECISION LIFT SERVICES LTD,"1,825.54",22/09/2023
Delivery Units,Customer and Place,Building Repairs & Maintenance,1029206502,Boon Edam Ltd,"1,850.00",22/09/2023
Delivery Units,Customer and Place,Building Repairs & Maintenance,1029312102,Sureserve Fire & Electrical Ltd,36.00,29/09/2023
Delivery Units,Customer and Place,Building Repairs & Maintenance,1029315403,Sureserve Fire & Electrical Ltd,221.00,29/09/2023
Delivery Units,Customer and Place,Building Repairs & Maintenance,1029316403,Sureserve Fire & Electrical Ltd,516.99,29/09/2023
Delivery Units,Customer and Place,Building Repairs & Maintenance,1029468002,S W Bruce & Co Ltd,"44,953.67",28/09/2023
Delivery Units,Childrens Service DSG,Other Services,0050072039,KIDZ CHOICE LIMITED,"1,673.00",18/09/2023
Delivery Units,Childrens Service DSG,Other Services,0050072046,BRIGHT HORIZONS FAMILY SOLUTIO,"2,509.50",18/09/2023
Delivery Units,Childrens Service DSG,Other Services,0050072049,KIDZ CHOICE LIMITED,"1,673.00",18/09/2023
Delivery Units,Childrens Service DSG,Other Services,0050072054,KIDZ CHOICE LIMITED,"1,254.75",18/09/2023
Delivery Units,Childrens Service DSG,Other Services,0050072067,Smart Learning Nursery,"1,673.00",18/09/2023
Delivery Units,Childrens Service DSG,Other Services,0050072084,CHILDBASE LTD,"1,673.00",18/09/2023
Delivery Units,Childrens Service DSG,Other Services,0050072582,KIDZ CHOICE LIMITED,"1,673.00",28/09/2023
Delivery Units,Childrens Service DSG,Other Services,0050072073,Stay and Play Childcare Ltd,"3,346.00",18/09/2023
Delivery Units,Childrens Service DSG,Other Services,0050072016,Little Lamps Nursery Ltd,"1,758.36",18/09/2023
Delivery Units,Childrens Service DSG,Other Services,0050072017,Abracadabra Preschool Nursery,"1,142.93",18/09/2023
Delivery Units,Childrens Service DSG,Other Services,0050072018,ABRACADABRA PRE-SCHOOL NURSERY,"1,318.77",18/09/2023
Delivery Units,Childrens Service DSG,Other Services,0050072019,Sinai Jewish Primary School,"1,758.36",18/09/2023
Delivery Units,Childrens Service DSG,Other Services,0050072020,Aplomb Day Nursery,"3,516.71",18/09/2023
Delivery Units,Childrens Service DSG,Other Services,0050072021,Abracadabra Preschool Nursery,"1,758.36",18/09/2023
Delivery Units,Childrens Service DSG,Other Services,0050072022,Cherry Blossoms Childcare Ltd,"1,758.36",18/09/2023
Delivery Units,Childrens Service DSG,Other Services,0050072023,FOUNTAIN MONTESSORI PRE-SCHOOL,"1,318.77",18/09/2023
Delivery Units,Childrens Service DSG,Other Services,0050072024,GAN MENACHEM,"1,673.00",18/09/2023
Delivery Units,Childrens Service DSG,Other Services,0050072025,N Family Club - Whetsone,"1,758.36",18/09/2023
Delivery Units,Childrens Service DSG,Other Services,0050072026,ABRACADABRA PRE-SCHOOL NURSERY,"2,637.54",18/09/2023
Delivery Units,Childrens Service DSG,Other Services,0050072027,TUFFKIDS NURSERY,"1,673.00",18/09/2023
Delivery Units,Childrens Service DSG,Other Services,0050072028,FOUNTAIN MONTESSORI PRE-SCHOOL,"1,673.00",18/09/2023
Delivery Units,Childrens Service DSG,Other Services,0050072029,Belmont Farm Nursery School,"1,673.00",18/09/2023
Delivery Units,Childrens Service DSG,Other Services,0050072030,Busy Bees Nurseries Ltd,"2,007.60",18/09/2023
Delivery Units,Childrens Service DSG,Other Services,0050072031,TUFFKIDS NURSERY,"1,673.00",18/09/2023
Delivery Units,Childrens Service DSG,Other Services,0050072032,TUFFKIDS NURSERY,"2,007.60",18/09/2023
Delivery Units,Childrens Service DSG,Other Services,0050072033,Claremont Community Pre-School,"1,673.00",18/09/2023
Delivery Units,Childrens Service DSG,Other Services,0050072034,SPARKLER'S  NURSERY,"2,509.50",18/09/2023
Delivery Units,Childrens Service DSG,Other Services,0050072036,Twinkle Stars Montessori Nursery,"1,673.00",18/09/2023
Delivery Units,Childrens Service DSG,Other Services,0050072037,Mara Childrens Nursery and Wor,"1,254.75",18/09/2023
Delivery Units,Childrens Service DSG,Other Services,0050072038,PLAYTIME PRE-SCHOOL,"2,091.25",18/09/2023
Delivery Units,Childrens Service DSG,Other Services,0050072041,Busy Bees Nurseries Ltd,"2,091.25",18/09/2023
Delivery Units,Childrens Service DSG,Other Services,0050072042,Claremont Community Pre-School,"1,673.00",18/09/2023
Delivery Units,Childrens Service DSG,Other Services,0050072043,OAKHILL COMMUNITY NURSERY,"1,673.00",18/09/2023
Delivery Units,Childrens Service DSG,Other Services,0050072044,Aplomb Day Nursery,"1,254.75",18/09/2023
Delivery Units,Childrens Service DSG,Other Services,0050072045,CUPCAKES NURSERIES LTD,"2,509.50",18/09/2023
Delivery Units,Childrens Service DSG,Other Services,0050072047,Claremont Community Pre-School,"1,673.00",18/09/2023
Delivery Units,Childrens Service DSG,Other Services,0050072048,Tinky's Day Nursery,"1,673.00",18/09/2023
Delivery Units,Childrens Service DSG,Other Services,0050072050,Aplomb Day Nursery,"1,338.40",18/09/2023
Delivery Units,Childrens Service DSG,Other Services,0050072051,NANCY REUBEN PRIMARY SCHOOL,"1,673.00",18/09/2023
Delivery Units,Childrens Service DSG,Other Services,0050072052,THE KINDERGARTEN NURSERY,"1,673.00",18/09/2023
Delivery Units,Childrens Service DSG,Other Services,0050072053,PLAYFIELD NURSERY,"2,091.25",18/09/2023
Delivery Units,Childrens Service DSG,Other Services,0050072056,ELY NURSERY,"1,673.00",18/09/2023
Delivery Units,Childrens Service DSG,Other Services,0050072057,Mara Childrens Nursery and Wor,"1,673.00",18/09/2023
Delivery Units,Childrens Service DSG,Other Services,0050072058,Abracadabra Preschool Nursery,"1,673.00",18/09/2023
Delivery Units,Childrens Service DSG,Other Services,0050072059,GOLDERS GREEN DAY NUR( ASQUITH,"1,338.00",18/09/2023
Delivery Units,Childrens Service DSG,Other Services,0050072060,The Learning Experience East Finchley,"1,506.00",18/09/2023
Delivery Units,Childrens Service DSG,Other Services,0050072061,Kana Nurseries Ltd,"1,506.00",18/09/2023
Delivery Units,Childrens Service DSG,Other Services,0050072062,ST PHILLIPS PRE-SCHOOL,"2,008.00",18/09/2023
Delivery Units,Childrens Service DSG,Other Services,0050072063,ABRACADABRA PRE-SCHOOL NURSERY,"1,673.00",18/09/2023
Delivery Units,Childrens Service DSG,Other Services,0050072064,SPARKLER'S  NURSERY,"1,673.00",18/09/2023
Delivery Units,Childrens Service DSG,Other Services,0050072065,Tinky's Day Nursery,"1,673.00",18/09/2023
Delivery Units,Childrens Service DSG,Other Services,0050072066,Cherry Blossoms Childcare Ltd,"1,673.00",18/09/2023
Delivery Units,Childrens Service DSG,Other Services,0050072068,The Finchley Day Nursery,"1,673.00",18/09/2023
Delivery Units,Childrens Service DSG,Other Services,0050072069,SPARKLER'S  NURSERY,"1,673.00",18/09/2023
Delivery Units,Childrens Service DSG,Other Services,0050072070,SPARKLER'S  NURSERY,"1,673.00",18/09/2023
Delivery Units,Childrens Service DSG,Other Services,0050072071,Alyth Kindergarten,"1,673.00",18/09/2023
Delivery Units,Childrens Service DSG,Other Services,0050072072,SPARKLER'S  NURSERY,"1,673.00",18/09/2023
Delivery Units,Childrens Service DSG,Other Services,0050072074,Mara Childrens Nursery and Wor,"2,510.00",18/09/2023
Delivery Units,Childrens Service DSG,Other Services,0050072075,Happy Journeys Day Nursery,"2,008.00",18/09/2023
Delivery Units,Childrens Service DSG,Other Services,0050072077,BELFIELD MONTESSORI,"1,673.00",18/09/2023
Delivery Units,Childrens Service DSG,Other Services,0050072078,Cherry Blossoms Childcare Ltd,"1,673.00",18/09/2023
Delivery Units,Childrens Service DSG,Other Services,0050072080,Kana Nurseries Ltd,"1,506.00",18/09/2023
Delivery Units,Childrens Service DSG,Other Services,0050072081,PLAYTIME PRE-SCHOOL,"1,673.00",18/09/2023
Delivery Units,Childrens Service DSG,Other Services,0050072082,JOEL DAY NURSERY,"1,255.00",18/09/2023
Delivery Units,Childrens Service DSG,Other Services,0050072083,SPARKLER'S  NURSERY,"1,673.00",18/09/2023
Delivery Units,Childrens Service DSG,Other Services,0050072085,The Playhouse Nursery,"2,510.00",18/09/2023
Delivery Units,Childrens Service DSG,Other Services,0050072086,KIDZ KABIN PEMBROKE STUDIOS LTD,"1,673.00",18/09/2023
Delivery Units,Childrens Service DSG,Other Services,0050072088,Torah Temimah Primary School,879.18,18/09/2023
Delivery Units,Childrens Service DSG,Other Establishments - Third P,0050072349,PARKFIELD ACADEMY,366.06,21/09/2023
Delivery Units,Childrens Service DSG,Other Establishments - Third P,0050072355,THE HYDE EF ACADEMY,281.69,21/09/2023
Delivery Units,Childrens Service DSG,Other Establishments - Third P,0050072418,BROADFIELDS ACADEMY,828.37,21/09/2023
Delivery Units,Childrens Service DSG,Other Services,0050072581,MONKEY PUZZLE DAY NURSERY,"3,517.00",28/09/2023
Delivery Units,Childrens Service DSG,Other Services,0050072583,Little Fellows Day Nursery,"2,868.00",28/09/2023
Delivery Units,Childrens Service DSG,Other Services,0050072584,Abracadabra Preschool Nursery,"1,673.00",28/09/2023
Delivery Units,Childrens Service DSG,Other Services,0050072055,Kidz Choice Nursery,"2,509.50",18/09/2023
Delivery Units,Childrens Service DSG,Other Services,0050072076,Apple Day Nursery,"1,255.00",18/09/2023
Delivery Units,Childrens Service DSG,Other Services,0050072079,Apple Day Nursery,"1,255.00",18/09/2023
Delivery Units,Childrens Service DSG,Education CFR Funding Advances,0020067114,BEIS SOROH SCHNEIRER,"34,844.68",27/09/2023
Delivery Units,Childrens Service DSG,Education CFR Funding Advances,0020067118,BROADFIELDS ACADEMY,"13,567.84",27/09/2023
Delivery Units,Childrens Service DSG,Education CFR Funding Advances,0020067125,BEIS CHINUCH PRIMARY SCHOOL,"39,517.52",27/09/2023
Delivery Units,Childrens Service DSG,Education CFR Funding Advances,0020067128,Finchley Yochien,"2,514.32",27/09/2023
Delivery Units,Childrens Service DSG,Education CFR Funding Advances,0020067132,HENDON PREPARATORY SCHOOL,"4,250.62",27/09/2023
Delivery Units,Childrens Service DSG,Education CFR Funding Advances,0020067138,The Mill Hill Foundation,"4,933.76",27/09/2023
Delivery Units,Childrens Service DSG,Education CFR Funding Advances,0020067144,Millbrook Park Primary School,"16,651.44",27/09/2023
Delivery Units,Childrens Service DSG,Education CFR Funding Advances,0020067146,NANCY REUBEN PRIMARY SCHOOL,"19,118.32",27/09/2023
Delivery Units,Childrens Service DSG,Education CFR Funding Advances,0020067150,PARKFIELD ACADEMY,"18,501.60",27/09/2023
Delivery Units,Childrens Service DSG,Education CFR Funding Advances,0020067151,Peninim Primary School,"5,858.84",27/09/2023
Delivery Units,Childrens Service DSG,Education CFR Funding Advances,0020067155,St Anthony's School for Girls,434.87,27/09/2023
Delivery Units,Childrens Service DSG,Education CFR Funding Advances,0020067159,ST MARTIN'S SCHOOL,"4,957.48",27/09/2023
Delivery Units,Childrens Service DSG,Education CFR Funding Advances,0020067162,Summerside Primary Academy,"8,396.88",27/09/2023
Delivery Units,Childrens Service DSG,Education CFR Funding Advances,0020067164,THE HYDE EF ACADEMY,"13,971.08",27/09/2023
Delivery Units,Childrens Service DSG,Private Contractors - Third Pa,0080069580,PARKFIELD ACADEMY,"1,828.08",07/09/2023
Delivery Units,Childrens Service DSG,Private Contractors - Third Pa,0080069958,BROADFIELDS ACADEMY,"1,807.20",20/09/2023
Delivery Units,Childrens Family Services,Cleaning and domestic material,1028952701,Cleantec Services Ltd,"1,217.44",12/09/2023
Delivery Units,Childrens Family Services,Other Agencies - Third Party P,1029051801,GLS Education Services Ltd,154.96,14/09/2023
Delivery Units,Childrens Family Services,Other Agencies - Third Party P,1029053301,GLS Education Services Ltd,68.25,14/09/2023
Delivery Units,Childrens Family Services,Other Agencies - Third Party P,1029053601,GLS Education Services Ltd,73.93,14/09/2023
Delivery Units,Childrens Family Services,Equipment and Materials Purcha,1029105102,ClearCall2000 LTD,47.11,15/09/2023
Delivery Units,Childrens Family Services,Other Services,1029363601,LEE SECURITY LONDON LIMITED,77.00,22/09/2023
Delivery Units,Childrens Family Services,Cleaning and domestic material,1028752902,Norse Commercial Services Ltd,704.36,11/09/2023
Delivery Units,Childrens Family Services,Equipment and Materials Purcha,1028757002,Norse Commercial Services Ltd,64.25,11/09/2023
Delivery Units,Childrens Family Services,Cleaning and domestic material,1029055402,Airscience Technology International Limi,339.59,18/09/2023
Delivery Units,Childrens Family Services,Other Agencies - Third Party P,1029546401,We Are Grow,"1,500.00",28/09/2023
Delivery Units,Childrens Family Services,Gas,1029369702,KENT COUNTY COUNCIL (KCS),232.97,22/09/2023
Delivery Units,Childrens Family Services,Equipment and Materials Purcha,1028703301,Norse Commercial Services Ltd,61.58,06/09/2023
Delivery Units,Childrens Family Services,Cleaning and domestic material,1028753101,Norse Commercial Services Ltd,528.42,06/09/2023
Delivery Units,Childrens Family Services,Equipment and Materials Purcha,1028754002,Norse Commercial Services Ltd,61.58,11/09/2023
Delivery Units,Childrens Family Services,Electricity,1029315302,KENT COUNTY COUNCIL (KCS),512.56,21/09/2023
Delivery Units,Childrens Family Services,Professional Services,1028753802,Norse Commercial Services Ltd,876.27,06/09/2023
Delivery Units,Childrens Family Services,Professional Services,1029102101,New Enterprise Pest,75.00,15/09/2023
Delivery Units,Childrens Family Services,Other Agencies - Third Party P,1029152301,FINDEL EDUCATION LIMITED,197.92,18/09/2023
Delivery Units,Childrens Family Services,Other Energy,1029102402,KENT COUNTY COUNCIL (KCS),42.73,15/09/2023
Delivery Units,Childrens Family Services,Other Services,1029001201,BLUE 9 SECURITY LIMITED,80.88,13/09/2023
Delivery Units,Childrens Family Services,Other Services,1029001501,BLUE 9 SECURITY LIMITED,"2,022.00",13/09/2023
Delivery Units,Childrens Family Services,Other Services,1029105501,1ST CONTAINERS UK LIMITED,31.00,15/09/2023
Delivery Units,Childrens Family Services,Operational Leases - Equipment,1029106901,Canon (UK) limited,90.85,15/09/2023
Delivery Units,Childrens Family Services,Operational Leases - Equipment,1029107001,Canon (UK) limited,90.85,15/09/2023
Delivery Units,Childrens Family Services,Other Services,1029107101,Enigma CCTV Ltd,"4,072.74",15/09/2023
Delivery Units,Childrens Family Services,Operational Leases - Equipment,1029107301,Canon (UK) limited,9.10,15/09/2023
Delivery Units,Childrens Family Services,Operational Leases - Equipment,1029107401,Canon (UK) limited,6.03,15/09/2023
Delivery Units,Childrens Family Services,Operational Leases - Equipment,1029107801,Canon (UK) limited,6.32,15/09/2023
Delivery Units,Childrens Family Services,Operational Leases - Equipment,1029107901,Canon (UK) limited,10.08,15/09/2023
Delivery Units,Childrens Family Services,Other Services,1029501101,BLUE 9 SECURITY LIMITED,323.52,27/09/2023
Delivery Units,Childrens Family Services,Other Services,1029501201,BLUE 9 SECURITY LIMITED,"2,244.42",27/09/2023
Delivery Units,Childrens Family Services,Other Services,1029501301,BLUE 9 SECURITY LIMITED,80.88,28/09/2023
Delivery Units,Childrens Family Services,Other Services,1029501801,BLUE 9 SECURITY LIMITED,"2,507.28",27/09/2023
Delivery Units,Childrens Family Services,Other Services,1029501901,BLUE 9 SECURITY LIMITED,"2,123.10",27/09/2023
Delivery Units,Childrens Family Services,Other Services,1029502001,BLUE 9 SECURITY LIMITED,"2,287.20",27/09/2023
Delivery Units,Childrens Family Services,Other Services,1029502401,BLUE 9 SECURITY LIMITED,"2,689.26",27/09/2023
Delivery Units,Childrens Family Services,Cleaning and domestic material,1029049502,Herts FullStop,184.80,27/09/2023
Delivery Units,Childrens Family Services,Books-CDs-Audio-Video,0021007052,Malhotra News Agent Ltd,288.60,01/09/2023
Delivery Units,Childrens Family Services,Books-CDs-Audio-Video,0021007053,OCLC (UK) LIMITED,"1,834.88",01/09/2023
Delivery Units,Childrens Family Services,Books-CDs-Audio-Video,0021007055,ASKEWS & HOLTS LIBRARY SERVICES LTD,23.88,06/09/2023
Delivery Units,Childrens Family Services,Books-CDs-Audio-Video,0021007060,ASKEWS & HOLTS LIBRARY SERVICES LTD,8.88,06/09/2023
Delivery Units,Childrens Family Services,Books-CDs-Audio-Video,0021007061,ASKEWS & HOLTS LIBRARY SERVICES LTD,10.59,06/09/2023
Delivery Units,Childrens Family Services,Books-CDs-Audio-Video,0021007062,ASKEWS & HOLTS LIBRARY SERVICES LTD,9.00,06/09/2023
Delivery Units,Childrens Family Services,Books-CDs-Audio-Video,0021007067,ASKEWS & HOLTS LIBRARY SERVICES LTD,6.29,06/09/2023
Delivery Units,Childrens Family Services,Books-CDs-Audio-Video,0021007089,ASKEWS & HOLTS LIBRARY SERVICES LTD,11.74,06/09/2023
Delivery Units,Childrens Family Services,Books-CDs-Audio-Video,0021007093,ASKEWS & HOLTS LIBRARY SERVICES LTD,6.96,06/09/2023
Delivery Units,Childrens Family Services,Books-CDs-Audio-Video,0021007099,ASKEWS & HOLTS LIBRARY SERVICES LTD,19.84,06/09/2023
Delivery Units,Childrens Family Services,Books-CDs-Audio-Video,0021007113,Mill Hill Newsagents Ltd,150.40,07/09/2023
Delivery Units,Childrens Family Services,Books-CDs-Audio-Video,0021007120,Singh Convenience Store Ltd,425.20,14/09/2023
Delivery Units,Childrens Family Services,Books-CDs-Audio-Video,0021007121,Mill Hill Newsagents Ltd,123.20,14/09/2023
Delivery Units,Childrens Family Services,Books-CDs-Audio-Video,0021007148,Malhotra News Agent Ltd,257.20,22/09/2023
Delivery Units,Childrens Family Services,Books-CDs-Audio-Video,0021007149,DX NETWORK SERVICES LTD,10.61,22/09/2023
Delivery Units,Childrens Family Services,Books-CDs-Audio-Video,0021007150,W.F. HOWES LTD,"6,169.66",22/09/2023
Delivery Units,Childrens Family Services,Books-CDs-Audio-Video,0021007151,W.F. HOWES LTD,"2,230.00",22/09/2023
Delivery Units,Childrens Family Services,Books-CDs-Audio-Video,0021007155,ASKEWS & HOLTS LIBRARY SERVICES LTD,11.56,22/09/2023
Delivery Units,Childrens Family Services,Books-CDs-Audio-Video,0021007162,ASKEWS & HOLTS LIBRARY SERVICES LTD,10.44,22/09/2023
Delivery Units,Childrens Family Services,Stationery,1029412901,BIBLIOTHECA LTD,800.00,25/09/2023
Delivery Units,Childrens Family Services,Books-CDs-Audio-Video,0021007051,CONFAGS,278.40,01/09/2023
Delivery Units,Childrens Family Services,Books-CDs-Audio-Video,0021007114,API AVI STORES,208.40,07/09/2023
Delivery Units,Childrens Family Services,Books-CDs-Audio-Video,0021007116,API AVI STORES,224.30,07/09/2023
Delivery Units,Childrens Family Services,Books-CDs-Audio-Video,0021007117,API AVI STORES,208.40,07/09/2023
Delivery Units,Childrens Family Services,Books-CDs-Audio-Video,0021007118,API AVI STORES,189.20,07/09/2023
Delivery Units,Childrens Family Services,Books-CDs-Audio-Video,0021007119,API AVI STORES,214.70,07/09/2023
Delivery Units,Childrens Family Services,Cleaning and domestic material,1028753302,Norse Commercial Services Ltd,"2,338.11",07/09/2023
Delivery Units,Childrens Family Services,Other Services,1028754802,Norse Commercial Services Ltd,34.83,07/09/2023
Delivery Units,Childrens Family Services,Cleaning and domestic material,1028755002,Norse Commercial Services Ltd,"2,648.54",07/09/2023
Delivery Units,Childrens Family Services,Cleaning and domestic material,1028217002,Herts FullStop,64.80,07/09/2023
Delivery Units,Childrens Family Services,Cleaning and domestic material,1028218202,Herts FullStop,28.92,27/09/2023
Delivery Units,Childrens Family Services,Cleaning and domestic material,1029048901,Herts FullStop,1.57,27/09/2023
Delivery Units,Childrens Family Services,Cleaning and domestic material,1029050501,Herts FullStop,-1.57,27/09/2023
Delivery Units,Childrens Family Services,Other Services,1028755602,Norse Commercial Services Ltd,67.33,07/09/2023
Delivery Units,Childrens Family Services,Cleaning and domestic material,1029049402,Herts FullStop,171.50,27/09/2023
Delivery Units,Childrens Family Services,Other Services,1028753202,Norse Commercial Services Ltd,17.00,07/09/2023
Delivery Units,Childrens Family Services,Cleaning and domestic material,1028754702,Norse Commercial Services Ltd,528.42,07/09/2023
Delivery Units,Childrens Family Services,Cleaning and domestic material,1028752802,Norse Commercial Services Ltd,"1,165.84",07/09/2023
Delivery Units,Childrens Family Services,Other Services,1028754902,Norse Commercial Services Ltd,29.58,07/09/2023
Delivery Units,Childrens Family Services,Cleaning and domestic material,1029251401,Banner Group Limited,-1.38,25/09/2023
Delivery Units,Childrens Family Services,Cleaning and domestic material,1028753002,Norse Commercial Services Ltd,527.87,07/09/2023
Delivery Units,Childrens Family Services,Other Services,1028753902,Norse Commercial Services Ltd,17.00,07/09/2023
Delivery Units,Childrens Family Services,Cleaning and domestic material,1028754402,Norse Commercial Services Ltd,705.28,07/09/2023
Delivery Units,Childrens Family Services,Other Services,1028754502,Norse Commercial Services Ltd,30.42,07/09/2023
Delivery Units,Childrens Family Services,Other Services,1025760003,NW7 Hub Charity,"2,194.46",18/09/2023
Delivery Units,Childrens Family Services,Cleaning and domestic material,1028707802,Norse Commercial Services Ltd,528.42,07/09/2023
Delivery Units,Childrens Family Services,Other Services,1028752202,Norse Commercial Services Ltd,21.25,07/09/2023
Delivery Units,Childrens Family Services,Cleaning and domestic material,1028752302,Norse Commercial Services Ltd,703.90,07/09/2023
Delivery Units,Childrens Family Services,Other Services,1028752702,Norse Commercial Services Ltd,25.92,07/09/2023
Delivery Units,Childrens Family Services,Electricity,1029312502,KENT COUNTY COUNCIL (KCS),"1,082.50",21/09/2023
Delivery Units,Childrens Family Services,Gas,1029313502,KENT COUNTY COUNCIL (KCS),35.03,21/09/2023
Delivery Units,Childrens Family Services,Books-CDs-Audio-Video,1028597101,ASKEWS & HOLTS LIBRARY SERVICES LTD,529.48,01/09/2023
Delivery Units,Childrens Family Services,Books-CDs-Audio-Video,1029002401,ASKEWS & HOLTS LIBRARY SERVICES LTD,130.17,13/09/2023
Delivery Units,Strategy and Resources,Advertising,1026558303,GOOD IMPRESSIONS (LONDON) LIMITED,540.00,11/09/2023
Delivery Units,Strategy and Resources,Advertising,1028599402,GOOD IMPRESSIONS (LONDON) LIMITED,"1,590.00",13/09/2023
Delivery Units,Strategy and Resources,Advertising,1028600501,GOOD IMPRESSIONS (LONDON) LIMITED,90.00,01/09/2023
Delivery Units,Strategy and Resources,Advertising,1028702602,GOOD IMPRESSIONS (LONDON) LIMITED,"1,220.00",13/09/2023
Delivery Units,Strategy and Resources,Publications,1029502201,Monica Wells Photography Ltd,600.00,27/09/2023
Delivery Units,Strategy and Resources,Advertising,1029547801,GOOD IMPRESSIONS (LONDON) LIMITED,360.00,28/09/2023
Delivery Units,Strategy and Resources,Advertising,1029548501,GOOD IMPRESSIONS (LONDON) LIMITED,210.00,28/09/2023
Delivery Units,Strategy and Resources,Advertising,1029549401,GOOD IMPRESSIONS (LONDON) LIMITED,180.00,28/09/2023
Delivery Units,Strategy and Resources,Advertising,1029552701,GOOD IMPRESSIONS (LONDON) LIMITED,90.00,28/09/2023
Delivery Units,Strategy and Resources,Publications,1023293002,NLA MEDIA ACCESS LTD,120.30,05/09/2023
Delivery Units,Strategy and Resources,Publications,1028550402,NLA MEDIA ACCESS LTD,"1,203.00",05/09/2023
Delivery Units,Assurance,Software Licences & Support,1025598901,Democracy Counts Limited,"21,000.00",13/09/2023
Delivery Units,Assurance,Software Licences & Support,1026961601,Democracy Counts Limited,995.00,13/09/2023
Delivery Units,Assurance,Postage,1028603801,ROYAL MAIL GROUP LIMITED,62.64,04/09/2023
Delivery Units,Assurance,Postage,1028604901,ROYAL MAIL GROUP LIMITED,83.52,01/09/2023
Delivery Units,Assurance,Printing-Contract,1029258002,Civica Election Services Limit,"34,818.32",21/09/2023
Delivery Units,Assurance,Postage,1029366101,ROYAL MAIL GROUP LIMITED,96.86,22/09/2023
Delivery Units,Assurance,Stationery,1029416401,Banner Group Limited,13.32,25/09/2023
Delivery Units,Assurance,Professional Services,1028655901,ASSOCIATION OF ELECTORAL ADMINISTRA,380.00,04/09/2023
Delivery Units,Assurance,Training,1029204401,ASSOCIATION OF ELECTORAL ADMINISTRA,"2,227.50",19/09/2023
Delivery Units,Assurance,Training,1028444303,LLG Legal Training,205.00,21/09/2023
Delivery Units,Assurance,Training,1028508902,LLG Legal Training,205.00,19/09/2023
Delivery Units,Assurance,Training,1028998201,CENTRE FOR GOVERNANCE AND SCRU,"1,170.00",15/09/2023
Delivery Units,Assurance,Training,1029251602,LLG Legal Training,205.00,20/09/2023
Delivery Units,Assurance,Training,1029252702,LLG Legal Training,130.00,20/09/2023
Delivery Units,Assurance,CSG  - Occ Health,1022077303,POSTURITE LTD,75.00,04/09/2023
Delivery Units,Assurance,CSG  - Occ Health,1022188104,POSTURITE LTD,65.95,04/09/2023
Delivery Units,Assurance,CSG  - Occ Health,1022355504,POSTURITE LTD,75.00,01/09/2023
Delivery Units,Customer and Place,Equipment and Materials Purcha,1026961903,SMI INT Group Ltd,711.36,20/09/2023
Delivery Units,Customer and Place,Training,1028411002,SKILLS TRAINING CENTRE LTD,850.00,04/09/2023
Delivery Units,Customer and Place,Training,1028411103,SKILLS TRAINING CENTRE LTD,850.00,11/09/2023
Delivery Units,Customer and Place,Training,1028411202,SKILLS TRAINING CENTRE LTD,650.00,04/09/2023
Delivery Units,Customer and Place,Clothing - Protective Clothing,1029056202,SMI INT Group Ltd,193.80,15/09/2023
Delivery Units,Customer and Place,Training,1029104102,SKILLS TRAINING CENTRE LTD,850.00,19/09/2023
Delivery Units,Customer and Place,Training,1029106101,SKILLS TRAINING CENTRE LTD,850.00,15/09/2023
Delivery Units,Customer and Place,Training,1029505101,SKILLS TRAINING CENTRE LTD,850.00,27/09/2023
Delivery Units,Customer and Place,Training,1029505501,SKILLS TRAINING CENTRE LTD,850.00,27/09/2023
Delivery Units,Adults and Health,Other Agencies - Third Party P,1028954302,THE BARNETGROUP LIMITED,306.12,12/09/2023
Delivery Units,Adults and Health,Ttl IT & Comms,1028600401,Access UK Ltd,"9,067.50",01/09/2023
Delivery Units,Adults and Health,Software Licences & Support,1028601402,Access UK Ltd,"1,389.75",15/09/2023
Delivery Units,Adults and Health,Other Services,1028413502,ROYAL FREE HAMPSTEAD NHS TRUST,"35,671.47",12/09/2023
Delivery Units,Adults and Health,Other Services,1025919302,BARNET EDUCATION AND LEARNING,628.00,19/09/2023
Delivery Units,Adults and Health,Other Services,1026456002,Barnet Homes,"1,543.41",20/09/2023
Delivery Units,Public Health,Health authorities - Third Par,1028812402,Central & North West London NHS FT,"11,500.00",08/09/2023
Delivery Units,Public Health,Other Transfer Payments to Soc,1029249202,Central & North West London NHS FT,"1,197.10",20/09/2023
Delivery Units,Public Health,Health authorities - Third Par,1028812302,Epsom & St Helier NHS Trust,248.08,08/09/2023
Delivery Units,Public Health,Health authorities - Third Par,1028599702,Barts Health NHS Trust,"2,691.00",01/09/2023
Delivery Units,Public Health,Health authorities - Third Par,1028651902,Chelsea & Westminster Hospital,"39,866.70",04/09/2023
Delivery Units,Public Health,Health authorities - Third Par,1028811802,University Hosp Sussex NHS FT,80.15,07/09/2023
Delivery Units,Public Health,Health authorities - Third Par,1029157802,Barts Health NHS Trust,"2,691.00",18/09/2023
Delivery Units,Public Health,Health authorities - Third Par,1029158402,Barts Health NHS Trust,"2,691.00",18/09/2023
Delivery Units,Public Health,Health authorities - Third Par,1029161502,Homerton University Hospital,"1,350.68",18/09/2023
Delivery Units,Public Health,Health authorities - Third Par,1029161602,North Middlesex University Hos,"9,656.28",18/09/2023
Delivery Units,Public Health,Health authorities - Third Par,1029161802,Nottingham University Hospitals Trust,59.88,18/09/2023
Delivery Units,Public Health,Health authorities - Third Par,1029202902,Barts Health NHS Trust,"2,691.00",19/09/2023
Delivery Units,Public Health,Health authorities - Third Par,1029468302,Guy's and St Thomas' NHS FT,"3,576.06",26/09/2023
Delivery Units,Public Health,Health authorities - Third Par,1029550902,Homerton University Hospital,"1,378.76",28/09/2023
Delivery Units,Public Health,Health authorities - Third Par,1029552202,Kingston Hospital NHS Foundation Trust,283.61,29/09/2023
Delivery Units,Public Health,Health authorities - Third Par,1024350102,CITY OF LONDON,"2,750.00",15/09/2023
Delivery Units,Public Health,Health authorities - Third Par,1027945403,CITY OF LONDON,"1,750.00",11/09/2023
Delivery Units,Public Health,Other Transfer Payments to Soc,1028759002,Kooth Digital Health Limited,"5,835.50",08/09/2023
Delivery Units,Adults and Health,Professional Services,1027690902,Recruitment Team Nine Limited,590.00,21/09/2023
Delivery Units,Adults and Health,Professional Services,1028656802,Peaceable Habitation Ltd,"1,280.00",19/09/2023
Delivery Units,Adults and Health,Professional Services,1028657501,Action First Assessment Ltd,"2,512.50",04/09/2023
Delivery Units,Adults and Health,Professional Services,1028698702,AMIN ENTERPRISE LTD,184.00,05/09/2023
Delivery Units,Adults and Health,Professional Services,1028698802,AMIN ENTERPRISE LTD,190.00,05/09/2023
Delivery Units,Adults and Health,Professional Services,1028699001,AMIN ENTERPRISE LTD,192.28,06/09/2023
Delivery Units,Adults and Health,Professional Services,1028699802,AMIN ENTERPRISE LTD,175.00,06/09/2023
Delivery Units,Adults and Health,Professional Services,1028700902,AMIN ENTERPRISE LTD,181.30,05/09/2023
Delivery Units,Adults and Health,Professional Services,1028701602,AMIN ENTERPRISE LTD,186.70,05/09/2023
Delivery Units,Adults and Health,Professional Services,1028703501,Action First Assessment Ltd,"2,345.00",05/09/2023
Delivery Units,Adults and Health,Professional Services,1028897302,Recruitment Team Nine Limited,590.00,25/09/2023
Delivery Units,Adults and Health,Professional Services,1029158001,Recruitment Team Nine Limited,"1,180.00",18/09/2023
Delivery Units,Adults and Health,Professional Services,1029254202,AMIN ENTERPRISE LTD,175.00,21/09/2023
Delivery Units,Adults and Health,Professional Services,1029315602,Recruitment Team Nine Limited,885.00,25/09/2023
Delivery Units,Adults and Health,Professional Services,1029464502,AMIN ENTERPRISE LTD,184.90,26/09/2023
Delivery Units,Adults and Health,Professional Services,1029464802,Favore Didio Ltd,"1,920.00",26/09/2023
Delivery Units,Adults and Health,Professional Services,1029465202,AMIN ENTERPRISE LTD,183.10,26/09/2023
Delivery Units,Adults and Health,Professional Services,1029467302,AMIN ENTERPRISE LTD,183.10,26/09/2023
Delivery Units,Adults and Health,Professional Services,1029469701,Action First Assessment Ltd,"1,590.00",26/09/2023
Delivery Units,Adults and Health,Ttl IT & Comms,1028288101,MEDEQUIP ASSISTIVE TECHNOLOGY,"2,182.58",05/09/2023
Delivery Units,Adults and Health,Ttl IT & Comms,1028701501,MEDEQUIP ASSISTIVE TECHNOLOGY,"163,181.51",05/09/2023
Delivery Units,Adults and Health,Ttl IT & Comms,1029050701,MEDEQUIP ASSISTIVE TECHNOLOGY,"147,347.11",15/09/2023
Delivery Units,Adults and Health,Other Agencies - Third Party P,0090627089,AUTUMN GARDENS,"3,887.43",05/09/2023
Delivery Units,Adults and Health,Other Agencies - Third Party P,0090632146,CARLTON COURT (TLC GROUP),"4,363.24",20/09/2023
Delivery Units,Adults and Health,Other Agencies - Third Party P,0090632218,CARLTON COURT (TLC GROUP),"7,000.00",20/09/2023
Delivery Units,Adults and Health,Other Agencies - Third Party P,0090632219,CARLTON COURT (TLC GROUP),"7,000.00",20/09/2023
Delivery Units,Adults and Health,Other Agencies - Third Party P,0090632475,CARLTON COURT (TLC GROUP),"4,363.24",20/09/2023
Delivery Units,Adults and Health,Other Agencies - Third Party P,0090632499,CARLTON COURT (TLC GROUP),"46,435.71",20/09/2023
Delivery Units,Adults and Health,Other Agencies - Third Party P,0090634892,BENSLOW MANAGEMENT COMPANY LIMITED,"4,124.57",25/09/2023
Delivery Units,Adults and Health,Other Agencies - Third Party P,0090636817,AUTUMN GARDENS,"3,656.00",28/09/2023
Delivery Units,Adults and Health,Other Agencies - Third Party P,0090636818,AUTUMN GARDENS,"4,800.00",28/09/2023
Delivery Units,Adults and Health,Other Agencies - Third Party P,0090627199,AGUDAS ISRAEL HOUSING ASSCTN LTD,"2,736.86",05/09/2023
Delivery Units,Adults and Health,Other Agencies - Third Party P,0090627203,AGUDAS ISRAEL HOUSING ASSCTN LTD,"5,978.57",05/09/2023
Delivery Units,Adults and Health,Other Agencies - Third Party P,0090620565,Karuna Manor,-717.14,01/09/2023
Delivery Units,Adults and Health,Other Agencies - Third Party P,0090620566,Karuna Manor,"-4,446.29",01/09/2023
Delivery Units,Adults and Health,Other Agencies - Third Party P,0090626881,DMP Healthcare (Ogilvy) Ltd,"4,446.29",01/09/2023
Delivery Units,Adults and Health,Other Agencies - Third Party P,0090626882,DMP Healthcare (Ogilvy) Ltd,702.00,01/09/2023
Delivery Units,Adults and Health,Other Agencies - Third Party P,0090626883,DMP Healthcare (Ogilvy) Ltd,"4,446.29",01/09/2023
Delivery Units,Adults and Health,Other Agencies - Third Party P,0090626888,St Matthews Limited,"6,324.00",01/09/2023
Delivery Units,Adults and Health,Other Agencies - Third Party P,0090626889,St Matthews Limited,"3,843.69",01/09/2023
Delivery Units,Adults and Health,Other Agencies - Third Party P,0090628788,Victoria Care Centre,"3,038.66",08/09/2023
Delivery Units,Adults and Health,Other Agencies - Third Party P,0090628805,GCH (HATFIELD) Limited,"2,324.76",08/09/2023
Delivery Units,Adults and Health,Other Agencies - Third Party P,0090628807,Hamberley Care 1 Ltd,"7,538.74",08/09/2023
Delivery Units,Adults and Health,Other Agencies - Third Party P,0090629947,Barchester Healthcare,"6,200.00",13/09/2023
Delivery Units,Adults and Health,Other Agencies - Third Party P,0090629953,Barchester Healthcare,"4,784.14",13/09/2023
Delivery Units,Adults and Health,Other Agencies - Third Party P,0090629954,Barchester Healthcare,"6,200.00",13/09/2023
Delivery Units,Adults and Health,Other Agencies - Third Party P,0090630098,BUPA CARE HOMES,910.23,13/09/2023
Delivery Units,Adults and Health,Other Agencies - Third Party P,0090631003,NIGHTINGALE HOUSE,"4,218.21",15/09/2023
Delivery Units,Adults and Health,Other Agencies - Third Party P,0090631018,Hamberley Care 1 Ltd,"4,562.71",15/09/2023
Delivery Units,Adults and Health,Other Agencies - Third Party P,0090631019,Hamberley Care 1 Ltd,"4,562.71",15/09/2023
Delivery Units,Adults and Health,Other Agencies - Third Party P,0090631984,CEDARS NURSING HOME,"4,016.00",20/09/2023
Delivery Units,Adults and Health,Other Agencies - Third Party P,0090632001,ASHTON LODGE CARE CENTRE,"3,768.00",20/09/2023
Delivery Units,Adults and Health,Other Agencies - Third Party P,0090632003,ASHTON LODGE CARE CENTRE,"4,200.00",20/09/2023
Delivery Units,Adults and Health,Other Agencies - Third Party P,0090632004,ABBEY RAVENSCROFT PARK NURSING HOME,"3,752.00",20/09/2023
Delivery Units,Adults and Health,Other Agencies - Third Party P,0090632005,JEWISH CARE,"3,140.00",20/09/2023
Delivery Units,Adults and Health,Other Agencies - Third Party P,0090632007,APPLE TREE COURT CARE HOME,-143.43,20/09/2023
Delivery Units,Adults and Health,Other Agencies - Third Party P,0090632009,BUPA CARE HOMES,"3,260.88",20/09/2023
Delivery Units,Adults and Health,Other Agencies - Third Party P,0090632010,LIFESTYLE CARE PLC,"4,854.49",20/09/2023
Delivery Units,Adults and Health,Other Agencies - Third Party P,0090632012,FOUR SEASONS HEALTH CARE,"2,831.68",20/09/2023
Delivery Units,Adults and Health,Other Agencies - Third Party P,0090632017,LIFESTYLE CARE PLC,"2,882.36",20/09/2023
Delivery Units,Adults and Health,Other Agencies - Third Party P,0090632020,SONESTA NURSING HOME LTD.,"2,716.68",20/09/2023
Delivery Units,Adults and Health,Other Agencies - Third Party P,0090632031,ABBEY RAVENSCROFT PARK NURSING HOME,"3,968.00",20/09/2023
Delivery Units,Adults and Health,Other Agencies - Third Party P,0090632032,LIFESTYLE CARE PLC,"2,882.36",20/09/2023
Delivery Units,Adults and Health,Other Agencies - Third Party P,0090632036,ASHTON LODGE CARE CENTRE,"4,201.60",20/09/2023
Delivery Units,Adults and Health,Other Agencies - Third Party P,0090632041,LIFESTYLE CARE PLC,"2,882.36",20/09/2023
Delivery Units,Adults and Health,Other Agencies - Third Party P,0090632044,FOUR SEASONS HEALTH CARE,"2,831.68",20/09/2023
Delivery Units,Adults and Health,Other Agencies - Third Party P,0090632045,JEWISH CARE,"3,212.00",20/09/2023
Delivery Units,Adults and Health,Other Agencies - Third Party P,0090632047,SONESTA NURSING HOME LTD.,"2,716.68",20/09/2023
Delivery Units,Adults and Health,Other Agencies - Third Party P,0090632049,SAGE NURSING HOME,"4,400.00",20/09/2023
Delivery Units,Adults and Health,Other Agencies - Third Party P,0090632051,ASHTON LODGE CARE CENTRE,"4,200.00",20/09/2023
Delivery Units,Adults and Health,Other Agencies - Third Party P,0090632053,ELEANOR PALMER TRUST NO 2 A/C.,"4,400.00",20/09/2023
Delivery Units,Adults and Health,Other Agencies - Third Party P,0090632055,ABBEY RAVENSCROFT PARK NURSING HOME,"3,968.00",20/09/2023
Delivery Units,Adults and Health,Other Agencies - Third Party P,0090632058,JEWISH CARE,"9,938.48",20/09/2023
Delivery Units,Adults and Health,Other Agencies - Third Party P,0090632061,ASHTON LODGE CARE CENTRE,"3,772.52",20/09/2023
Delivery Units,Adults and Health,Other Agencies - Third Party P,0090632063,CEDARS NURSING HOME,"3,756.00",20/09/2023
Delivery Units,Adults and Health,Other Agencies - Third Party P,0090632065,BUPA NURSING HOMES LTD - ARKLEY,"5,690.97",20/09/2023
Delivery Units,Adults and Health,Other Agencies - Third Party P,0090632066,APPLE TREE COURT CARE HOME,"-2,590.16",20/09/2023
Delivery Units,Adults and Health,Other Agencies - Third Party P,0090632067,APPLE TREE COURT CARE HOME,0.04,20/09/2023
Delivery Units,Adults and Health,Other Agencies - Third Party P,0090632068,FOUR SEASONS HEALTH CARE,"2,831.68",20/09/2023
Delivery Units,Adults and Health,Other Agencies - Third Party P,0090632069,BUPA CARE HOMES,"2,906.64",20/09/2023
Delivery Units,Adults and Health,Other Agencies - Third Party P,0090632074,SONESTA NURSING HOME LTD.,"2,716.68",20/09/2023
Delivery Units,Adults and Health,Other Agencies - Third Party P,0090632075,JEWISH CARE,"2,911.32",20/09/2023
Delivery Units,Adults and Health,Other Agencies - Third Party P,0090632079,APPLE TREE COURT CARE HOME,"3,865.80",20/09/2023
Delivery Units,Adults and Health,Other Agencies - Third Party P,0090632085,FOUR SEASONS HEALTH CARE,"2,831.68",20/09/2023
Delivery Units,Adults and Health,Other Agencies - Third Party P,0090632086,LIFESTYLE CARE PLC,"2,882.36",20/09/2023
Delivery Units,Adults and Health,Other Agencies - Third Party P,0090632087,JEWISH CARE,"3,140.00",20/09/2023
Delivery Units,Adults and Health,Other Agencies - Third Party P,0090632088,LIFESTYLE CARE PLC,"2,882.36",20/09/2023
Delivery Units,Adults and Health,Other Agencies - Third Party P,0090632089,ASHTON LODGE CARE CENTRE,"4,168.00",20/09/2023
Delivery Units,Adults and Health,Other Agencies - Third Party P,0090632090,ASHTON LODGE CARE CENTRE,"4,764.00",20/09/2023
Delivery Units,Adults and Health,Other Agencies - Third Party P,0090632092,APPLE TREE COURT CARE HOME,"4,200.00",20/09/2023
Delivery Units,Adults and Health,Other Agencies - Third Party P,0090632094,APPLE TREE COURT CARE HOME,"4,016.00",20/09/2023
Delivery Units,Adults and Health,Other Agencies - Third Party P,0090632101,JEWISH CARE,"3,140.00",20/09/2023
Delivery Units,Adults and Health,Other Agencies - Third Party P,0090632103,Aarandale Manor Care Home,"4,200.00",20/09/2023
Delivery Units,Adults and Health,Other Agencies - Third Party P,0090632107,ASHTON LODGE CARE CENTRE,"3,768.00",20/09/2023
Delivery Units,Adults and Health,Other Agencies - Third Party P,0090632110,CEDARS NURSING HOME,"4,800.00",20/09/2023
Delivery Units,Adults and Health,Other Agencies - Third Party P,0090632113,Lancam Care Services Limited,"4,116.00",20/09/2023
Delivery Units,Adults and Health,Other Agencies - Third Party P,0090632115,SAGE NURSING HOME,"4,952.00",20/09/2023
Delivery Units,Adults and Health,Other Agencies - Third Party P,0090632117,ELEANOR PALMER TRUST NO 2 A/C.,"4,400.00",20/09/2023
Delivery Units,Adults and Health,Other Agencies - Third Party P,0090632119,JEWISH CARE,"3,212.00",20/09/2023
Delivery Units,Adults and Health,Other Agencies - Third Party P,0090632120,CEDARS NURSING HOME,"4,800.00",20/09/2023
Delivery Units,Adults and Health,Other Agencies - Third Party P,0090632126,LIFESTYLE CARE PLC,"2,882.36",20/09/2023
Delivery Units,Adults and Health,Other Agencies - Third Party P,0090632127,SONESTA NURSING HOME LTD.,"2,716.68",20/09/2023
Delivery Units,Adults and Health,Other Agencies - Third Party P,0090632128,ASHTON LODGE CARE CENTRE,"3,866.00",20/09/2023
Delivery Units,Adults and Health,Other Agencies - Third Party P,0090632129,ABBEY RAVENSCROFT PARK NURSING HOME,"4,200.00",20/09/2023
Delivery Units,Adults and Health,Other Agencies - Third Party P,0090632132,FOUR SEASONS HEALTH CARE,"2,831.68",20/09/2023
Delivery Units,Adults and Health,Other Agencies - Third Party P,0090632133,CARE UK COMMUNITY PARTNERSHIPS,"3,417.76",20/09/2023
Delivery Units,Adults and Health,Other Agencies - Third Party P,0090632134,ABBEY RAVENSCROFT PARK NURSING HOME,"4,800.00",20/09/2023
Delivery Units,Adults and Health,Other Agencies - Third Party P,0090632135,ELEANOR PALMER TRUST NO 2 A/C.,"4,400.00",20/09/2023
Delivery Units,Adults and Health,Other Agencies - Third Party P,0090632140,New Century Care (Finchley),"5,425.00",20/09/2023
Delivery Units,Adults and Health,Other Agencies - Third Party P,0090632148,CARE UK COMMUNITY PARTNERSHIPS,"4,363.24",20/09/2023
Delivery Units,Adults and Health,Other Agencies - Third Party P,0090632160,JEWISH CARE,"3,140.00",20/09/2023
Delivery Units,Adults and Health,Other Agencies - Third Party P,0090632161,CEDARS NURSING HOME,"4,000.00",20/09/2023
Delivery Units,Adults and Health,Other Agencies - Third Party P,0090632169,SONESTA NURSING HOME LTD.,"1,664.34",20/09/2023
Delivery Units,Adults and Health,Other Agencies - Third Party P,0090632172,JEWISH CARE,"3,140.00",20/09/2023
Delivery Units,Adults and Health,Other Agencies - Third Party P,0090632173,SONESTA NURSING HOME LTD.,"2,716.68",20/09/2023
Delivery Units,Adults and Health,Other Agencies - Third Party P,0090632176,APPLE TREE COURT CARE HOME,"3,385.00",20/09/2023
Delivery Units,Adults and Health,Other Agencies - Third Party P,0090632179,CEDARS NURSING HOME,"4,800.00",20/09/2023
Delivery Units,Adults and Health,Other Agencies - Third Party P,0090632187,BUPA NURSING HOMES LTD - ARKLEY,"4,046.64",20/09/2023
Delivery Units,Adults and Health,Other Agencies - Third Party P,0090632190,JEWISH CARE,"3,140.00",20/09/2023
Delivery Units,Adults and Health,Other Agencies - Third Party P,0090632191,JEWISH CARE,"3,212.00",20/09/2023
Delivery Units,Adults and Health,Other Agencies - Third Party P,0090632196,FOUR SEASONS HEALTH CARE,"2,831.68",20/09/2023
Delivery Units,Adults and Health,Other Agencies - Third Party P,0090632198,Aarandale Manor Care Home,"6,400.00",20/09/2023
Delivery Units,Adults and Health,Other Agencies - Third Party P,0090632199,APPLE TREE COURT CARE HOME,"3,385.00",20/09/2023
Delivery Units,Adults and Health,Other Agencies - Third Party P,0090632204,LIFESTYLE CARE PLC,"2,882.36",20/09/2023
Delivery Units,Adults and Health,Other Agencies - Third Party P,0090632205,ABBEY RAVENSCROFT PARK NURSING HOME,"3,968.00",20/09/2023
Delivery Units,Adults and Health,Other Agencies - Third Party P,0090632209,ELEANOR PALMER TRUST NO 2 A/C.,"4,400.00",20/09/2023
Delivery Units,Adults and Health,Other Agencies - Third Party P,0090632210,LIFESTYLE CARE PLC,"2,882.36",20/09/2023
Delivery Units,Adults and Health,Other Agencies - Third Party P,0090632212,BUPA NURSING HOMES LTD - ARKLEY,"4,116.00",20/09/2023
Delivery Units,Adults and Health,Other Agencies - Third Party P,0090632213,New Century Care (Finchley),"10,528.84",20/09/2023
Delivery Units,Adults and Health,Other Agencies - Third Party P,0090632214,JEWISH CARE,"3,140.00",20/09/2023
Delivery Units,Adults and Health,Other Agencies - Third Party P,0090632215,JEWISH CARE,"3,212.00",20/09/2023
Delivery Units,Adults and Health,Other Agencies - Third Party P,0090632216,SONESTA NURSING HOME LTD.,"3,216.00",20/09/2023
Delivery Units,Adults and Health,Other Agencies - Third Party P,0090632217,FOUR SEASONS HEALTH CARE,"4,400.00",20/09/2023
Delivery Units,Adults and Health,Other Agencies - Third Party P,0090632220,LIFESTYLE CARE PLC,"5,521.16",20/09/2023
Delivery Units,Adults and Health,Other Agencies - Third Party P,0090632222,ABBEY RAVENSCROFT PARK NURSING HOME,"4,400.00",20/09/2023
Delivery Units,Adults and Health,Other Agencies - Third Party P,0090632234,FOUR SEASONS HEALTH CARE,"3,800.00",20/09/2023
Delivery Units,Adults and Health,Other Agencies - Third Party P,0090632238,BUPA CARE HOMES,"2,906.64",20/09/2023
Delivery Units,Adults and Health,Other Agencies - Third Party P,0090632240,ASHTON LODGE CARE CENTRE,"4,800.00",20/09/2023
Delivery Units,Adults and Health,Other Agencies - Third Party P,0090632241,HENRY NIHILL HOUSE,"3,900.00",20/09/2023
Delivery Units,Adults and Health,Other Agencies - Third Party P,0090632245,ABBEY RAVENSCROFT PARK NURSING HOME,"5,710.22",20/09/2023
Delivery Units,Adults and Health,Other Agencies - Third Party P,0090632246,ASHTON LODGE CARE CENTRE,"4,200.00",20/09/2023
Delivery Units,Adults and Health,Other Agencies - Third Party P,0090632250,JEWISH CARE,"3,212.00",20/09/2023
Delivery Units,Adults and Health,Other Agencies - Third Party P,0090632254,BUPA CARE HOMES,"2,906.64",20/09/2023
Delivery Units,Adults and Health,Other Agencies - Third Party P,0090632257,SONESTA NURSING HOME LTD.,"2,716.68",20/09/2023
Delivery Units,Adults and Health,Other Agencies - Third Party P,0090632258,APPLE TREE COURT CARE HOME,"4,498.60",20/09/2023
Delivery Units,Adults and Health,Other Agencies - Third Party P,0090632259,Aarandale Manor Care Home,"4,200.00",20/09/2023
Delivery Units,Adults and Health,Other Agencies - Third Party P,0090632260,ABBEY RAVENSCROFT PARK NURSING HOME,"1,300.57",20/09/2023
Delivery Units,Adults and Health,Other Agencies - Third Party P,0090632263,JEWISH CARE,"3,140.00",20/09/2023
Delivery Units,Adults and Health,Other Agencies - Third Party P,0090632268,APPLE TREE COURT CARE HOME,"4,400.00",20/09/2023
Delivery Units,Adults and Health,Other Agencies - Third Party P,0090632269,BUPA CARE HOMES,"2,906.64",20/09/2023
Delivery Units,Adults and Health,Other Agencies - Third Party P,0090632270,BUPA NURSING HOMES LTD - ARKLEY,"4,016.00",20/09/2023
Delivery Units,Adults and Health,Other Agencies - Third Party P,0090632271,ASHTON LODGE CARE CENTRE,"4,249.60",20/09/2023
Delivery Units,Adults and Health,Other Agencies - Third Party P,0090632277,SONESTA NURSING HOME LTD.,"2,716.68",20/09/2023
Delivery Units,Adults and Health,Other Agencies - Third Party P,0090632279,APPLE TREE COURT CARE HOME,"5,400.00",20/09/2023
Delivery Units,Adults and Health,Other Agencies - Third Party P,0090632280,New Century Care (Finchley),"5,208.00",20/09/2023
Delivery Units,Adults and Health,Other Agencies - Third Party P,0090632281,CEDARS NURSING HOME,"5,200.00",20/09/2023
Delivery Units,Adults and Health,Other Agencies - Third Party P,0090632282,ASHTON LODGE CARE CENTRE,"4,200.00",20/09/2023
Delivery Units,Adults and Health,Other Agencies - Third Party P,0090632284,FOUR SEASONS HEALTH CARE,"3,684.00",20/09/2023
Delivery Units,Adults and Health,Other Agencies - Third Party P,0090632285,FOUR SEASONS HEALTH CARE,"2,831.68",20/09/2023
Delivery Units,Adults and Health,Other Agencies - Third Party P,0090632286,BUPA CARE HOMES,"2,906.64",20/09/2023
Delivery Units,Adults and Health,Other Agencies - Third Party P,0090632287,APPLE TREE COURT CARE HOME,"3,865.80",20/09/2023
Delivery Units,Adults and Health,Other Agencies - Third Party P,0090632291,ABBEY RAVENSCROFT PARK NURSING HOME,"4,200.00",20/09/2023
Delivery Units,Adults and Health,Other Agencies - Third Party P,0090632293,New Century Care (Finchley),"5,208.00",20/09/2023
Delivery Units,Adults and Health,Other Agencies - Third Party P,0090632294,CEDARS NURSING HOME,"5,200.00",20/09/2023
Delivery Units,Adults and Health,Other Agencies - Third Party P,0090632295,CARE UK COMMUNITY PARTNERSHIPS,"4,363.24",20/09/2023
Delivery Units,Adults and Health,Other Agencies - Third Party P,0090632296,APPLE TREE COURT CARE HOME,"3,969.20",20/09/2023
Delivery Units,Adults and Health,Other Agencies - Third Party P,0090632297,ABBEY RAVENSCROFT PARK NURSING HOME,"4,800.00",20/09/2023
Delivery Units,Adults and Health,Other Agencies - Third Party P,0090632298,Aarandale Manor Care Home,"3,963.24",20/09/2023
Delivery Units,Adults and Health,Other Agencies - Third Party P,0090632299,ABBEY RAVENSCROFT PARK NURSING HOME,"4,800.00",20/09/2023
Delivery Units,Adults and Health,Other Agencies - Third Party P,0090632300,APPLE TREE COURT CARE HOME,"-13,635.72",20/09/2023
Delivery Units,Adults and Health,Other Agencies - Third Party P,0090632301,APPLE TREE COURT CARE HOME,"1,000.00",20/09/2023
Delivery Units,Adults and Health,Other Agencies - Third Party P,0090632305,JEWISH CARE,"3,212.00",20/09/2023
Delivery Units,Adults and Health,Other Agencies - Third Party P,0090632308,SONESTA NURSING HOME LTD.,97.02,20/09/2023
Delivery Units,Adults and Health,Other Agencies - Third Party P,0090632309,APPLE TREE COURT CARE HOME,"1,208.93",20/09/2023
Delivery Units,Adults and Health,Other Agencies - Third Party P,0090632310,ABBEY RAVENSCROFT PARK NURSING HOME,628.57,20/09/2023
Delivery Units,Adults and Health,Other Agencies - Third Party P,0090632311,LIFESTYLE CARE PLC,"3,792.59",20/09/2023
Delivery Units,Adults and Health,Other Agencies - Third Party P,0090632312,JEWISH CARE,"3,140.00",20/09/2023
Delivery Units,Adults and Health,Other Agencies - Third Party P,0090632313,ASHTON LODGE CARE CENTRE,"9,064.29",20/09/2023
Delivery Units,Adults and Health,Other Agencies - Third Party P,0090632314,ABBEY RAVENSCROFT PARK NURSING HOME,"4,800.00",20/09/2023
Delivery Units,Adults and Health,Other Agencies - Third Party P,0090632316,ASHTON LODGE CARE CENTRE,150.00,20/09/2023
Delivery Units,Adults and Health,Other Agencies - Third Party P,0090632317,ABBEY RAVENSCROFT PARK NURSING HOME,"5,710.23",20/09/2023
Delivery Units,Adults and Health,Other Agencies - Third Party P,0090632320,Aarandale Manor Care Home,"4,200.00",20/09/2023
Delivery Units,Adults and Health,Other Agencies - Third Party P,0090632325,SAGE NURSING HOME,"4,400.00",20/09/2023
Delivery Units,Adults and Health,Other Agencies - Third Party P,0090632333,New Century Care (Finchley),"5,208.00",20/09/2023
Delivery Units,Adults and Health,Other Agencies - Third Party P,0090632334,LIFESTYLE CARE PLC,"2,882.36",20/09/2023
Delivery Units,Adults and Health,Other Agencies - Third Party P,0090632338,ABBEY RAVENSCROFT PARK NURSING HOME,"4,800.00",20/09/2023
Delivery Units,Adults and Health,Other Agencies - Third Party P,0090632341,JEWISH CARE,"3,212.00",20/09/2023
Delivery Units,Adults and Health,Other Agencies - Third Party P,0090632343,ELEANOR PALMER TRUST NO 2 A/C.,"4,400.00",20/09/2023
Delivery Units,Adults and Health,Other Agencies - Third Party P,0090632345,HENRY NIHILL HOUSE,"3,816.00",20/09/2023
Delivery Units,Adults and Health,Other Agencies - Third Party P,0090632346,SONESTA NURSING HOME LTD.,"3,216.00",20/09/2023
Delivery Units,Adults and Health,Other Agencies - Third Party P,0090632347,HENRY NIHILL HOUSE,"3,816.00",20/09/2023
Delivery Units,Adults and Health,Other Agencies - Third Party P,0090632348,HENRY NIHILL HOUSE,"3,816.00",20/09/2023
Delivery Units,Adults and Health,Other Agencies - Third Party P,0090632353,Aarandale Manor Care Home,"5,200.00",20/09/2023
Delivery Units,Adults and Health,Other Agencies - Third Party P,0090632354,BUPA NURSING HOMES LTD - ARKLEY,"3,800.00",20/09/2023
Delivery Units,Adults and Health,Other Agencies - Third Party P,0090632355,ABBEY RAVENSCROFT PARK NURSING HOME,"4,800.00",20/09/2023
Delivery Units,Adults and Health,Other Agencies - Third Party P,0090632359,New Century Care (Finchley),"5,200.00",20/09/2023
Delivery Units,Adults and Health,Other Agencies - Third Party P,0090632363,APPLE TREE COURT CARE HOME,"3,385.00",20/09/2023
Delivery Units,Adults and Health,Other Agencies - Third Party P,0090632364,BUPA CARE HOMES,"2,906.64",20/09/2023
Delivery Units,Adults and Health,Other Agencies - Third Party P,0090632365,BUPA NURSING HOMES LTD - ARKLEY,"2,906.64",20/09/2023
Delivery Units,Adults and Health,Other Agencies - Third Party P,0090632366,SONESTA NURSING HOME LTD.,"12,998.28",20/09/2023
Delivery Units,Adults and Health,Other Agencies - Third Party P,0090632367,LIFESTYLE CARE PLC,"2,882.36",20/09/2023
Delivery Units,Adults and Health,Other Agencies - Third Party P,0090632368,APPLE TREE COURT CARE HOME,"3,385.00",20/09/2023
Delivery Units,Adults and Health,Other Agencies - Third Party P,0090632370,APPLE TREE COURT CARE HOME,"5,723.39",20/09/2023
Delivery Units,Adults and Health,Other Agencies - Third Party P,0090632371,ABBEY RAVENSCROFT PARK NURSING HOME,"13,742.85",20/09/2023
Delivery Units,Adults and Health,Other Agencies - Third Party P,0090632382,APPLE TREE COURT CARE HOME,"2,709.08",20/09/2023
Delivery Units,Adults and Health,Other Agencies - Third Party P,0090632387,ELEANOR PALMER TRUST NO 2 A/C.,"4,400.00",20/09/2023
Delivery Units,Adults and Health,Other Agencies - Third Party P,0090632391,ASHTON LODGE CARE CENTRE,"3,790.76",20/09/2023
Delivery Units,Adults and Health,Other Agencies - Third Party P,0090632394,ELEANOR PALMER TRUST NO 2 A/C.,"4,400.00",20/09/2023
Delivery Units,Adults and Health,Other Agencies - Third Party P,0090632400,APPLE TREE COURT CARE HOME,"3,980.00",20/09/2023
Delivery Units,Adults and Health,Other Agencies - Third Party P,0090632403,APPLE TREE COURT CARE HOME,"3,385.00",20/09/2023
Delivery Units,Adults and Health,Other Agencies - Third Party P,0090632404,APPLE TREE COURT CARE HOME,"3,385.00",20/09/2023
Delivery Units,Adults and Health,Other Agencies - Third Party P,0090632413,LIFESTYLE CARE PLC,"2,882.36",20/09/2023
Delivery Units,Adults and Health,Other Agencies - Third Party P,0090632415,FOUR SEASONS HEALTH CARE,"2,831.68",20/09/2023
Delivery Units,Adults and Health,Other Agencies - Third Party P,0090632423,APPLE TREE COURT CARE HOME,"3,385.00",20/09/2023
Delivery Units,Adults and Health,Other Agencies - Third Party P,0090632424,ABBEY RAVENSCROFT PARK NURSING HOME,"3,968.00",20/09/2023
Delivery Units,Adults and Health,Other Agencies - Third Party P,0090632425,JEWISH CARE,"3,212.00",20/09/2023
Delivery Units,Adults and Health,Other Agencies - Third Party P,0090632430,ABBEY RAVENSCROFT PARK NURSING HOME,"3,968.00",20/09/2023
Delivery Units,Adults and Health,Other Agencies - Third Party P,0090632433,BUPA NURSING HOMES LTD - ARKLEY,"2,906.64",20/09/2023
Delivery Units,Adults and Health,Other Agencies - Third Party P,0090632434,ASHTON LODGE CARE CENTRE,"4,201.60",20/09/2023
Delivery Units,Adults and Health,Other Agencies - Third Party P,0090632435,ELEANOR PALMER TRUST NO 2 A/C.,"4,400.00",20/09/2023
Delivery Units,Adults and Health,Other Agencies - Third Party P,0090632441,Aarandale Manor Care Home,"4,200.00",20/09/2023
Delivery Units,Adults and Health,Other Agencies - Third Party P,0090632442,LIFESTYLE CARE PLC,"2,882.36",20/09/2023
Delivery Units,Adults and Health,Other Agencies - Third Party P,0090632443,ELEANOR PALMER TRUST NO 2 A/C.,"4,720.00",20/09/2023
Delivery Units,Adults and Health,Other Agencies - Third Party P,0090632446,JEWISH CARE,"3,212.00",20/09/2023
Delivery Units,Adults and Health,Other Agencies - Third Party P,0090632447,ELEANOR PALMER TRUST NO 2 A/C.,"4,400.00",20/09/2023
Delivery Units,Adults and Health,Other Agencies - Third Party P,0090632448,Lancam Care Services Limited,"3,916.00",20/09/2023
Delivery Units,Adults and Health,Other Agencies - Third Party P,0090632451,LIFESTYLE CARE PLC,"2,882.36",20/09/2023
Delivery Units,Adults and Health,Other Agencies - Third Party P,0090632454,SAGE NURSING HOME,"3,256.00",20/09/2023
Delivery Units,Adults and Health,Other Agencies - Third Party P,0090632455,JEWISH CARE,"8,479.92",20/09/2023
Delivery Units,Adults and Health,Other Agencies - Third Party P,0090632456,Lancam Care Services Limited,"4,196.00",20/09/2023
Delivery Units,Adults and Health,Other Agencies - Third Party P,0090632458,FOUR SEASONS HEALTH CARE,"2,831.68",20/09/2023
Delivery Units,Adults and Health,Other Agencies - Third Party P,0090632459,Lancam Care Services Limited,"4,196.00",20/09/2023
Delivery Units,Adults and Health,Other Agencies - Third Party P,0090632463,JEWISH CARE,"4,892.00",20/09/2023
Delivery Units,Adults and Health,Other Agencies - Third Party P,0090632464,JEWISH CARE,"3,140.00",20/09/2023
Delivery Units,Adults and Health,Other Agencies - Third Party P,0090632465,APPLE TREE COURT CARE HOME,"4,763.24",20/09/2023
Delivery Units,Adults and Health,Other Agencies - Third Party P,0090632467,New Century Care (Finchley),"4,774.00",20/09/2023
Delivery Units,Adults and Health,Other Agencies - Third Party P,0090632468,ABBEY RAVENSCROFT PARK NURSING HOME,"4,400.00",20/09/2023
Delivery Units,Adults and Health,Other Agencies - Third Party P,0090632469,FOUR SEASONS HEALTH CARE,"2,831.68",20/09/2023
Delivery Units,Adults and Health,Other Agencies - Third Party P,0090632470,LIFESTYLE CARE PLC,"2,882.36",20/09/2023
Delivery Units,Adults and Health,Other Agencies - Third Party P,0090632471,ABBEY RAVENSCROFT PARK NURSING HOME,"4,800.00",20/09/2023
Delivery Units,Adults and Health,Other Agencies - Third Party P,0090632472,BUPA NURSING HOMES LTD - ARKLEY,"3,616.00",20/09/2023
Delivery Units,Adults and Health,Other Agencies - Third Party P,0090632476,APPLE TREE COURT CARE HOME,"4,763.24",20/09/2023
Delivery Units,Adults and Health,Other Agencies - Third Party P,0090632478,BUPA NURSING HOMES LTD - ARKLEY,"4,116.00",20/09/2023
Delivery Units,Adults and Health,Other Agencies - Third Party P,0090632479,SAGE NURSING HOME,"4,400.00",20/09/2023
Delivery Units,Adults and Health,Other Agencies - Third Party P,0090632482,ABBEY RAVENSCROFT PARK NURSING HOME,"4,800.00",20/09/2023
Delivery Units,Adults and Health,Other Agencies - Third Party P,0090632483,FOUR SEASONS HEALTH CARE,"2,831.68",20/09/2023
Delivery Units,Adults and Health,Other Agencies - Third Party P,0090632486,CEDARS NURSING HOME,"5,600.00",20/09/2023
Delivery Units,Adults and Health,Other Agencies - Third Party P,0090632488,APPLE TREE COURT CARE HOME,"3,865.80",20/09/2023
Delivery Units,Adults and Health,Other Agencies - Third Party P,0090632490,ASHTON LODGE CARE CENTRE,"4,800.00",20/09/2023
Delivery Units,Adults and Health,Other Agencies - Third Party P,0090632493,BUPA CARE HOMES,"2,906.64",20/09/2023
Delivery Units,Adults and Health,Other Agencies - Third Party P,0090632495,BUPA NURSING HOMES LTD - ARKLEY,"2,906.64",20/09/2023
Delivery Units,Adults and Health,Other Agencies - Third Party P,0090632497,CEDARS NURSING HOME,"5,600.00",20/09/2023
Delivery Units,Adults and Health,Other Agencies - Third Party P,0090632498,ABBEY RAVENSCROFT PARK NURSING HOME,"5,200.00",20/09/2023
Delivery Units,Adults and Health,Other Agencies - Third Party P,0090632502,ABBEY RAVENSCROFT PARK NURSING HOME,"4,800.00",20/09/2023
Delivery Units,Adults and Health,Other Agencies - Third Party P,0090632503,ABBEY RAVENSCROFT PARK NURSING HOME,"4,800.00",20/09/2023
Delivery Units,Adults and Health,Other Agencies - Third Party P,0090632754,Hamberley Care 1 Ltd,"4,415.53",20/09/2023
Delivery Units,Adults and Health,Other Agencies - Third Party P,0090632755,Hamberley Care 1 Ltd,"3,090.87",20/09/2023
Delivery Units,Adults and Health,Other Agencies - Third Party P,0090634223,Stamford Nursing Centre,"4,317.86",25/09/2023
Delivery Units,Adults and Health,Other Agencies - Third Party P,0090634661,Milford Lodge Residential Home,"4,207.14",25/09/2023
Delivery Units,Adults and Health,Other Agencies - Third Party P,0090634855,Candlewood House Care Home,"8,317.76",25/09/2023
Delivery Units,Adults and Health,Other Agencies - Third Party P,0090634857,COOPERSCROFT CARE HOME,"6,428.57",25/09/2023
Delivery Units,Adults and Health,Other Agencies - Third Party P,0090634864,Oakland Primecare Ltd t/a Elsyng House,"7,611.43",25/09/2023
Delivery Units,Adults and Health,Other Agencies - Third Party P,0090634866,Karuna Manor,"2,528.53",25/09/2023
Delivery Units,Adults and Health,Other Agencies - Third Party P,0090634879,Chalfont Lodge (Barchester Healthcare Ho,"5,960.61",25/09/2023
Delivery Units,Adults and Health,Other Agencies - Third Party P,0090635948,HC-One Oval LTD,"3,783.99",26/09/2023
Delivery Units,Adults and Health,Other Agencies - Third Party P,0090635959,WESTMINSTER HEALTH CARE LTD,"2,294.44",26/09/2023
Delivery Units,Adults and Health,Other Agencies - Third Party P,0090635960,WESTMINSTER HEALTH CARE LTD,"4,708.50",26/09/2023
Delivery Units,Adults and Health,Other Agencies - Third Party P,0090635961,WESTMINSTER HEALTH CARE LTD,"2,785.71",26/09/2023
Delivery Units,Adults and Health,Other Agencies - Third Party P,0090635962,WESTMINSTER HEALTH CARE LTD,"4,767.43",26/09/2023
Delivery Units,Adults and Health,Other Agencies - Third Party P,0090635963,WESTMINSTER HEALTH CARE LTD,"5,103.47",26/09/2023
Delivery Units,Adults and Health,Other Agencies - Third Party P,0090635964,WESTMINSTER HEALTH CARE LTD,"5,103.47",26/09/2023
Delivery Units,Adults and Health,Other Agencies - Third Party P,0090635965,WESTMINSTER HEALTH CARE LTD,"2,370.92",26/09/2023
Delivery Units,Adults and Health,Other Agencies - Third Party P,0090635966,WESTMINSTER HEALTH CARE LTD,"4,865.45",26/09/2023
Delivery Units,Adults and Health,Other Agencies - Third Party P,0090635967,WESTMINSTER HEALTH CARE LTD,"2,878.57",26/09/2023
Delivery Units,Adults and Health,Other Agencies - Third Party P,0090635968,WESTMINSTER HEALTH CARE LTD,"4,926.34",26/09/2023
Delivery Units,Adults and Health,Other Agencies - Third Party P,0090635969,WESTMINSTER HEALTH CARE LTD,"5,273.59",26/09/2023
Delivery Units,Adults and Health,Other Agencies - Third Party P,0090635970,WESTMINSTER HEALTH CARE LTD,"5,273.59",26/09/2023
Delivery Units,Adults and Health,Other Agencies - Third Party P,0090635971,WESTMINSTER HEALTH CARE LTD,"10,285.71",26/09/2023
Delivery Units,Adults and Health,Other Agencies - Third Party P,0090635972,WESTMINSTER HEALTH CARE LTD,"2,370.92",26/09/2023
Delivery Units,Adults and Health,Other Agencies - Third Party P,0090635973,WESTMINSTER HEALTH CARE LTD,"4,865.45",26/09/2023
Delivery Units,Adults and Health,Other Agencies - Third Party P,0090635974,WESTMINSTER HEALTH CARE LTD,"2,878.57",26/09/2023
Delivery Units,Adults and Health,Other Agencies - Third Party P,0090635975,WESTMINSTER HEALTH CARE LTD,"4,926.34",26/09/2023
Delivery Units,Adults and Health,Other Agencies - Third Party P,0090635976,WESTMINSTER HEALTH CARE LTD,"5,273.59",26/09/2023
Delivery Units,Adults and Health,Other Agencies - Third Party P,0090635977,WESTMINSTER HEALTH CARE LTD,"5,273.59",26/09/2023
Delivery Units,Adults and Health,Other Agencies - Third Party P,0090635978,WESTMINSTER HEALTH CARE LTD,"8,857.14",26/09/2023
Delivery Units,Adults and Health,Other Agencies - Third Party P,0090636455,Hamberley Care 1 Ltd,"2,271.09",28/09/2023
Delivery Units,Adults and Health,Other Agencies - Third Party P,0090636456,Hamberley Care 1 Ltd,"3,198.86",28/09/2023
Delivery Units,Adults and Health,Other Agencies - Third Party P,0090636457,Hamberley Care 1 Ltd,"3,305.49",28/09/2023
Delivery Units,Adults and Health,Other Agencies - Third Party P,0090636820,Alexandra House (Runwood Homes),"5,142.86",28/09/2023
Delivery Units,Adults and Health,Other Agencies - Third Party P,0090626890,FINBOND LIMITED,"3,782.00",01/09/2023
Delivery Units,Adults and Health,Other Agencies - Third Party P,0090626891,FINBOND LIMITED,"3,660.00",01/09/2023
Delivery Units,Adults and Health,Other Agencies - Third Party P,0090627022,FINBOND LIMITED,"2,914.29",01/09/2023
Delivery Units,Adults and Health,Other Agencies - Third Party P,0090627023,FINBOND LIMITED,"3,035.71",01/09/2023
Delivery Units,Adults and Health,Other Agencies - Third Party P,0090627024,FINBOND LIMITED,"3,782.00",01/09/2023
Delivery Units,Adults and Health,Other Agencies - Third Party P,0090627212,TENTERDEN HOUSE,"4,280.26",05/09/2023
Delivery Units,Adults and Health,Other Agencies - Third Party P,0090628764,Achieve Together Limited,"11,881.44",08/09/2023
Delivery Units,Adults and Health,Other Agencies - Third Party P,0090628765,Achieve Together Limited,"3,419.96",08/09/2023
Delivery Units,Adults and Health,Other Agencies - Third Party P,0090628787,GCH (North London) t/a The Tudors,"2,346.00",08/09/2023
Delivery Units,Adults and Health,Other Agencies - Third Party P,0090631995,ROSEACRES CARE HOME LIMITED,"3,336.00",20/09/2023
Delivery Units,Adults and Health,Other Agencies - Third Party P,0090632016,CATHERINE LODGE,"3,580.00",20/09/2023
Delivery Units,Adults and Health,Other Agencies - Third Party P,0090632018,CARLTON COURT (TLC GROUP),"5,800.00",20/09/2023
Delivery Units,Adults and Health,Other Agencies - Third Party P,0090632024,CARLTON COURT (TLC GROUP),"5,400.00",20/09/2023
Delivery Units,Adults and Health,Other Agencies - Third Party P,0090632030,ROSEACRES CARE HOME LIMITED,"3,416.00",20/09/2023
Delivery Units,Adults and Health,Other Agencies - Third Party P,0090632099,CATHERINE LODGE,"3,800.00",20/09/2023
Delivery Units,Adults and Health,Other Agencies - Third Party P,0090632105,ROSEACRES CARE HOME LIMITED,"2,900.00",20/09/2023
Delivery Units,Adults and Health,Other Agencies - Third Party P,0090632122,ROSEACRES CARE HOME LIMITED,"3,616.00",20/09/2023
Delivery Units,Adults and Health,Other Agencies - Third Party P,0090632130,CATHERINE LODGE,"3,800.00",20/09/2023
Delivery Units,Adults and Health,Other Agencies - Third Party P,0090632151,ROSEACRES CARE HOME LIMITED,"-4,142.86",20/09/2023
Delivery Units,Adults and Health,Other Agencies - Third Party P,0090632158,CATHERINE LODGE,"3,000.00",20/09/2023
Delivery Units,Adults and Health,Other Agencies - Third Party P,0090632162,CARLTON COURT (TLC GROUP),"6,376.16",20/09/2023
Delivery Units,Adults and Health,Other Agencies - Third Party P,0090632166,ROSEACRES CARE HOME LIMITED,"3,336.00",20/09/2023
Delivery Units,Adults and Health,Other Agencies - Third Party P,0090632193,ROSEACRES CARE HOME LIMITED,"3,616.00",20/09/2023
Delivery Units,Adults and Health,Other Agencies - Third Party P,0090632200,CATHERINE LODGE,"3,200.00",20/09/2023
Delivery Units,Adults and Health,Other Agencies - Third Party P,0090632208,ROSEACRES CARE HOME LIMITED,"2,900.00",20/09/2023
Delivery Units,Adults and Health,Other Agencies - Third Party P,0090632225,CATHERINE LODGE,"3,800.00",20/09/2023
Delivery Units,Adults and Health,Other Agencies - Third Party P,0090632235,CATHERINE LODGE,"3,800.00",20/09/2023
Delivery Units,Adults and Health,Other Agencies - Third Party P,0090632242,ROSEACRES CARE HOME LIMITED,407.14,20/09/2023
Delivery Units,Adults and Health,Other Agencies - Third Party P,0090632244,ROSEACRES CARE HOME LIMITED,"5,292.86",20/09/2023
Delivery Units,Adults and Health,Other Agencies - Third Party P,0090632247,ROSEACRES CARE HOME LIMITED,"3,900.00",20/09/2023
Delivery Units,Adults and Health,Other Agencies - Third Party P,0090632251,CATHERINE LODGE,"3,200.00",20/09/2023
Delivery Units,Adults and Health,Other Agencies - Third Party P,0090632264,ROSEACRES CARE HOME LIMITED,"3,332.15",20/09/2023
Delivery Units,Adults and Health,Other Agencies - Third Party P,0090632273,CATHERINE LODGE,"3,800.00",20/09/2023
Delivery Units,Adults and Health,Other Agencies - Third Party P,0090632288,CARLTON COURT (TLC GROUP),"5,200.00",20/09/2023
Delivery Units,Adults and Health,Other Agencies - Third Party P,0090632324,ROSEACRES CARE HOME LIMITED,"3,400.00",20/09/2023
Delivery Units,Adults and Health,Other Agencies - Third Party P,0090632332,ROSEACRES CARE HOME LIMITED,"3,620.00",20/09/2023
Delivery Units,Adults and Health,Other Agencies - Third Party P,0090632335,ROSEACRES CARE HOME LIMITED,"3,800.00",20/09/2023
Delivery Units,Adults and Health,Other Agencies - Third Party P,0090632336,ROSEACRES CARE HOME LIMITED,"3,800.00",20/09/2023
Delivery Units,Adults and Health,Other Agencies - Third Party P,0090632340,CATHERINE LODGE,"1,085.72",20/09/2023
Delivery Units,Adults and Health,Other Agencies - Third Party P,0090632362,CATHERINE LODGE,"3,800.00",20/09/2023
Delivery Units,Adults and Health,Other Agencies - Third Party P,0090632369,ROSEACRES CARE HOME LIMITED,"3,210.71",20/09/2023
Delivery Units,Adults and Health,Other Agencies - Third Party P,0090632402,ROSEACRES CARE HOME LIMITED,"3,616.00",20/09/2023
Delivery Units,Adults and Health,Other Agencies - Third Party P,0090632437,ROSEACRES CARE HOME LIMITED,"3,416.00",20/09/2023
Delivery Units,Adults and Health,Other Agencies - Third Party P,0090632460,ROSEACRES CARE HOME LIMITED,"3,616.00",20/09/2023
Delivery Units,Adults and Health,Other Agencies - Third Party P,0090633090,Achieve Together Limited,"3,166.64",20/09/2023
Delivery Units,Adults and Health,Other Agencies - Third Party P,0090633091,Achieve Together Limited,"11,001.32",20/09/2023
Delivery Units,Adults and Health,Other Agencies - Third Party P,0090633092,Achieve Together Limited,"1,221.36",20/09/2023
Delivery Units,Adults and Health,Other Agencies - Third Party P,0090633093,Achieve Together Limited,"4,243.43",20/09/2023
Delivery Units,Adults and Health,Other Agencies - Third Party P,0090634219,Optimum Support Ltd,"5,314.00",25/09/2023
Delivery Units,Adults and Health,Other Agencies - Third Party P,0090628779,LIVABILITY,"3,528.28",08/09/2023
Delivery Units,Adults and Health,Other Agencies - Third Party P,0090628781,LIVABILITY,"3,740.44",08/09/2023
Delivery Units,Adults and Health,Other Agencies - Third Party P,0090628784,LIVABILITY,"4,720.12",08/09/2023
Delivery Units,Adults and Health,Other Agencies - Third Party P,0090632461,WOODFIELD HOUSE,"14,081.60",20/09/2023
Delivery Units,Adults and Health,Other Agencies - Third Party P,0090627201,AGUDAS ISRAEL HOUSING ASSCTN LTD,"4,428.57",05/09/2023
Delivery Units,Adults and Health,Other Agencies - Third Party P,0090627202,AGUDAS ISRAEL HOUSING ASSCTN LTD,"12,493.00",05/09/2023
Delivery Units,Adults and Health,Other Agencies - Third Party P,0090626880,Karuna Manor,"6,428.57",01/09/2023
Delivery Units,Adults and Health,Other Agencies - Third Party P,0090626886,THE WOODSIDE HOME,"3,100.00",01/09/2023
Delivery Units,Adults and Health,Other Agencies - Third Party P,0090626887,THE WOODSIDE HOME,"2,800.00",01/09/2023
Delivery Units,Adults and Health,Other Agencies - Third Party P,0090627019,Enviro Medical Limited - Coniston House,"15,750.00",01/09/2023
Delivery Units,Adults and Health,Other Agencies - Third Party P,0090627088,ANASTASIA LODGE,"3,770.00",05/09/2023
Delivery Units,Adults and Health,Other Agencies - Third Party P,0090627208,Friends of The Elderly (Retired Nurses,"5,358.35",05/09/2023
Delivery Units,Adults and Health,Other Agencies - Third Party P,0090628086,Boughton Lodge Care Home,"3,100.00",06/09/2023
Delivery Units,Adults and Health,Other Agencies - Third Party P,0090628758,THE WOODSIDE HOME,"2,800.00",08/09/2023
Delivery Units,Adults and Health,Other Agencies - Third Party P,0090628766,Allied Care (MH) Ltd,"5,168.00",08/09/2023
Delivery Units,Adults and Health,Other Agencies - Third Party P,0090628767,THE WOODSIDE HOME,"3,200.00",08/09/2023
Delivery Units,Adults and Health,Other Agencies - Third Party P,0090628768,THE WOODSIDE HOME,"2,676.00",08/09/2023
Delivery Units,Adults and Health,Other Agencies - Third Party P,0090628769,THE WOODSIDE HOME,"2,540.00",08/09/2023
Delivery Units,Adults and Health,Other Agencies - Third Party P,0090629755,QUANTUM CARE LIMITED,"4,207.14",12/09/2023
Delivery Units,Adults and Health,Other Agencies - Third Party P,0090629892,Allied Care (MH) Ltd,"5,168.00",12/09/2023
Delivery Units,Adults and Health,Other Agencies - Third Party P,0090629948,Acacia Lodge Care Home Ltd,"1,900.00",13/09/2023
Delivery Units,Adults and Health,Other Agencies - Third Party P,0090629952,Barchester Healthcare,"5,456.00",13/09/2023
Delivery Units,Adults and Health,Other Agencies - Third Party P,0090629957,B & M CARE,"2,200.00",13/09/2023
Delivery Units,Adults and Health,Other Agencies - Third Party P,0090630027,Brownlow Enterprises Ltd,"3,556.01",13/09/2023
Delivery Units,Adults and Health,Other Agencies - Third Party P,0090630029,Brownlow Enterprises Ltd,"3,578.33",13/09/2023
Delivery Units,Adults and Health,Other Agencies - Third Party P,0090630030,Brownlow Enterprises Ltd,"3,556.01",13/09/2023
Delivery Units,Adults and Health,Other Agencies - Third Party P,0090630031,Brownlow Enterprises Ltd,"3,830.71",13/09/2023
Delivery Units,Adults and Health,Other Agencies - Third Party P,0090630032,Brownlow Enterprises Ltd,"3,334.67",13/09/2023
Delivery Units,Adults and Health,Other Agencies - Third Party P,0090630033,Brownlow Enterprises Ltd,"3,578.33",13/09/2023
Delivery Units,Adults and Health,Other Agencies - Third Party P,0090630036,Brownlow Enterprises Ltd,"3,830.67",13/09/2023
Delivery Units,Adults and Health,Other Agencies - Third Party P,0090630039,Brownlow Enterprises Ltd,"3,830.67",13/09/2023
Delivery Units,Adults and Health,Other Agencies - Third Party P,0090630040,Brownlow Enterprises Ltd,"3,830.67",13/09/2023
Delivery Units,Adults and Health,Other Agencies - Third Party P,0090630104,Brownlow Enterprises Ltd,"1,112.14",13/09/2023
Delivery Units,Adults and Health,Other Agencies - Third Party P,0090631000,NIGHTINGALE HOUSE,"3,941.43",15/09/2023
Delivery Units,Adults and Health,Other Agencies - Third Party P,0090631001,NIGHTINGALE HOUSE,"3,826.29",15/09/2023
Delivery Units,Adults and Health,Other Agencies - Third Party P,0090631002,NIGHTINGALE HOUSE,"3,782.00",15/09/2023
Delivery Units,Adults and Health,Other Agencies - Third Party P,0090631004,NIGHTINGALE HOUSE,"3,826.29",15/09/2023
Delivery Units,Adults and Health,Other Agencies - Third Party P,0090631007,Newgrange of Cheshunt Ltd,"3,755.43",15/09/2023
Delivery Units,Adults and Health,Other Agencies - Third Party P,0090631980,BUPA CARE HOMES,"2,732.00",20/09/2023
Delivery Units,Adults and Health,Other Agencies - Third Party P,0090631986,ELEANOR PALMER TRUST NO 2 A/C.,"4,000.00",20/09/2023
Delivery Units,Adults and Health,Other Agencies - Third Party P,0090631989,JEWISH CARE,"4,481.48",20/09/2023
Delivery Units,Adults and Health,Other Agencies - Third Party P,0090631992,JEWISH CARE,"3,056.00",20/09/2023
Delivery Units,Adults and Health,Other Agencies - Third Party P,0090631994,JEWISH CARE,"3,056.00",20/09/2023
Delivery Units,Adults and Health,Other Agencies - Third Party P,0090632006,JEWISH CARE,"3,056.00",20/09/2023
Delivery Units,Adults and Health,Other Agencies - Third Party P,0090632008,JEWISH CARE,"1,746.29",20/09/2023
Delivery Units,Adults and Health,Other Agencies - Third Party P,0090632019,JEWISH CARE,"3,056.00",20/09/2023
Delivery Units,Adults and Health,Other Agencies - Third Party P,0090632023,JEWISH CARE,"5,286.40",20/09/2023
Delivery Units,Adults and Health,Other Agencies - Third Party P,0090632025,NAZARETH HOUSE,489.32,20/09/2023
Delivery Units,Adults and Health,Other Agencies - Third Party P,0090632027,LIFESTYLE CARE PLC,"3,200.00",20/09/2023
Delivery Units,Adults and Health,Other Agencies - Third Party P,0090632028,ELMHURST RESIDENTIAL HOME,"3,800.00",20/09/2023
Delivery Units,Adults and Health,Other Agencies - Third Party P,0090632029,JEWISH CARE,"3,056.00",20/09/2023
Delivery Units,Adults and Health,Other Agencies - Third Party P,0090632034,NAZARETH HOUSE,"2,890.08",20/09/2023
Delivery Units,Adults and Health,Other Agencies - Third Party P,0090632035,JEWISH CARE,"2,896.00",20/09/2023
Delivery Units,Adults and Health,Other Agencies - Third Party P,0090632048,NAZARETH HOUSE,"2,740.00",20/09/2023
Delivery Units,Adults and Health,Other Agencies - Third Party P,0090632050,ELM PARK LODGE,"3,384.92",20/09/2023
Delivery Units,Adults and Health,Other Agencies - Third Party P,0090632052,JEWISH CARE,"3,056.00",20/09/2023
Delivery Units,Adults and Health,Other Agencies - Third Party P,0090632064,THE LIMES RESIDENTIAL HOME,"3,376.00",20/09/2023
Delivery Units,Adults and Health,Other Agencies - Third Party P,0090632071,JEWISH CARE,"3,056.00",20/09/2023
Delivery Units,Adults and Health,Other Agencies - Third Party P,0090632072,JEWISH CARE,"3,056.00",20/09/2023
Delivery Units,Adults and Health,Other Agencies - Third Party P,0090632073,JEWISH CARE,"3,056.00",20/09/2023
Delivery Units,Adults and Health,Other Agencies - Third Party P,0090632076,THE LIMES RESIDENTIAL HOME,"3,336.00",20/09/2023
Delivery Units,Adults and Health,Other Agencies - Third Party P,0090632077,JEWISH CARE,"2,658.11",20/09/2023
Delivery Units,Adults and Health,Other Agencies - Third Party P,0090632081,JEWISH CARE,"2,896.00",20/09/2023
Delivery Units,Adults and Health,Other Agencies - Third Party P,0090632082,ELEANOR PALMER TRUST NO 2 A/C.,"3,456.00",20/09/2023
Delivery Units,Adults and Health,Other Agencies - Third Party P,0090632083,ELEANOR PALMER TRUST NO 2 A/C.,"3,456.00",20/09/2023
Delivery Units,Adults and Health,Other Agencies - Third Party P,0090632084,ELEANOR PALMER TRUST NO 2 A/C.,"3,456.00",20/09/2023
Delivery Units,Adults and Health,Other Agencies - Third Party P,0090632091,Aarandale Manor Care Home,"5,000.00",20/09/2023
Delivery Units,Adults and Health,Other Agencies - Third Party P,0090632093,JEWISH CARE,"3,720.36",20/09/2023
Delivery Units,Adults and Health,Other Agencies - Third Party P,0090632098,CEDARS NURSING HOME,"4,800.00",20/09/2023
Delivery Units,Adults and Health,Other Agencies - Third Party P,0090632100,JEWISH CARE,"3,056.00",20/09/2023
Delivery Units,Adults and Health,Other Agencies - Third Party P,0090632104,BUPA CARE HOMES,"3,577.92",20/09/2023
Delivery Units,Adults and Health,Other Agencies - Third Party P,0090632106,SAGE NURSING HOME,"3,620.00",20/09/2023
Delivery Units,Adults and Health,Other Agencies - Third Party P,0090632108,ELEANOR PALMER TRUST NO 2 A/C.,"4,000.00",20/09/2023
Delivery Units,Adults and Health,Other Agencies - Third Party P,0090632109,JEWISH CARE,"3,056.00",20/09/2023
Delivery Units,Adults and Health,Other Agencies - Third Party P,0090632111,NAZARETH HOUSE,"2,890.08",20/09/2023
Delivery Units,Adults and Health,Other Agencies - Third Party P,0090632116,ELMHURST RESIDENTIAL HOME,"3,600.00",20/09/2023
Delivery Units,Adults and Health,Other Agencies - Third Party P,0090632118,NAZARETH HOUSE,"2,740.00",20/09/2023
Delivery Units,Adults and Health,Other Agencies - Third Party P,0090632124,APPLE TREE COURT CARE HOME,"3,400.00",20/09/2023
Delivery Units,Adults and Health,Other Agencies - Third Party P,0090632125,APPLE TREE COURT CARE HOME,"3,400.00",20/09/2023
Delivery Units,Adults and Health,Other Agencies - Third Party P,0090632137,THE LIMES RESIDENTIAL HOME,"3,620.00",20/09/2023
Delivery Units,Adults and Health,Other Agencies - Third Party P,0090632141,JEWISH CARE,"2,896.00",20/09/2023
Delivery Units,Adults and Health,Other Agencies - Third Party P,0090632143,APPLE TREE COURT CARE HOME,"4,352.00",20/09/2023
Delivery Units,Adults and Health,Other Agencies - Third Party P,0090632147,LIFESTYLE CARE PLC,"3,400.00",20/09/2023
Delivery Units,Adults and Health,Other Agencies - Third Party P,0090632149,Aarandale Manor Care Home,"5,200.00",20/09/2023
Delivery Units,Adults and Health,Other Agencies - Third Party P,0090632155,SAGE NURSING HOME,"2,856.00",20/09/2023
Delivery Units,Adults and Health,Other Agencies - Third Party P,0090632159,THE LIMES RESIDENTIAL HOME,"2,892.00",20/09/2023
Delivery Units,Adults and Health,Other Agencies - Third Party P,0090632163,NAZARETH HOUSE,"2,740.00",20/09/2023
Delivery Units,Adults and Health,Other Agencies - Third Party P,0090632165,THE LIMES RESIDENTIAL HOME,"2,892.00",20/09/2023
Delivery Units,Adults and Health,Other Agencies - Third Party P,0090632171,ELEANOR PALMER TRUST NO 2 A/C.,"3,456.00",20/09/2023
Delivery Units,Adults and Health,Other Agencies - Third Party P,0090632175,ELEANOR PALMER TRUST NO 2 A/C.,"4,000.00",20/09/2023
Delivery Units,Adults and Health,Other Agencies - Third Party P,0090632177,JEWISH CARE,"2,896.00",20/09/2023
Delivery Units,Adults and Health,Other Agencies - Third Party P,0090632178,JEWISH CARE,"3,056.00",20/09/2023
Delivery Units,Adults and Health,Other Agencies - Third Party P,0090632182,APPLE TREE COURT CARE HOME,"4,400.00",20/09/2023
Delivery Units,Adults and Health,Other Agencies - Third Party P,0090632183,JEWISH CARE,"3,056.00",20/09/2023
Delivery Units,Adults and Health,Other Agencies - Third Party P,0090632184,ABBEY RAVENSCROFT PARK NURSING HOME,"4,032.20",20/09/2023
Delivery Units,Adults and Health,Other Agencies - Third Party P,0090632185,JEWISH CARE,"2,896.00",20/09/2023
Delivery Units,Adults and Health,Other Agencies - Third Party P,0090632188,JEWISH CARE,"3,056.00",20/09/2023
Delivery Units,Adults and Health,Other Agencies - Third Party P,0090632189,JEWISH CARE,"3,056.00",20/09/2023
Delivery Units,Adults and Health,Other Agencies - Third Party P,0090632192,ELEANOR PALMER TRUST NO 2 A/C.,"3,456.00",20/09/2023
Delivery Units,Adults and Health,Other Agencies - Third Party P,0090632194,BUPA CARE HOMES,"2,976.00",20/09/2023
Delivery Units,Adults and Health,Other Agencies - Third Party P,0090632195,LIFESTYLE CARE PLC,"3,600.00",20/09/2023
Delivery Units,Adults and Health,Other Agencies - Third Party P,0090632197,NAZARETH HOUSE,"2,890.08",20/09/2023
Delivery Units,Adults and Health,Other Agencies - Third Party P,0090632201,BUPA CARE HOMES,"2,884.00",20/09/2023
Delivery Units,Adults and Health,Other Agencies - Third Party P,0090632202,JEWISH CARE,"2,896.00",20/09/2023
Delivery Units,Adults and Health,Other Agencies - Third Party P,0090632221,NAZARETH HOUSE,"3,019.68",20/09/2023
Delivery Units,Adults and Health,Other Agencies - Third Party P,0090632223,CARE UK COMMUNITY PARTNERSHIPS,"3,852.00",20/09/2023
Delivery Units,Adults and Health,Other Agencies - Third Party P,0090632224,APPLE TREE COURT CARE HOME,"5,124.00",20/09/2023
Delivery Units,Adults and Health,Other Agencies - Third Party P,0090632226,NAZARETH HOUSE,"3,019.68",20/09/2023
Delivery Units,Adults and Health,Other Agencies - Third Party P,0090632227,NAZARETH HOUSE,"3,019.68",20/09/2023
Delivery Units,Adults and Health,Other Agencies - Third Party P,0090632228,NAZARETH HOUSE,344.00,20/09/2023
Delivery Units,Adults and Health,Other Agencies - Third Party P,0090632229,Aarandale Manor Care Home,"5,000.00",20/09/2023
Delivery Units,Adults and Health,Other Agencies - Third Party P,0090632231,THE LIMES RESIDENTIAL HOME,"3,400.00",20/09/2023
Delivery Units,Adults and Health,Other Agencies - Third Party P,0090632233,NAZARETH HOUSE,"2,890.08",20/09/2023
Delivery Units,Adults and Health,Other Agencies - Third Party P,0090632236,BUPA CARE HOMES,"2,884.00",20/09/2023
Delivery Units,Adults and Health,Other Agencies - Third Party P,0090632237,CEDARS NURSING HOME,"5,200.00",20/09/2023
Delivery Units,Adults and Health,Other Agencies - Third Party P,0090632248,JEWISH CARE,"3,056.00",20/09/2023
Delivery Units,Adults and Health,Other Agencies - Third Party P,0090632249,NAZARETH HOUSE,"2,890.08",20/09/2023
Delivery Units,Adults and Health,Other Agencies - Third Party P,0090632253,BUPA NURSING HOMES LTD - ARKLEY,"2,800.00",20/09/2023
Delivery Units,Adults and Health,Other Agencies - Third Party P,0090632261,NAZARETH HOUSE,"2,740.00",20/09/2023
Delivery Units,Adults and Health,Other Agencies - Third Party P,0090632262,JEWISH CARE,"7,874.40",20/09/2023
Delivery Units,Adults and Health,Other Agencies - Third Party P,0090632265,ELMHURST RESIDENTIAL HOME,"4,000.00",20/09/2023
Delivery Units,Adults and Health,Other Agencies - Third Party P,0090632266,APPLE TREE COURT CARE HOME,"3,400.00",20/09/2023
Delivery Units,Adults and Health,Other Agencies - Third Party P,0090632276,NAZARETH HOUSE,"4,828.88",20/09/2023
Delivery Units,Adults and Health,Other Agencies - Third Party P,0090632283,JEWISH CARE,"3,056.00",20/09/2023
Delivery Units,Adults and Health,Other Agencies - Third Party P,0090632290,CEDARS NURSING HOME,"5,200.00",20/09/2023
Delivery Units,Adults and Health,Other Agencies - Third Party P,0090632292,CARE UK COMMUNITY PARTNERSHIPS,"3,852.00",20/09/2023
Delivery Units,Adults and Health,Other Agencies - Third Party P,0090632303,CARE UK COMMUNITY PARTNERSHIPS,"7,704.00",20/09/2023
Delivery Units,Adults and Health,Other Agencies - Third Party P,0090632304,SAGE NURSING HOME,"3,256.00",20/09/2023
Delivery Units,Adults and Health,Other Agencies - Third Party P,0090632307,JEWISH CARE,"3,052.00",20/09/2023
Delivery Units,Adults and Health,Other Agencies - Third Party P,0090632318,ELEANOR PALMER TRUST NO 2 A/C.,"4,000.00",20/09/2023
Delivery Units,Adults and Health,Other Agencies - Third Party P,0090632321,APPLE TREE COURT CARE HOME,"3,800.00",20/09/2023
Delivery Units,Adults and Health,Other Agencies - Third Party P,0090632322,LIFESTYLE CARE PLC,"3,400.00",20/09/2023
Delivery Units,Adults and Health,Other Agencies - Third Party P,0090632323,THE LIMES RESIDENTIAL HOME,"3,416.00",20/09/2023
Delivery Units,Adults and Health,Other Agencies - Third Party P,0090632329,ELEANOR PALMER TRUST NO 2 A/C.,"3,616.00",20/09/2023
Delivery Units,Adults and Health,Other Agencies - Third Party P,0090632337,JEWISH CARE,"3,056.00",20/09/2023
Delivery Units,Adults and Health,Other Agencies - Third Party P,0090632342,BUPA CARE HOMES,"4,000.00",20/09/2023
Delivery Units,Adults and Health,Other Agencies - Third Party P,0090632351,JEWISH CARE,"3,056.00",20/09/2023
Delivery Units,Adults and Health,Other Agencies - Third Party P,0090632352,BUPA NURSING HOMES LTD - ARKLEY,"3,900.00",20/09/2023
Delivery Units,Adults and Health,Other Agencies - Third Party P,0090632356,JEWISH CARE,"3,212.00",20/09/2023
Delivery Units,Adults and Health,Other Agencies - Third Party P,0090632357,JEWISH CARE,"3,056.00",20/09/2023
Delivery Units,Adults and Health,Other Agencies - Third Party P,0090632388,CEDARS NURSING HOME,"4,000.00",20/09/2023
Delivery Units,Adults and Health,Other Agencies - Third Party P,0090632393,ELMHURST RESIDENTIAL HOME,"3,000.00",20/09/2023
Delivery Units,Adults and Health,Other Agencies - Third Party P,0090632395,ELEANOR PALMER TRUST NO 2 A/C.,"3,456.00",20/09/2023
Delivery Units,Adults and Health,Other Agencies - Third Party P,0090632401,JEWISH CARE,"3,056.00",20/09/2023
Delivery Units,Adults and Health,Other Agencies - Third Party P,0090632405,THE LIMES RESIDENTIAL HOME,"3,336.00",20/09/2023
Delivery Units,Adults and Health,Other Agencies - Third Party P,0090632407,NAZARETH HOUSE,"2,890.08",20/09/2023
Delivery Units,Adults and Health,Other Agencies - Third Party P,0090632410,NAZARETH HOUSE,"4,104.00",20/09/2023
Delivery Units,Adults and Health,Other Agencies - Third Party P,0090632411,JEWISH CARE,"3,056.00",20/09/2023
Delivery Units,Adults and Health,Other Agencies - Third Party P,0090632414,JEWISH CARE,"2,896.00",20/09/2023
Delivery Units,Adults and Health,Other Agencies - Third Party P,0090632416,NAZARETH HOUSE,"2,740.00",20/09/2023
Delivery Units,Adults and Health,Other Agencies - Third Party P,0090632418,THE LIMES RESIDENTIAL HOME,"3,336.00",20/09/2023
Delivery Units,Adults and Health,Other Agencies - Third Party P,0090632419,NAZARETH HOUSE,"2,890.08",20/09/2023
Delivery Units,Adults and Health,Other Agencies - Third Party P,0090632421,JEWISH CARE,"3,056.00",20/09/2023
Delivery Units,Adults and Health,Other Agencies - Third Party P,0090632426,NAZARETH HOUSE,"2,740.00",20/09/2023
Delivery Units,Adults and Health,Other Agencies - Third Party P,0090632427,ELEANOR PALMER TRUST NO 2 A/C.,"3,456.00",20/09/2023
Delivery Units,Adults and Health,Other Agencies - Third Party P,0090632428,NAZARETH HOUSE,"2,890.08",20/09/2023
Delivery Units,Adults and Health,Other Agencies - Third Party P,0090632432,THE LIMES RESIDENTIAL HOME,"3,436.00",20/09/2023
Delivery Units,Adults and Health,Other Agencies - Third Party P,0090632439,NAZARETH HOUSE,"2,890.08",20/09/2023
Delivery Units,Adults and Health,Other Agencies - Third Party P,0090632440,JEWISH CARE,"3,056.00",20/09/2023
Delivery Units,Adults and Health,Other Agencies - Third Party P,0090632444,ELMHURST RESIDENTIAL HOME,"3,800.00",20/09/2023
Delivery Units,Adults and Health,Other Agencies - Third Party P,0090632445,NAZARETH HOUSE,"2,890.08",20/09/2023
Delivery Units,Adults and Health,Other Agencies - Third Party P,0090632449,ELEANOR PALMER TRUST NO 2 A/C.,"4,000.00",20/09/2023
Delivery Units,Adults and Health,Other Agencies - Third Party P,0090632462,JEWISH CARE,"3,212.00",20/09/2023
Delivery Units,Adults and Health,Other Agencies - Third Party P,0090632466,APPLE TREE COURT CARE HOME,"5,124.00",20/09/2023
Delivery Units,Adults and Health,Other Agencies - Third Party P,0090632480,THE LIMES RESIDENTIAL HOME,"3,620.00",20/09/2023
Delivery Units,Adults and Health,Other Agencies - Third Party P,0090632484,NAZARETH HOUSE,356.29,20/09/2023
Delivery Units,Adults and Health,Other Agencies - Third Party P,0090632485,NAZARETH HOUSE,344.00,20/09/2023
Delivery Units,Adults and Health,Other Agencies - Third Party P,0090632489,CARE UK COMMUNITY PARTNERSHIPS,"3,852.00",20/09/2023
Delivery Units,Adults and Health,Other Agencies - Third Party P,0090632491,NAZARETH HOUSE,"4,069.28",20/09/2023
Delivery Units,Adults and Health,Other Agencies - Third Party P,0090632492,JEWISH CARE,"3,017.80",20/09/2023
Delivery Units,Adults and Health,Other Agencies - Third Party P,0090632496,LIFESTYLE CARE PLC,"1,642.86",20/09/2023
Delivery Units,Adults and Health,Other Agencies - Third Party P,0090632500,NAZARETH HOUSE,785.00,20/09/2023
Delivery Units,Adults and Health,Other Agencies - Third Party P,0090632757,Avon Lodge UK Ltd,"3,985.71",20/09/2023
Delivery Units,Adults and Health,Other Agencies - Third Party P,0090633094,Brownlow Enterprises Ltd,"3,985.67",20/09/2023
Delivery Units,Adults and Health,Other Agencies - Third Party P,0090634217,EASTSIDE HOUSE CARE HOME,"3,800.00",25/09/2023
Delivery Units,Adults and Health,Other Agencies - Third Party P,0090634218,EASTSIDE HOUSE CARE HOME,"3,720.00",25/09/2023
Delivery Units,Adults and Health,Other Agencies - Third Party P,0090634227,TORRINGTON HOMES,"9,155.71",25/09/2023
Delivery Units,Adults and Health,Other Agencies - Third Party P,0090634228,TORRINGTON HOMES,"3,965.71",25/09/2023
Delivery Units,Adults and Health,Other Agencies - Third Party P,0090634230,TORRINGTON HOMES,"10,410.00",25/09/2023
Delivery Units,Adults and Health,Other Agencies - Third Party P,0090634861,EASTSIDE HOUSE CARE HOME,"3,800.00",25/09/2023
Delivery Units,Adults and Health,Other Agencies - Third Party P,0090634862,EASTSIDE HOUSE CARE HOME,"3,800.00",25/09/2023
Delivery Units,Adults and Health,Other Agencies - Third Party P,0090634863,EASTSIDE HOUSE CARE HOME,"3,800.00",25/09/2023
Delivery Units,Adults and Health,Other Agencies - Third Party P,0090634865,Karuna Manor,"4,071.43",25/09/2023
Delivery Units,Adults and Health,Other Agencies - Third Party P,0090634875,Green Trees Care Home,"3,874.20",25/09/2023
Delivery Units,Adults and Health,Other Agencies - Third Party P,0090634876,Green Trees Care Home,"3,878.70",25/09/2023
Delivery Units,Adults and Health,Other Agencies - Third Party P,0090634878,THE CHRISTIAN CARE TRUST,"4,178.40",25/09/2023
Delivery Units,Adults and Health,Other Agencies - Third Party P,0090634886,Avon Lodge UK Ltd,"3,857.14",25/09/2023
Delivery Units,Adults and Health,Other Agencies - Third Party P,0090636427,B & M CARE,"5,142.86",28/09/2023
Delivery Units,Adults and Health,Other Agencies - Third Party P,0090636428,B & M CARE,"4,157.14",28/09/2023
Delivery Units,Adults and Health,Other Agencies - Third Party P,0090636431,B & M CARE,"4,714.29",28/09/2023
Delivery Units,Adults and Health,Other Agencies - Third Party P,0090636807,Brownlow Enterprises Ltd,"3,954.29",28/09/2023
Delivery Units,Adults and Health,Other Agencies - Third Party P,0090636815,ANASTASIA LODGE,"3,620.00",28/09/2023
Delivery Units,Adults and Health,Other Agencies - Third Party P,0090626894,Navarros Care Ltd,107.10,01/09/2023
Delivery Units,Adults and Health,Other Agencies - Third Party P,0090626895,Navarros Care Ltd,899.64,01/09/2023
Delivery Units,Adults and Health,Other Agencies - Third Party P,0090626896,Navarros Care Ltd,224.91,01/09/2023
Delivery Units,Adults and Health,Other Agencies - Third Party P,0090626897,Navarros Care Ltd,107.10,01/09/2023
Delivery Units,Adults and Health,Other Agencies - Third Party P,0090626898,Navarros Care Ltd,899.64,01/09/2023
Delivery Units,Adults and Health,Other Agencies - Third Party P,0090626901,Concept Care Solutions Ltd,185.58,01/09/2023
Delivery Units,Adults and Health,Other Agencies - Third Party P,0090626902,Concept Care Solutions Ltd,469.00,01/09/2023
Delivery Units,Adults and Health,Other Agencies - Third Party P,0090626903,Concept Care Solutions Ltd,252.56,01/09/2023
Delivery Units,Adults and Health,Other Agencies - Third Party P,0090626904,Concept Care Solutions Ltd,164.96,01/09/2023
Delivery Units,Adults and Health,Other Agencies - Third Party P,0090626907,Concept Care Solutions Ltd,324.73,01/09/2023
Delivery Units,Adults and Health,Other Agencies - Third Party P,0090626962,Mayfair Homecare Ltd,227.90,01/09/2023
Delivery Units,Adults and Health,Other Agencies - Third Party P,0090626964,Mayfair Homecare Ltd,159.00,01/09/2023
Delivery Units,Adults and Health,Other Agencies - Third Party P,0090626967,Mayfair Homecare Ltd,227.90,01/09/2023
Delivery Units,Adults and Health,Other Agencies - Third Party P,0090626969,Mayfair Homecare Ltd,159.00,01/09/2023
Delivery Units,Adults and Health,Other Agencies - Third Party P,0090626971,Mayfair Homecare Ltd,227.90,01/09/2023
Delivery Units,Adults and Health,Other Agencies - Third Party P,0090627167,Good Neighbour Care,"2,620.80",05/09/2023
Delivery Units,Adults and Health,Other Agencies - Third Party P,0090627170,Good Neighbour Care,"2,620.80",05/09/2023
Delivery Units,Adults and Health,Other Agencies - Third Party P,0090627172,Good Neighbour Care,"1,019.20",05/09/2023
Delivery Units,Adults and Health,Other Agencies - Third Party P,0090627173,Good Neighbour Care,"1,019.20",05/09/2023
Delivery Units,Adults and Health,Other Agencies - Third Party P,0090627267,Servesoul Limited,267.26,05/09/2023
Delivery Units,Adults and Health,Other Agencies - Third Party P,0090627268,Servesoul Limited,534.52,05/09/2023
Delivery Units,Adults and Health,Other Agencies - Third Party P,0090627270,Servesoul Limited,133.63,05/09/2023
Delivery Units,Adults and Health,Other Agencies - Third Party P,0090627271,Servesoul Limited,501.11,05/09/2023
Delivery Units,Adults and Health,Other Agencies - Third Party P,0090627272,Servesoul Limited,133.63,05/09/2023
Delivery Units,Adults and Health,Other Agencies - Third Party P,0090627273,Servesoul Limited,319.76,05/09/2023
Delivery Units,Adults and Health,Other Agencies - Third Party P,0090627274,Servesoul Limited,310.21,05/09/2023
Delivery Units,Adults and Health,Other Agencies - Third Party P,0090627275,Servesoul Limited,672.92,05/09/2023
Delivery Units,Adults and Health,Other Agencies - Third Party P,0090627276,Servesoul Limited,"2,099.71",05/09/2023
Delivery Units,Adults and Health,Other Agencies - Third Party P,0090627277,Servesoul Limited,133.63,05/09/2023
Delivery Units,Adults and Health,Other Agencies - Third Party P,0090627278,Servesoul Limited,57.27,05/09/2023
Delivery Units,Adults and Health,Other Agencies - Third Party P,0090627281,Servesoul Limited,152.72,05/09/2023
Delivery Units,Adults and Health,Other Agencies - Third Party P,0090627282,Servesoul Limited,267.26,05/09/2023
Delivery Units,Adults and Health,Other Agencies - Third Party P,0090627284,Servesoul Limited,200.45,05/09/2023
Delivery Units,Adults and Health,Other Agencies - Third Party P,0090627287,Servesoul Limited,300.67,05/09/2023
Delivery Units,Adults and Health,Other Agencies - Third Party P,0090627288,Servesoul Limited,200.45,05/09/2023
Delivery Units,Adults and Health,Other Agencies - Third Party P,0090627290,Servesoul Limited,233.85,05/09/2023
Delivery Units,Adults and Health,Other Agencies - Third Party P,0090627291,Servesoul Limited,167.04,05/09/2023
Delivery Units,Adults and Health,Other Agencies - Third Party P,0090627292,Servesoul Limited,"1,135.86",05/09/2023
Delivery Units,Adults and Health,Other Agencies - Third Party P,0090627294,Servesoul Limited,252.94,05/09/2023
Delivery Units,Adults and Health,Other Agencies - Third Party P,0090627295,Servesoul Limited,233.85,05/09/2023
Delivery Units,Adults and Health,Other Agencies - Third Party P,0090627296,Servesoul Limited,57.27,05/09/2023
Delivery Units,Adults and Health,Other Agencies - Third Party P,0090627298,Servesoul Limited,601.34,05/09/2023
Delivery Units,Adults and Health,Other Agencies - Third Party P,0090627299,Servesoul Limited,601.34,05/09/2023
Delivery Units,Adults and Health,Other Agencies - Third Party P,0090627300,Servesoul Limited,606.11,05/09/2023
Delivery Units,Adults and Health,Other Agencies - Third Party P,0090627301,Servesoul Limited,233.85,05/09/2023
Delivery Units,Adults and Health,Other Agencies - Third Party P,0090627303,Servesoul Limited,152.72,05/09/2023
Delivery Units,Adults and Health,Other Agencies - Third Party P,0090627304,Servesoul Limited,935.41,05/09/2023
Delivery Units,Adults and Health,Other Agencies - Third Party P,0090627306,Servesoul Limited,66.82,05/09/2023
Delivery Units,Adults and Health,Other Agencies - Third Party P,0090627309,Servesoul Limited,286.35,05/09/2023
Delivery Units,Adults and Health,Other Agencies - Third Party P,0090627311,Servesoul Limited,262.49,05/09/2023
Delivery Units,Adults and Health,Other Agencies - Third Party P,0090627312,Servesoul Limited,233.85,05/09/2023
Delivery Units,Adults and Health,Other Agencies - Third Party P,0090627313,Servesoul Limited,300.67,05/09/2023
Delivery Units,Adults and Health,Other Agencies - Third Party P,0090627314,Servesoul Limited,100.22,05/09/2023
Delivery Units,Adults and Health,Other Agencies - Third Party P,0090627316,Servesoul Limited,133.63,05/09/2023
Delivery Units,Adults and Health,Other Agencies - Third Party P,0090627317,Servesoul Limited,200.45,05/09/2023
Delivery Units,Adults and Health,Other Agencies - Third Party P,0090627318,Servesoul Limited,38.18,05/09/2023
Delivery Units,Adults and Health,Other Agencies - Third Party P,0090627319,Servesoul Limited,601.34,05/09/2023
Delivery Units,Adults and Health,Other Agencies - Third Party P,0090627320,Servesoul Limited,668.15,05/09/2023
Delivery Units,Adults and Health,Other Agencies - Third Party P,0090627321,Servesoul Limited,66.82,05/09/2023
Delivery Units,Adults and Health,Other Agencies - Third Party P,0090627322,Servesoul Limited,152.72,05/09/2023
Delivery Units,Adults and Health,Other Agencies - Third Party P,0090627323,Servesoul Limited,209.99,05/09/2023
Delivery Units,Adults and Health,Other Agencies - Third Party P,0090627324,Servesoul Limited,458.16,05/09/2023
Delivery Units,Adults and Health,Other Agencies - Third Party P,0090627326,Servesoul Limited,267.26,05/09/2023
Delivery Units,Adults and Health,Other Agencies - Third Party P,0090627327,Servesoul Limited,534.52,05/09/2023
Delivery Units,Adults and Health,Other Agencies - Third Party P,0090627329,Servesoul Limited,133.63,05/09/2023
Delivery Units,Adults and Health,Other Agencies - Third Party P,0090627330,Servesoul Limited,501.11,05/09/2023
Delivery Units,Adults and Health,Other Agencies - Third Party P,0090627331,Servesoul Limited,133.63,05/09/2023
Delivery Units,Adults and Health,Other Agencies - Third Party P,0090627332,Servesoul Limited,319.76,05/09/2023
Delivery Units,Adults and Health,Other Agencies - Third Party P,0090627333,Servesoul Limited,310.21,05/09/2023
Delivery Units,Adults and Health,Other Agencies - Third Party P,0090627334,Servesoul Limited,672.92,05/09/2023
Delivery Units,Adults and Health,Other Agencies - Third Party P,0090627335,Servesoul Limited,"2,099.71",05/09/2023
Delivery Units,Adults and Health,Other Agencies - Third Party P,0090627336,Servesoul Limited,133.63,05/09/2023
Delivery Units,Adults and Health,Other Agencies - Third Party P,0090627337,Servesoul Limited,66.82,05/09/2023
Delivery Units,Adults and Health,Other Agencies - Third Party P,0090627340,Servesoul Limited,152.72,05/09/2023
Delivery Units,Adults and Health,Other Agencies - Third Party P,0090627341,Servesoul Limited,267.26,05/09/2023
Delivery Units,Adults and Health,Other Agencies - Third Party P,0090627343,Servesoul Limited,200.45,05/09/2023
Delivery Units,Adults and Health,Other Agencies - Third Party P,0090627344,Servesoul Limited,706.33,05/09/2023
Delivery Units,Adults and Health,Other Agencies - Third Party P,0090627347,Servesoul Limited,300.67,05/09/2023
Delivery Units,Adults and Health,Other Agencies - Third Party P,0090627348,Servesoul Limited,200.45,05/09/2023
Delivery Units,Adults and Health,Other Agencies - Third Party P,0090627350,Servesoul Limited,233.85,05/09/2023
Delivery Units,Adults and Health,Other Agencies - Third Party P,0090627351,Servesoul Limited,167.04,05/09/2023
Delivery Units,Adults and Health,Other Agencies - Third Party P,0090627352,Servesoul Limited,"1,135.86",05/09/2023
Delivery Units,Adults and Health,Other Agencies - Third Party P,0090627354,Servesoul Limited,252.94,05/09/2023
Delivery Units,Adults and Health,Other Agencies - Third Party P,0090627355,Servesoul Limited,233.85,05/09/2023
Delivery Units,Adults and Health,Other Agencies - Third Party P,0090627356,Servesoul Limited,57.27,05/09/2023
Delivery Units,Adults and Health,Other Agencies - Third Party P,0090627358,Servesoul Limited,601.34,05/09/2023
Delivery Units,Adults and Health,Other Agencies - Third Party P,0090627359,Servesoul Limited,601.34,05/09/2023
Delivery Units,Adults and Health,Other Agencies - Third Party P,0090627360,Servesoul Limited,606.11,05/09/2023
Delivery Units,Adults and Health,Other Agencies - Third Party P,0090627361,Servesoul Limited,233.85,05/09/2023
Delivery Units,Adults and Health,Other Agencies - Third Party P,0090627363,Servesoul Limited,152.72,05/09/2023
Delivery Units,Adults and Health,Other Agencies - Third Party P,0090627364,Servesoul Limited,935.41,05/09/2023
Delivery Units,Adults and Health,Other Agencies - Third Party P,0090627366,Servesoul Limited,66.82,05/09/2023
Delivery Units,Adults and Health,Other Agencies - Third Party P,0090627369,Servesoul Limited,286.35,05/09/2023
Delivery Units,Adults and Health,Other Agencies - Third Party P,0090627371,Servesoul Limited,262.49,05/09/2023
Delivery Units,Adults and Health,Other Agencies - Third Party P,0090627372,Servesoul Limited,233.85,05/09/2023
Delivery Units,Adults and Health,Other Agencies - Third Party P,0090627373,Servesoul Limited,300.67,05/09/2023
Delivery Units,Adults and Health,Other Agencies - Third Party P,0090627374,Servesoul Limited,100.22,05/09/2023
Delivery Units,Adults and Health,Other Agencies - Third Party P,0090627376,Servesoul Limited,95.45,05/09/2023
Delivery Units,Adults and Health,Other Agencies - Third Party P,0090627377,Servesoul Limited,200.45,05/09/2023
Delivery Units,Adults and Health,Other Agencies - Third Party P,0090627378,Servesoul Limited,38.18,05/09/2023
Delivery Units,Adults and Health,Other Agencies - Third Party P,0090627379,Servesoul Limited,601.34,05/09/2023
Delivery Units,Adults and Health,Other Agencies - Third Party P,0090627380,Servesoul Limited,668.15,05/09/2023
Delivery Units,Adults and Health,Other Agencies - Third Party P,0090627381,Servesoul Limited,66.82,05/09/2023
Delivery Units,Adults and Health,Other Agencies - Third Party P,0090627382,Servesoul Limited,152.72,05/09/2023
Delivery Units,Adults and Health,Other Agencies - Third Party P,0090627383,Servesoul Limited,209.99,05/09/2023
Delivery Units,Adults and Health,Other Agencies - Third Party P,0090627384,Servesoul Limited,458.16,05/09/2023
Delivery Units,Adults and Health,Other Agencies - Third Party P,0090627386,The Cedars Home Care,135.80,05/09/2023
Delivery Units,Adults and Health,Other Agencies - Third Party P,0090627387,The Cedars Home Care,368.60,05/09/2023
Delivery Units,Adults and Health,Other Agencies - Third Party P,0090627389,The Cedars Home Care,557.75,05/09/2023
Delivery Units,Adults and Health,Other Agencies - Third Party P,0090627391,The Cedars Home Care,237.65,05/09/2023
Delivery Units,Adults and Health,Other Agencies - Third Party P,0090627392,The Cedars Home Care,170.14,05/09/2023
Delivery Units,Adults and Health,Other Agencies - Third Party P,0090627393,The Cedars Home Care,"1,003.95",05/09/2023
Delivery Units,Adults and Health,Other Agencies - Third Party P,0090627394,The Cedars Home Care,13.00,05/09/2023
Delivery Units,Adults and Health,Other Agencies - Third Party P,0090627395,The Cedars Home Care,87.30,05/09/2023
Delivery Units,Adults and Health,Other Agencies - Third Party P,0090627396,The Cedars Home Care,130.56,05/09/2023
Delivery Units,Adults and Health,Other Agencies - Third Party P,0090627397,The Cedars Home Care,77.60,05/09/2023
Delivery Units,Adults and Health,Other Agencies - Third Party P,0090627398,The Cedars Home Care,19.40,05/09/2023
Delivery Units,Adults and Health,Other Agencies - Third Party P,0090627399,The Cedars Home Care,"3,259.20",05/09/2023
Delivery Units,Adults and Health,Other Agencies - Third Party P,0090627400,The Cedars Home Care,210.10,05/09/2023
Delivery Units,Adults and Health,Other Agencies - Third Party P,0090627401,The Cedars Home Care,112.91,05/09/2023
Delivery Units,Adults and Health,Other Agencies - Third Party P,0090627403,The Cedars Home Care,317.19,05/09/2023
Delivery Units,Adults and Health,Other Agencies - Third Party P,0090627404,The Cedars Home Care,392.85,05/09/2023
Delivery Units,Adults and Health,Other Agencies - Third Party P,0090627405,The Cedars Home Care,23.67,05/09/2023
Delivery Units,Adults and Health,Other Agencies - Third Party P,0090627407,The Cedars Home Care,0.39,05/09/2023
Delivery Units,Adults and Health,Other Agencies - Third Party P,0090627408,The Cedars Home Care,57.62,05/09/2023
Delivery Units,Adults and Health,Other Agencies - Third Party P,0090627410,The Cedars Home Care,"1,222.20",05/09/2023
Delivery Units,Adults and Health,Other Agencies - Third Party P,0090627412,The Cedars Home Care,746.90,05/09/2023
Delivery Units,Adults and Health,Other Agencies - Third Party P,0090627413,The Cedars Home Care,160.05,05/09/2023
Delivery Units,Adults and Health,Other Agencies - Third Party P,0090627414,The Cedars Home Care,179.45,05/09/2023
Delivery Units,Adults and Health,Other Agencies - Third Party P,0090627416,The Cedars Home Care,45.98,05/09/2023
Delivery Units,Adults and Health,Other Agencies - Third Party P,0090627418,The Cedars Home Care,261.51,05/09/2023
Delivery Units,Adults and Health,Other Agencies - Third Party P,0090627419,The Cedars Home Care,207.97,05/09/2023
Delivery Units,Adults and Health,Other Agencies - Third Party P,0090627420,The Cedars Home Care,101.85,05/09/2023
Delivery Units,Adults and Health,Other Agencies - Third Party P,0090627421,The Cedars Home Care,141.04,05/09/2023
Delivery Units,Adults and Health,Other Agencies - Third Party P,0090627422,The Cedars Home Care,397.70,05/09/2023
Delivery Units,Adults and Health,Other Agencies - Third Party P,0090627423,The Cedars Home Care,413.22,05/09/2023
Delivery Units,Adults and Health,Other Agencies - Third Party P,0090627424,The Cedars Home Care,"1,629.60",05/09/2023
Delivery Units,Adults and Health,Other Agencies - Third Party P,0090627425,The Cedars Home Care,208.55,05/09/2023
Delivery Units,Adults and Health,Other Agencies - Third Party P,0090627426,The Cedars Home Care,252.20,05/09/2023
Delivery Units,Adults and Health,Other Agencies - Third Party P,0090627428,The Cedars Home Care,271.60,05/09/2023
Delivery Units,Adults and Health,Other Agencies - Third Party P,0090627429,The Cedars Home Care,85.94,05/09/2023
Delivery Units,Adults and Health,Other Agencies - Third Party P,0090627430,The Cedars Home Care,121.64,05/09/2023
Delivery Units,Adults and Health,Other Agencies - Third Party P,0090627432,The Cedars Home Care,399.06,05/09/2023
Delivery Units,Adults and Health,Other Agencies - Third Party P,0090627433,The Cedars Home Care,19.40,05/09/2023
Delivery Units,Adults and Health,Other Agencies - Third Party P,0090627435,The Cedars Home Care,397.70,05/09/2023
Delivery Units,Adults and Health,Other Agencies - Third Party P,0090627436,The Cedars Home Care,229.50,05/09/2023
Delivery Units,Adults and Health,Other Agencies - Third Party P,0090627438,The Cedars Home Care,135.80,05/09/2023
Delivery Units,Adults and Health,Other Agencies - Third Party P,0090627439,The Cedars Home Care,368.60,05/09/2023
Delivery Units,Adults and Health,Other Agencies - Third Party P,0090627441,The Cedars Home Care,562.60,05/09/2023
Delivery Units,Adults and Health,Other Agencies - Third Party P,0090627443,The Cedars Home Care,237.65,05/09/2023
Delivery Units,Adults and Health,Other Agencies - Third Party P,0090627444,The Cedars Home Care,73.33,05/09/2023
Delivery Units,Adults and Health,Other Agencies - Third Party P,0090627445,The Cedars Home Care,"1,018.50",05/09/2023
Delivery Units,Adults and Health,Other Agencies - Third Party P,0090627446,The Cedars Home Care,19.40,05/09/2023
Delivery Units,Adults and Health,Other Agencies - Third Party P,0090627447,The Cedars Home Care,76.63,05/09/2023
Delivery Units,Adults and Health,Other Agencies - Third Party P,0090627448,The Cedars Home Care,131.92,05/09/2023
Delivery Units,Adults and Health,Other Agencies - Third Party P,0090627449,The Cedars Home Care,58.20,05/09/2023
Delivery Units,Adults and Health,Other Agencies - Third Party P,0090627450,The Cedars Home Care,19.40,05/09/2023
Delivery Units,Adults and Health,Other Agencies - Third Party P,0090627451,The Cedars Home Care,"3,268.90",05/09/2023
Delivery Units,Adults and Health,Other Agencies - Third Party P,0090627452,The Cedars Home Care,166.45,05/09/2023
Delivery Units,Adults and Health,Other Agencies - Third Party P,0090627453,The Cedars Home Care,188.57,05/09/2023
Delivery Units,Adults and Health,Other Agencies - Third Party P,0090627455,The Cedars Home Care,324.95,05/09/2023
Delivery Units,Adults and Health,Other Agencies - Third Party P,0090627456,The Cedars Home Care,385.09,05/09/2023
Delivery Units,Adults and Health,Other Agencies - Third Party P,0090627457,The Cedars Home Care,29.10,05/09/2023
Delivery Units,Adults and Health,Other Agencies - Third Party P,0090627459,The Cedars Home Care,14.55,05/09/2023
Delivery Units,Adults and Health,Other Agencies - Third Party P,0090627460,The Cedars Home Care,43.07,05/09/2023
Delivery Units,Adults and Health,Other Agencies - Third Party P,0090627462,The Cedars Home Care,"1,222.20",05/09/2023
Delivery Units,Adults and Health,Other Agencies - Third Party P,0090627464,The Cedars Home Care,"2,910.00",05/09/2023
Delivery Units,Adults and Health,Other Agencies - Third Party P,0090627465,The Cedars Home Care,727.50,05/09/2023
Delivery Units,Adults and Health,Other Agencies - Third Party P,0090627466,The Cedars Home Care,133.28,05/09/2023
Delivery Units,Adults and Health,Other Agencies - Third Party P,0090627467,The Cedars Home Care,179.45,05/09/2023
Delivery Units,Adults and Health,Other Agencies - Third Party P,0090627469,The Cedars Home Care,58.20,05/09/2023
Delivery Units,Adults and Health,Other Agencies - Third Party P,0090627471,The Cedars Home Care,264.81,05/09/2023
Delivery Units,Adults and Health,Other Agencies - Third Party P,0090627472,The Cedars Home Care,169.17,05/09/2023
Delivery Units,Adults and Health,Other Agencies - Third Party P,0090627473,The Cedars Home Care,101.85,05/09/2023
Delivery Units,Adults and Health,Other Agencies - Third Party P,0090627474,The Cedars Home Care,155.20,05/09/2023
Delivery Units,Adults and Health,Other Agencies - Third Party P,0090627475,The Cedars Home Care,392.85,05/09/2023
Delivery Units,Adults and Health,Other Agencies - Third Party P,0090627476,The Cedars Home Care,426.80,05/09/2023
Delivery Units,Adults and Health,Other Agencies - Third Party P,0090627477,The Cedars Home Care,"1,629.60",05/09/2023
Delivery Units,Adults and Health,Other Agencies - Third Party P,0090627478,The Cedars Home Care,208.55,05/09/2023
Delivery Units,Adults and Health,Other Agencies - Third Party P,0090627479,The Cedars Home Care,271.60,05/09/2023
Delivery Units,Adults and Health,Other Agencies - Third Party P,0090627481,The Cedars Home Care,271.60,05/09/2023
Delivery Units,Adults and Health,Other Agencies - Third Party P,0090627482,The Cedars Home Care,87.30,05/09/2023
Delivery Units,Adults and Health,Other Agencies - Third Party P,0090627483,The Cedars Home Care,97.00,05/09/2023
Delivery Units,Adults and Health,Other Agencies - Third Party P,0090627485,The Cedars Home Care,420.01,05/09/2023
Delivery Units,Adults and Health,Other Agencies - Third Party P,0090627486,The Cedars Home Care,19.40,05/09/2023
Delivery Units,Adults and Health,Other Agencies - Third Party P,0090627487,The Cedars Home Care,397.70,05/09/2023
Delivery Units,Adults and Health,Other Agencies - Third Party P,0090627488,The Cedars Home Care,205.25,05/09/2023
Delivery Units,Adults and Health,Other Agencies - Third Party P,0090627604,Mayfair Homecare Ltd,42.40,06/09/2023
Delivery Units,Adults and Health,Other Agencies - Third Party P,0090627605,Mayfair Homecare Ltd,148.40,06/09/2023
Delivery Units,Adults and Health,Other Agencies - Third Party P,0090627607,Mayfair Homecare Ltd,445.20,06/09/2023
Delivery Units,Adults and Health,Other Agencies - Third Party P,0090627609,Mayfair Homecare Ltd,328.60,06/09/2023
Delivery Units,Adults and Health,Other Agencies - Third Party P,0090627610,Mayfair Homecare Ltd,"1,558.20",06/09/2023
Delivery Units,Adults and Health,Other Agencies - Third Party P,0090627611,Mayfair Homecare Ltd,233.20,06/09/2023
Delivery Units,Adults and Health,Other Agencies - Third Party P,0090627612,Mayfair Homecare Ltd,302.10,06/09/2023
Delivery Units,Adults and Health,Other Agencies - Third Party P,0090627613,Mayfair Homecare Ltd,280.90,06/09/2023
Delivery Units,Adults and Health,Other Agencies - Third Party P,0090627614,Mayfair Homecare Ltd,376.30,06/09/2023
Delivery Units,Adults and Health,Other Agencies - Third Party P,0090627615,Mayfair Homecare Ltd,180.20,06/09/2023
Delivery Units,Adults and Health,Other Agencies - Third Party P,0090627616,Mayfair Homecare Ltd,296.80,06/09/2023
Delivery Units,Adults and Health,Other Agencies - Third Party P,0090627617,Mayfair Homecare Ltd,339.20,06/09/2023
Delivery Units,Adults and Health,Other Agencies - Third Party P,0090627618,Mayfair Homecare Ltd,222.60,06/09/2023
Delivery Units,Adults and Health,Other Agencies - Third Party P,0090627619,Mayfair Homecare Ltd,222.60,06/09/2023
Delivery Units,Adults and Health,Other Agencies - Third Party P,0090627620,Mayfair Homecare Ltd,190.80,06/09/2023
Delivery Units,Adults and Health,Other Agencies - Third Party P,0090627621,Mayfair Homecare Ltd,445.20,06/09/2023
Delivery Units,Adults and Health,Other Agencies - Third Party P,0090627622,Mayfair Homecare Ltd,148.40,06/09/2023
Delivery Units,Adults and Health,Other Agencies - Third Party P,0090627623,Mayfair Homecare Ltd,286.20,06/09/2023
Delivery Units,Adults and Health,Other Agencies - Third Party P,0090627625,Mayfair Homecare Ltd,259.70,06/09/2023
Delivery Units,Adults and Health,Other Agencies - Third Party P,0090627626,Mayfair Homecare Ltd,95.40,06/09/2023
Delivery Units,Adults and Health,Other Agencies - Third Party P,0090627627,Mayfair Homecare Ltd,551.20,06/09/2023
Delivery Units,Adults and Health,Other Agencies - Third Party P,0090627629,Mayfair Homecare Ltd,201.40,06/09/2023
Delivery Units,Adults and Health,Other Agencies - Third Party P,0090627630,Mayfair Homecare Ltd,408.10,06/09/2023
Delivery Units,Adults and Health,Other Agencies - Third Party P,0090627632,Mayfair Homecare Ltd,487.60,06/09/2023
Delivery Units,Adults and Health,Other Agencies - Third Party P,0090627633,Mayfair Homecare Ltd,"1,038.80",06/09/2023
Delivery Units,Adults and Health,Other Agencies - Third Party P,0090627634,Mayfair Homecare Ltd,265.00,06/09/2023
Delivery Units,Adults and Health,Other Agencies - Third Party P,0090627635,Mayfair Homecare Ltd,42.40,06/09/2023
Delivery Units,Adults and Health,Other Agencies - Third Party P,0090627636,Mayfair Homecare Ltd,42.40,06/09/2023
Delivery Units,Adults and Health,Other Agencies - Third Party P,0090627637,Mayfair Homecare Ltd,259.70,06/09/2023
Delivery Units,Adults and Health,Other Agencies - Third Party P,0090627638,Mayfair Homecare Ltd,392.20,06/09/2023
Delivery Units,Adults and Health,Other Agencies - Third Party P,0090627639,Mayfair Homecare Ltd,381.60,06/09/2023
Delivery Units,Adults and Health,Other Agencies - Third Party P,0090627640,Mayfair Homecare Ltd,106.00,06/09/2023
Delivery Units,Adults and Health,Other Agencies - Third Party P,0090627641,Mayfair Homecare Ltd,222.60,06/09/2023
Delivery Units,Adults and Health,Other Agencies - Third Party P,0090627642,Mayfair Homecare Ltd,169.60,06/09/2023
Delivery Units,Adults and Health,Other Agencies - Third Party P,0090627643,Mayfair Homecare Ltd,254.40,06/09/2023
Delivery Units,Adults and Health,Other Agencies - Third Party P,0090627644,Mayfair Homecare Ltd,111.30,06/09/2023
Delivery Units,Adults and Health,Other Agencies - Third Party P,0090627645,Mayfair Homecare Ltd,339.20,06/09/2023
Delivery Units,Adults and Health,Other Agencies - Third Party P,0090627646,Mayfair Homecare Ltd,190.80,06/09/2023
Delivery Units,Adults and Health,Other Agencies - Third Party P,0090627647,Mayfair Homecare Ltd,31.80,06/09/2023
Delivery Units,Adults and Health,Other Agencies - Third Party P,0090627651,Mayfair Homecare Ltd,159.00,06/09/2023
Delivery Units,Adults and Health,Other Agencies - Third Party P,0090627652,Mayfair Homecare Ltd,21.20,06/09/2023
Delivery Units,Adults and Health,Other Agencies - Third Party P,0090627654,Mayfair Homecare Ltd,243.80,06/09/2023
Delivery Units,Adults and Health,Other Agencies - Third Party P,0090627655,Mayfair Homecare Ltd,180.20,06/09/2023
Delivery Units,Adults and Health,Other Agencies - Third Party P,0090627657,Mayfair Homecare Ltd,386.90,06/09/2023
Delivery Units,Adults and Health,Other Agencies - Third Party P,0090627658,Mayfair Homecare Ltd,95.40,06/09/2023
Delivery Units,Adults and Health,Other Agencies - Third Party P,0090627661,Mayfair Homecare Ltd,296.80,06/09/2023
Delivery Units,Adults and Health,Other Agencies - Third Party P,0090627662,Mayfair Homecare Ltd,381.60,06/09/2023
Delivery Units,Adults and Health,Other Agencies - Third Party P,0090627665,Mayfair Homecare Ltd,42.40,06/09/2023
Delivery Units,Adults and Health,Other Agencies - Third Party P,0090627666,Mayfair Homecare Ltd,148.40,06/09/2023
Delivery Units,Adults and Health,Other Agencies - Third Party P,0090627668,Mayfair Homecare Ltd,445.20,06/09/2023
Delivery Units,Adults and Health,Other Agencies - Third Party P,0090627670,Mayfair Homecare Ltd,328.60,06/09/2023
Delivery Units,Adults and Health,Other Agencies - Third Party P,0090627672,Mayfair Homecare Ltd,"1,558.20",06/09/2023
Delivery Units,Adults and Health,Other Agencies - Third Party P,0090627673,Mayfair Homecare Ltd,233.20,06/09/2023
Delivery Units,Adults and Health,Other Agencies - Third Party P,0090627674,Mayfair Homecare Ltd,259.70,06/09/2023
Delivery Units,Adults and Health,Other Agencies - Third Party P,0090627675,Mayfair Homecare Ltd,280.90,06/09/2023
Delivery Units,Adults and Health,Other Agencies - Third Party P,0090627676,Mayfair Homecare Ltd,376.30,06/09/2023
Delivery Units,Adults and Health,Other Agencies - Third Party P,0090627677,Mayfair Homecare Ltd,180.20,06/09/2023
Delivery Units,Adults and Health,Other Agencies - Third Party P,0090627678,Mayfair Homecare Ltd,296.80,06/09/2023
Delivery Units,Adults and Health,Other Agencies - Third Party P,0090627679,Mayfair Homecare Ltd,339.20,06/09/2023
Delivery Units,Adults and Health,Other Agencies - Third Party P,0090627680,Mayfair Homecare Ltd,222.60,06/09/2023
Delivery Units,Adults and Health,Other Agencies - Third Party P,0090627681,Mayfair Homecare Ltd,212.00,06/09/2023
Delivery Units,Adults and Health,Other Agencies - Third Party P,0090627682,Mayfair Homecare Ltd,190.80,06/09/2023
Delivery Units,Adults and Health,Other Agencies - Third Party P,0090627683,Mayfair Homecare Ltd,445.20,06/09/2023
Delivery Units,Adults and Health,Other Agencies - Third Party P,0090627684,Mayfair Homecare Ltd,148.40,06/09/2023
Delivery Units,Adults and Health,Other Agencies - Third Party P,0090627685,Mayfair Homecare Ltd,296.80,06/09/2023
Delivery Units,Adults and Health,Other Agencies - Third Party P,0090627687,Mayfair Homecare Ltd,259.70,06/09/2023
Delivery Units,Adults and Health,Other Agencies - Third Party P,0090627688,Mayfair Homecare Ltd,95.40,06/09/2023
Delivery Units,Adults and Health,Other Agencies - Third Party P,0090627689,Mayfair Homecare Ltd,551.20,06/09/2023
Delivery Units,Adults and Health,Other Agencies - Third Party P,0090627691,Mayfair Homecare Ltd,201.40,06/09/2023
Delivery Units,Adults and Health,Other Agencies - Third Party P,0090627692,Mayfair Homecare Ltd,408.10,06/09/2023
Delivery Units,Adults and Health,Other Agencies - Third Party P,0090627694,Mayfair Homecare Ltd,503.50,06/09/2023
Delivery Units,Adults and Health,Other Agencies - Third Party P,0090627695,Mayfair Homecare Ltd,"1,038.80",06/09/2023
Delivery Units,Adults and Health,Other Agencies - Third Party P,0090627696,Mayfair Homecare Ltd,307.40,06/09/2023
Delivery Units,Adults and Health,Other Agencies - Third Party P,0090627697,Mayfair Homecare Ltd,79.50,06/09/2023
Delivery Units,Adults and Health,Other Agencies - Third Party P,0090627698,Mayfair Homecare Ltd,42.40,06/09/2023
Delivery Units,Adults and Health,Other Agencies - Third Party P,0090627699,Mayfair Homecare Ltd,42.40,06/09/2023
Delivery Units,Adults and Health,Other Agencies - Third Party P,0090627700,Mayfair Homecare Ltd,259.70,06/09/2023
Delivery Units,Adults and Health,Other Agencies - Third Party P,0090627701,Mayfair Homecare Ltd,270.30,06/09/2023
Delivery Units,Adults and Health,Other Agencies - Third Party P,0090627702,Mayfair Homecare Ltd,392.20,06/09/2023
Delivery Units,Adults and Health,Other Agencies - Third Party P,0090627703,Mayfair Homecare Ltd,381.60,06/09/2023
Delivery Units,Adults and Health,Other Agencies - Third Party P,0090627704,Mayfair Homecare Ltd,106.00,06/09/2023
Delivery Units,Adults and Health,Other Agencies - Third Party P,0090627705,Mayfair Homecare Ltd,222.60,06/09/2023
Delivery Units,Adults and Health,Other Agencies - Third Party P,0090627706,Mayfair Homecare Ltd,169.60,06/09/2023
Delivery Units,Adults and Health,Other Agencies - Third Party P,0090627707,Mayfair Homecare Ltd,254.40,06/09/2023
Delivery Units,Adults and Health,Other Agencies - Third Party P,0090627708,Mayfair Homecare Ltd,111.30,06/09/2023
Delivery Units,Adults and Health,Other Agencies - Third Party P,0090627709,Mayfair Homecare Ltd,339.20,06/09/2023
Delivery Units,Adults and Health,Other Agencies - Third Party P,0090627710,Mayfair Homecare Ltd,190.80,06/09/2023
Delivery Units,Adults and Health,Other Agencies - Third Party P,0090627711,Mayfair Homecare Ltd,31.80,06/09/2023
Delivery Units,Adults and Health,Other Agencies - Third Party P,0090627714,Mayfair Homecare Ltd,159.00,06/09/2023
Delivery Units,Adults and Health,Other Agencies - Third Party P,0090627715,Mayfair Homecare Ltd,159.00,06/09/2023
Delivery Units,Adults and Health,Other Agencies - Third Party P,0090627716,Mayfair Homecare Ltd,148.40,06/09/2023
Delivery Units,Adults and Health,Other Agencies - Third Party P,0090627717,Mayfair Homecare Ltd,371.00,06/09/2023
Delivery Units,Adults and Health,Other Agencies - Third Party P,0090627718,Mayfair Homecare Ltd,63.60,06/09/2023
Delivery Units,Adults and Health,Other Agencies - Third Party P,0090627721,Mayfair Homecare Ltd,296.80,06/09/2023
Delivery Units,Adults and Health,Other Agencies - Third Party P,0090627722,Mayfair Homecare Ltd,381.60,06/09/2023
Delivery Units,Adults and Health,Other Agencies - Third Party P,0090627724,Mayfair Homecare Ltd,31.80,06/09/2023
Delivery Units,Adults and Health,Other Agencies - Third Party P,0090627726,Mayfair Homecare Ltd,42.40,06/09/2023
Delivery Units,Adults and Health,Other Agencies - Third Party P,0090627727,Mayfair Homecare Ltd,148.40,06/09/2023
Delivery Units,Adults and Health,Other Agencies - Third Party P,0090627729,Mayfair Homecare Ltd,445.20,06/09/2023
Delivery Units,Adults and Health,Other Agencies - Third Party P,0090627731,Mayfair Homecare Ltd,328.60,06/09/2023
Delivery Units,Adults and Health,Other Agencies - Third Party P,0090627733,Mayfair Homecare Ltd,"1,568.80",06/09/2023
Delivery Units,Adults and Health,Other Agencies - Third Party P,0090627734,Mayfair Homecare Ltd,233.20,06/09/2023
Delivery Units,Adults and Health,Other Agencies - Third Party P,0090627735,Mayfair Homecare Ltd,302.10,06/09/2023
Delivery Units,Adults and Health,Other Agencies - Third Party P,0090627736,Mayfair Homecare Ltd,280.90,06/09/2023
Delivery Units,Adults and Health,Other Agencies - Third Party P,0090627737,Mayfair Homecare Ltd,376.30,06/09/2023
Delivery Units,Adults and Health,Other Agencies - Third Party P,0090627738,Mayfair Homecare Ltd,180.20,06/09/2023
Delivery Units,Adults and Health,Other Agencies - Third Party P,0090627739,Mayfair Homecare Ltd,296.80,06/09/2023
Delivery Units,Adults and Health,Other Agencies - Third Party P,0090627740,Mayfair Homecare Ltd,339.20,06/09/2023
Delivery Units,Adults and Health,Other Agencies - Third Party P,0090627741,Mayfair Homecare Ltd,222.60,06/09/2023
Delivery Units,Adults and Health,Other Agencies - Third Party P,0090627742,Mayfair Homecare Ltd,222.60,06/09/2023
Delivery Units,Adults and Health,Other Agencies - Third Party P,0090627743,Mayfair Homecare Ltd,190.80,06/09/2023
Delivery Units,Adults and Health,Other Agencies - Third Party P,0090627744,Mayfair Homecare Ltd,413.40,06/09/2023
Delivery Units,Adults and Health,Other Agencies - Third Party P,0090627745,Mayfair Homecare Ltd,148.40,06/09/2023
Delivery Units,Adults and Health,Other Agencies - Third Party P,0090627746,Mayfair Homecare Ltd,286.20,06/09/2023
Delivery Units,Adults and Health,Other Agencies - Third Party P,0090627748,Mayfair Homecare Ltd,259.70,06/09/2023
Delivery Units,Adults and Health,Other Agencies - Third Party P,0090627749,Mayfair Homecare Ltd,185.50,06/09/2023
Delivery Units,Adults and Health,Other Agencies - Third Party P,0090627750,Mayfair Homecare Ltd,551.20,06/09/2023
Delivery Units,Adults and Health,Other Agencies - Third Party P,0090627752,Mayfair Homecare Ltd,201.40,06/09/2023
Delivery Units,Adults and Health,Other Agencies - Third Party P,0090627753,Mayfair Homecare Ltd,408.10,06/09/2023
Delivery Units,Adults and Health,Other Agencies - Third Party P,0090627755,Mayfair Homecare Ltd,487.60,06/09/2023
Delivery Units,Adults and Health,Other Agencies - Third Party P,0090627756,Mayfair Homecare Ltd,"1,038.80",06/09/2023
Delivery Units,Adults and Health,Other Agencies - Third Party P,0090627757,Mayfair Homecare Ltd,296.80,06/09/2023
Delivery Units,Adults and Health,Other Agencies - Third Party P,0090627758,Mayfair Homecare Ltd,79.50,06/09/2023
Delivery Units,Adults and Health,Other Agencies - Third Party P,0090627759,Mayfair Homecare Ltd,42.40,06/09/2023
Delivery Units,Adults and Health,Other Agencies - Third Party P,0090627760,Mayfair Homecare Ltd,42.40,06/09/2023
Delivery Units,Adults and Health,Other Agencies - Third Party P,0090627761,Mayfair Homecare Ltd,259.70,06/09/2023
Delivery Units,Adults and Health,Other Agencies - Third Party P,0090627762,Mayfair Homecare Ltd,259.70,06/09/2023
Delivery Units,Adults and Health,Other Agencies - Third Party P,0090627763,Mayfair Homecare Ltd,392.20,06/09/2023
Delivery Units,Adults and Health,Other Agencies - Third Party P,0090627764,Mayfair Homecare Ltd,381.60,06/09/2023
Delivery Units,Adults and Health,Other Agencies - Third Party P,0090627765,Mayfair Homecare Ltd,106.00,06/09/2023
Delivery Units,Adults and Health,Other Agencies - Third Party P,0090627766,Mayfair Homecare Ltd,222.60,06/09/2023
Delivery Units,Adults and Health,Other Agencies - Third Party P,0090627767,Mayfair Homecare Ltd,169.60,06/09/2023
Delivery Units,Adults and Health,Other Agencies - Third Party P,0090627768,Mayfair Homecare Ltd,254.40,06/09/2023
Delivery Units,Adults and Health,Other Agencies - Third Party P,0090627769,Mayfair Homecare Ltd,111.30,06/09/2023
Delivery Units,Adults and Health,Other Agencies - Third Party P,0090627770,Mayfair Homecare Ltd,355.10,06/09/2023
Delivery Units,Adults and Health,Other Agencies - Third Party P,0090627771,Mayfair Homecare Ltd,190.80,06/09/2023
Delivery Units,Adults and Health,Other Agencies - Third Party P,0090627772,Mayfair Homecare Ltd,31.80,06/09/2023
Delivery Units,Adults and Health,Other Agencies - Third Party P,0090627775,Mayfair Homecare Ltd,159.00,06/09/2023
Delivery Units,Adults and Health,Other Agencies - Third Party P,0090627776,Mayfair Homecare Ltd,84.80,06/09/2023
Delivery Units,Adults and Health,Other Agencies - Third Party P,0090627777,Mayfair Homecare Ltd,259.70,06/09/2023
Delivery Units,Adults and Health,Other Agencies - Third Party P,0090627778,Mayfair Homecare Ltd,371.00,06/09/2023
Delivery Units,Adults and Health,Other Agencies - Third Party P,0090627779,Mayfair Homecare Ltd,63.60,06/09/2023
Delivery Units,Adults and Health,Other Agencies - Third Party P,0090627782,Mayfair Homecare Ltd,296.80,06/09/2023
Delivery Units,Adults and Health,Other Agencies - Third Party P,0090627783,Mayfair Homecare Ltd,381.60,06/09/2023
Delivery Units,Adults and Health,Other Agencies - Third Party P,0090627784,Mayfair Homecare Ltd,169.60,06/09/2023
Delivery Units,Adults and Health,Other Agencies - Third Party P,0090627786,Mayfair Homecare Ltd,31.80,06/09/2023
Delivery Units,Adults and Health,Other Agencies - Third Party P,0090627788,Mayfair Homecare Ltd,42.40,06/09/2023
Delivery Units,Adults and Health,Other Agencies - Third Party P,0090627789,Mayfair Homecare Ltd,148.40,06/09/2023
Delivery Units,Adults and Health,Other Agencies - Third Party P,0090627791,Mayfair Homecare Ltd,445.20,06/09/2023
Delivery Units,Adults and Health,Other Agencies - Third Party P,0090627793,Mayfair Homecare Ltd,328.60,06/09/2023
Delivery Units,Adults and Health,Other Agencies - Third Party P,0090627795,Mayfair Homecare Ltd,"1,568.80",06/09/2023
Delivery Units,Adults and Health,Other Agencies - Third Party P,0090627796,Mayfair Homecare Ltd,233.20,06/09/2023
Delivery Units,Adults and Health,Other Agencies - Third Party P,0090627797,Mayfair Homecare Ltd,259.70,06/09/2023
Delivery Units,Adults and Health,Other Agencies - Third Party P,0090627798,Mayfair Homecare Ltd,280.90,06/09/2023
Delivery Units,Adults and Health,Other Agencies - Third Party P,0090627799,Mayfair Homecare Ltd,376.30,06/09/2023
Delivery Units,Adults and Health,Other Agencies - Third Party P,0090627800,Mayfair Homecare Ltd,180.20,06/09/2023
Delivery Units,Adults and Health,Other Agencies - Third Party P,0090627801,Mayfair Homecare Ltd,296.80,06/09/2023
Delivery Units,Adults and Health,Other Agencies - Third Party P,0090627802,Mayfair Homecare Ltd,339.20,06/09/2023
Delivery Units,Adults and Health,Other Agencies - Third Party P,0090627803,Mayfair Homecare Ltd,222.60,06/09/2023
Delivery Units,Adults and Health,Other Agencies - Third Party P,0090627804,Mayfair Homecare Ltd,159.00,06/09/2023
Delivery Units,Adults and Health,Other Agencies - Third Party P,0090627805,Mayfair Homecare Ltd,190.80,06/09/2023
Delivery Units,Adults and Health,Other Agencies - Third Party P,0090627806,Mayfair Homecare Ltd,286.20,06/09/2023
Delivery Units,Adults and Health,Other Agencies - Third Party P,0090627807,Mayfair Homecare Ltd,148.40,06/09/2023
Delivery Units,Adults and Health,Other Agencies - Third Party P,0090627808,Mayfair Homecare Ltd,286.20,06/09/2023
Delivery Units,Adults and Health,Other Agencies - Third Party P,0090627810,Mayfair Homecare Ltd,259.70,06/09/2023
Delivery Units,Adults and Health,Other Agencies - Third Party P,0090627811,Mayfair Homecare Ltd,185.50,06/09/2023
Delivery Units,Adults and Health,Other Agencies - Third Party P,0090627812,Mayfair Homecare Ltd,551.20,06/09/2023
Delivery Units,Adults and Health,Other Agencies - Third Party P,0090627814,Mayfair Homecare Ltd,185.50,06/09/2023
Delivery Units,Adults and Health,Other Agencies - Third Party P,0090627815,Mayfair Homecare Ltd,408.10,06/09/2023
Delivery Units,Adults and Health,Other Agencies - Third Party P,0090627817,Mayfair Homecare Ltd,503.50,06/09/2023
Delivery Units,Adults and Health,Other Agencies - Third Party P,0090627818,Mayfair Homecare Ltd,"1,038.80",06/09/2023
Delivery Units,Adults and Health,Other Agencies - Third Party P,0090627819,Mayfair Homecare Ltd,307.40,06/09/2023
Delivery Units,Adults and Health,Other Agencies - Third Party P,0090627820,Mayfair Homecare Ltd,79.50,06/09/2023
Delivery Units,Adults and Health,Other Agencies - Third Party P,0090627821,Mayfair Homecare Ltd,53.00,06/09/2023
Delivery Units,Adults and Health,Other Agencies - Third Party P,0090627822,Mayfair Homecare Ltd,42.40,06/09/2023
Delivery Units,Adults and Health,Other Agencies - Third Party P,0090627823,Mayfair Homecare Ltd,259.70,06/09/2023
Delivery Units,Adults and Health,Other Agencies - Third Party P,0090627824,Mayfair Homecare Ltd,259.70,06/09/2023
Delivery Units,Adults and Health,Other Agencies - Third Party P,0090627825,Mayfair Homecare Ltd,392.20,06/09/2023
Delivery Units,Adults and Health,Other Agencies - Third Party P,0090627826,Mayfair Homecare Ltd,381.60,06/09/2023
Delivery Units,Adults and Health,Other Agencies - Third Party P,0090627827,Mayfair Homecare Ltd,106.00,06/09/2023
Delivery Units,Adults and Health,Other Agencies - Third Party P,0090627828,Mayfair Homecare Ltd,222.60,06/09/2023
Delivery Units,Adults and Health,Other Agencies - Third Party P,0090627829,Mayfair Homecare Ltd,169.60,06/09/2023
Delivery Units,Adults and Health,Other Agencies - Third Party P,0090627830,Mayfair Homecare Ltd,254.40,06/09/2023
Delivery Units,Adults and Health,Other Agencies - Third Party P,0090627831,Mayfair Homecare Ltd,111.30,06/09/2023
Delivery Units,Adults and Health,Other Agencies - Third Party P,0090627832,Mayfair Homecare Ltd,68.90,06/09/2023
Delivery Units,Adults and Health,Other Agencies - Third Party P,0090627833,Mayfair Homecare Ltd,190.80,06/09/2023
Delivery Units,Adults and Health,Other Agencies - Third Party P,0090627834,Mayfair Homecare Ltd,31.80,06/09/2023
Delivery Units,Adults and Health,Other Agencies - Third Party P,0090627837,Mayfair Homecare Ltd,159.00,06/09/2023
Delivery Units,Adults and Health,Other Agencies - Third Party P,0090627838,Mayfair Homecare Ltd,95.40,06/09/2023
Delivery Units,Adults and Health,Other Agencies - Third Party P,0090627839,Mayfair Homecare Ltd,302.10,06/09/2023
Delivery Units,Adults and Health,Other Agencies - Third Party P,0090627840,Mayfair Homecare Ltd,371.00,06/09/2023
Delivery Units,Adults and Health,Other Agencies - Third Party P,0090627841,Mayfair Homecare Ltd,95.40,06/09/2023
Delivery Units,Adults and Health,Other Agencies - Third Party P,0090627844,Mayfair Homecare Ltd,296.80,06/09/2023
Delivery Units,Adults and Health,Other Agencies - Third Party P,0090627845,Mayfair Homecare Ltd,381.60,06/09/2023
Delivery Units,Adults and Health,Other Agencies - Third Party P,0090627846,Mayfair Homecare Ltd,296.80,06/09/2023
Delivery Units,Adults and Health,Other Agencies - Third Party P,0090627848,Mayfair Homecare Ltd,31.80,06/09/2023
Delivery Units,Adults and Health,Other Agencies - Third Party P,0090627854,Enhanced Care Solutions Limited,"2,180.28",06/09/2023
Delivery Units,Adults and Health,Other Agencies - Third Party P,0090627855,Enhanced Care Solutions Limited,423.74,06/09/2023
Delivery Units,Adults and Health,Other Agencies - Third Party P,0090627856,Enhanced Care Solutions Limited,380.28,06/09/2023
Delivery Units,Adults and Health,Other Agencies - Third Party P,0090627860,Enhanced Care Solutions Limited,304.22,06/09/2023
Delivery Units,Adults and Health,Other Agencies - Third Party P,0090627861,Enhanced Care Solutions Limited,114.08,06/09/2023
Delivery Units,Adults and Health,Other Agencies - Third Party P,0090627862,Enhanced Care Solutions Limited,195.57,06/09/2023
Delivery Units,Adults and Health,Other Agencies - Third Party P,0090627863,Enhanced Care Solutions Limited,836.61,06/09/2023
Delivery Units,Adults and Health,Other Agencies - Third Party P,0090627864,Enhanced Care Solutions Limited,521.52,06/09/2023
Delivery Units,Adults and Health,Other Agencies - Third Party P,0090627865,Enhanced Care Solutions Limited,472.63,06/09/2023
Delivery Units,Adults and Health,Other Agencies - Third Party P,0090627866,Enhanced Care Solutions Limited,108.65,06/09/2023
Delivery Units,Adults and Health,Other Agencies - Third Party P,0090627867,Enhanced Care Solutions Limited,152.11,06/09/2023
Delivery Units,Adults and Health,Other Agencies - Third Party P,0090627868,Enhanced Care Solutions Limited,516.09,06/09/2023
Delivery Units,Adults and Health,Other Agencies - Third Party P,0090627869,Enhanced Care Solutions Limited,190.14,06/09/2023
Delivery Units,Adults and Health,Other Agencies - Third Party P,0090627870,Enhanced Care Solutions Limited,423.74,06/09/2023
Delivery Units,Adults and Health,Other Agencies - Third Party P,0090627871,Enhanced Care Solutions Limited,304.22,06/09/2023
Delivery Units,Adults and Health,Other Agencies - Third Party P,0090627872,Enhanced Care Solutions Limited,21.73,06/09/2023
Delivery Units,Adults and Health,Other Agencies - Third Party P,0090627873,Enhanced Care Solutions Limited,173.84,06/09/2023
Delivery Units,Adults and Health,Other Agencies - Third Party P,0090627874,Enhanced Care Solutions Limited,65.19,06/09/2023
Delivery Units,Adults and Health,Other Agencies - Third Party P,0090627875,Enhanced Care Solutions Limited,266.19,06/09/2023
Delivery Units,Adults and Health,Other Agencies - Third Party P,0090627876,Enhanced Care Solutions Limited,"2,531.55",06/09/2023
Delivery Units,Adults and Health,Other Agencies - Third Party P,0090627877,Enhanced Care Solutions Limited,412.87,06/09/2023
Delivery Units,Adults and Health,Other Agencies - Third Party P,0090627878,Enhanced Care Solutions Limited,363.98,06/09/2023
Delivery Units,Adults and Health,Other Agencies - Third Party P,0090627879,Enhanced Care Solutions Limited,211.87,06/09/2023
Delivery Units,Adults and Health,Other Agencies - Third Party P,0090627880,Enhanced Care Solutions Limited,114.08,06/09/2023
Delivery Units,Adults and Health,Other Agencies - Third Party P,0090627881,Enhanced Care Solutions Limited,304.22,06/09/2023
Delivery Units,Adults and Health,Other Agencies - Third Party P,0090627882,Enhanced Care Solutions Limited,347.68,06/09/2023
Delivery Units,Adults and Health,Other Agencies - Third Party P,0090627883,Enhanced Care Solutions Limited,836.61,06/09/2023
Delivery Units,Adults and Health,Other Agencies - Third Party P,0090627884,Enhanced Care Solutions Limited,684.50,06/09/2023
Delivery Units,Adults and Health,Other Agencies - Third Party P,0090627886,Enhanced Care Solutions Limited,190.14,06/09/2023
Delivery Units,Adults and Health,Other Agencies - Third Party P,0090627887,Enhanced Care Solutions Limited,532.39,06/09/2023
Delivery Units,Adults and Health,Other Agencies - Third Party P,0090627888,Enhanced Care Solutions Limited,380.28,06/09/2023
Delivery Units,Adults and Health,Other Agencies - Third Party P,0090627889,Enhanced Care Solutions Limited,309.65,06/09/2023
Delivery Units,Adults and Health,Other Agencies - Third Party P,0090627890,Enhanced Care Solutions Limited,114.08,06/09/2023
Delivery Units,Adults and Health,Other Agencies - Third Party P,0090627892,Enhanced Care Solutions Limited,152.11,06/09/2023
Delivery Units,Adults and Health,Other Agencies - Third Party P,0090627893,Enhanced Care Solutions Limited,173.84,06/09/2023
Delivery Units,Adults and Health,Other Agencies - Third Party P,0090627894,Enhanced Care Solutions Limited,108.65,06/09/2023
Delivery Units,Adults and Health,Other Agencies - Third Party P,0090627895,Enhanced Care Solutions Limited,190.14,06/09/2023
Delivery Units,Adults and Health,Other Agencies - Third Party P,0090627896,Enhanced Care Solutions Limited,114.08,06/09/2023
Delivery Units,Adults and Health,Other Agencies - Third Party P,0090627897,Enhanced Care Solutions Limited,456.33,06/09/2023
Delivery Units,Adults and Health,Other Agencies - Third Party P,0090627898,Enhanced Care Solutions Limited,"1,368.99",06/09/2023
Delivery Units,Adults and Health,Other Agencies - Third Party P,0090627899,Enhanced Care Solutions Limited,912.66,06/09/2023
Delivery Units,Adults and Health,Other Agencies - Third Party P,0090627900,Enhanced Care Solutions Limited,706.23,06/09/2023
Delivery Units,Adults and Health,Other Agencies - Third Party P,0090627903,Enhanced Care Solutions Limited,"2,180.28",06/09/2023
Delivery Units,Adults and Health,Other Agencies - Third Party P,0090627904,Enhanced Care Solutions Limited,423.74,06/09/2023
Delivery Units,Adults and Health,Other Agencies - Third Party P,0090627905,Enhanced Care Solutions Limited,222.73,06/09/2023
Delivery Units,Adults and Health,Other Agencies - Third Party P,0090627909,Enhanced Care Solutions Limited,304.22,06/09/2023
Delivery Units,Adults and Health,Other Agencies - Third Party P,0090627910,Enhanced Care Solutions Limited,114.08,06/09/2023
Delivery Units,Adults and Health,Other Agencies - Third Party P,0090627911,Enhanced Care Solutions Limited,195.57,06/09/2023
Delivery Units,Adults and Health,Other Agencies - Third Party P,0090627912,Enhanced Care Solutions Limited,836.61,06/09/2023
Delivery Units,Adults and Health,Other Agencies - Third Party P,0090627913,Enhanced Care Solutions Limited,521.52,06/09/2023
Delivery Units,Adults and Health,Other Agencies - Third Party P,0090627914,Enhanced Care Solutions Limited,472.63,06/09/2023
Delivery Units,Adults and Health,Other Agencies - Third Party P,0090627915,Enhanced Care Solutions Limited,108.65,06/09/2023
Delivery Units,Adults and Health,Other Agencies - Third Party P,0090627916,Enhanced Care Solutions Limited,152.11,06/09/2023
Delivery Units,Adults and Health,Other Agencies - Third Party P,0090627917,Enhanced Care Solutions Limited,516.09,06/09/2023
Delivery Units,Adults and Health,Other Agencies - Third Party P,0090627918,Enhanced Care Solutions Limited,190.14,06/09/2023
Delivery Units,Adults and Health,Other Agencies - Third Party P,0090627919,Enhanced Care Solutions Limited,423.74,06/09/2023
Delivery Units,Adults and Health,Other Agencies - Third Party P,0090627920,Enhanced Care Solutions Limited,304.22,06/09/2023
Delivery Units,Adults and Health,Other Agencies - Third Party P,0090627921,Enhanced Care Solutions Limited,21.73,06/09/2023
Delivery Units,Adults and Health,Other Agencies - Third Party P,0090627922,Enhanced Care Solutions Limited,173.84,06/09/2023
Delivery Units,Adults and Health,Other Agencies - Third Party P,0090627923,Enhanced Care Solutions Limited,65.19,06/09/2023
Delivery Units,Adults and Health,Other Agencies - Third Party P,0090627924,Enhanced Care Solutions Limited,266.19,06/09/2023
Delivery Units,Adults and Health,Other Agencies - Third Party P,0090627925,Enhanced Care Solutions Limited,"2,531.55",06/09/2023
Delivery Units,Adults and Health,Other Agencies - Third Party P,0090627926,Enhanced Care Solutions Limited,412.87,06/09/2023
Delivery Units,Adults and Health,Other Agencies - Third Party P,0090627927,Enhanced Care Solutions Limited,363.98,06/09/2023
Delivery Units,Adults and Health,Other Agencies - Third Party P,0090627928,Enhanced Care Solutions Limited,211.87,06/09/2023
Delivery Units,Adults and Health,Other Agencies - Third Party P,0090627929,Enhanced Care Solutions Limited,114.08,06/09/2023
Delivery Units,Adults and Health,Other Agencies - Third Party P,0090627930,Enhanced Care Solutions Limited,304.22,06/09/2023
Delivery Units,Adults and Health,Other Agencies - Third Party P,0090627931,Enhanced Care Solutions Limited,304.22,06/09/2023
Delivery Units,Adults and Health,Other Agencies - Third Party P,0090627932,Enhanced Care Solutions Limited,836.61,06/09/2023
Delivery Units,Adults and Health,Other Agencies - Third Party P,0090627933,Enhanced Care Solutions Limited,684.50,06/09/2023
Delivery Units,Adults and Health,Other Agencies - Third Party P,0090627935,Enhanced Care Solutions Limited,190.14,06/09/2023
Delivery Units,Adults and Health,Other Agencies - Third Party P,0090627936,Enhanced Care Solutions Limited,532.39,06/09/2023
Delivery Units,Adults and Health,Other Agencies - Third Party P,0090627937,Enhanced Care Solutions Limited,380.28,06/09/2023
Delivery Units,Adults and Health,Other Agencies - Third Party P,0090627938,Enhanced Care Solutions Limited,271.63,06/09/2023
Delivery Units,Adults and Health,Other Agencies - Third Party P,0090627939,Enhanced Care Solutions Limited,114.08,06/09/2023
Delivery Units,Adults and Health,Other Agencies - Third Party P,0090627941,Enhanced Care Solutions Limited,152.11,06/09/2023
Delivery Units,Adults and Health,Other Agencies - Third Party P,0090627942,Enhanced Care Solutions Limited,173.84,06/09/2023
Delivery Units,Adults and Health,Other Agencies - Third Party P,0090627943,Enhanced Care Solutions Limited,108.65,06/09/2023
Delivery Units,Adults and Health,Other Agencies - Third Party P,0090627944,Enhanced Care Solutions Limited,190.14,06/09/2023
Delivery Units,Adults and Health,Other Agencies - Third Party P,0090627945,Enhanced Care Solutions Limited,114.08,06/09/2023
Delivery Units,Adults and Health,Other Agencies - Third Party P,0090627946,Enhanced Care Solutions Limited,461.76,06/09/2023
Delivery Units,Adults and Health,Other Agencies - Third Party P,0090627947,Enhanced Care Solutions Limited,"1,368.99",06/09/2023
Delivery Units,Adults and Health,Other Agencies - Third Party P,0090627948,Enhanced Care Solutions Limited,912.66,06/09/2023
Delivery Units,Adults and Health,Other Agencies - Third Party P,0090627949,Enhanced Care Solutions Limited,706.23,06/09/2023
Delivery Units,Adults and Health,Other Agencies - Third Party P,0090627951,Enhanced Care Solutions Limited,108.65,06/09/2023
Delivery Units,Adults and Health,Other Agencies - Third Party P,0090627952,Nwando Domiciliary Care Ltd,334.78,06/09/2023
Delivery Units,Adults and Health,Other Agencies - Third Party P,0090627954,Nwando Domiciliary Care Ltd,200.87,06/09/2023
Delivery Units,Adults and Health,Other Agencies - Third Party P,0090627955,Nwando Domiciliary Care Ltd,669.55,06/09/2023
Delivery Units,Adults and Health,Other Agencies - Third Party P,0090627956,Nwando Domiciliary Care Ltd,133.91,06/09/2023
Delivery Units,Adults and Health,Other Agencies - Third Party P,0090627957,Nwando Domiciliary Care Ltd,138.69,06/09/2023
Delivery Units,Adults and Health,Other Agencies - Third Party P,0090627959,Nwando Domiciliary Care Ltd,"1,071.28",06/09/2023
Delivery Units,Adults and Health,Other Agencies - Third Party P,0090627960,Nwando Domiciliary Care Ltd,306.08,06/09/2023
Delivery Units,Adults and Health,Other Agencies - Third Party P,0090627963,Nwando Domiciliary Care Ltd,"1,826.92",06/09/2023
Delivery Units,Adults and Health,Other Agencies - Third Party P,0090627964,Nwando Domiciliary Care Ltd,272.60,06/09/2023
Delivery Units,Adults and Health,Other Agencies - Third Party P,0090627965,Nwando Domiciliary Care Ltd,669.55,06/09/2023
Delivery Units,Adults and Health,Other Agencies - Third Party P,0090627967,Nwando Domiciliary Care Ltd,334.78,06/09/2023
Delivery Units,Adults and Health,Other Agencies - Third Party P,0090627968,Nwando Domiciliary Care Ltd,267.82,06/09/2023
Delivery Units,Adults and Health,Other Agencies - Third Party P,0090627969,Nwando Domiciliary Care Ltd,"1,941.70",06/09/2023
Delivery Units,Adults and Health,Other Agencies - Third Party P,0090627972,Nwando Domiciliary Care Ltd,463.90,06/09/2023
Delivery Units,Adults and Health,Other Agencies - Third Party P,0090627975,Nwando Domiciliary Care Ltd,253.47,06/09/2023
Delivery Units,Adults and Health,Other Agencies - Third Party P,0090627976,Nwando Domiciliary Care Ltd,66.96,06/09/2023
Delivery Units,Adults and Health,Other Agencies - Third Party P,0090627980,Nwando Domiciliary Care Ltd,353.91,06/09/2023
Delivery Units,Adults and Health,Other Agencies - Third Party P,0090627982,Nwando Domiciliary Care Ltd,200.87,06/09/2023
Delivery Units,Adults and Health,Other Agencies - Third Party P,0090627983,Nwando Domiciliary Care Ltd,669.55,06/09/2023
Delivery Units,Adults and Health,Other Agencies - Third Party P,0090627984,Nwando Domiciliary Care Ltd,133.91,06/09/2023
Delivery Units,Adults and Health,Other Agencies - Third Party P,0090627985,Nwando Domiciliary Care Ltd,138.69,06/09/2023
Delivery Units,Adults and Health,Other Agencies - Third Party P,0090627987,Nwando Domiciliary Care Ltd,765.20,06/09/2023
Delivery Units,Adults and Health,Other Agencies - Third Party P,0090627988,Nwando Domiciliary Care Ltd,306.08,06/09/2023
Delivery Units,Adults and Health,Other Agencies - Third Party P,0090627991,Nwando Domiciliary Care Ltd,"1,396.49",06/09/2023
Delivery Units,Adults and Health,Other Agencies - Third Party P,0090627992,Nwando Domiciliary Care Ltd,286.95,06/09/2023
Delivery Units,Adults and Health,Other Agencies - Third Party P,0090627993,Nwando Domiciliary Care Ltd,669.55,06/09/2023
Delivery Units,Adults and Health,Other Agencies - Third Party P,0090627995,Nwando Domiciliary Care Ltd,334.78,06/09/2023
Delivery Units,Adults and Health,Other Agencies - Third Party P,0090627996,Nwando Domiciliary Care Ltd,267.82,06/09/2023
Delivery Units,Adults and Health,Other Agencies - Third Party P,0090627997,Nwando Domiciliary Care Ltd,"1,941.70",06/09/2023
Delivery Units,Adults and Health,Other Agencies - Third Party P,0090628001,Nwando Domiciliary Care Ltd,334.78,06/09/2023
Delivery Units,Adults and Health,Other Agencies - Third Party P,0090628002,Nwando Domiciliary Care Ltd,81.30,06/09/2023
Delivery Units,Adults and Health,Other Agencies - Third Party P,0090628005,Nwando Domiciliary Care Ltd,353.91,06/09/2023
Delivery Units,Adults and Health,Other Agencies - Third Party P,0090628007,Nwando Domiciliary Care Ltd,200.87,06/09/2023
Delivery Units,Adults and Health,Other Agencies - Third Party P,0090628008,Nwando Domiciliary Care Ltd,669.55,06/09/2023
Delivery Units,Adults and Health,Other Agencies - Third Party P,0090628009,Nwando Domiciliary Care Ltd,133.91,06/09/2023
Delivery Units,Adults and Health,Other Agencies - Third Party P,0090628010,Nwando Domiciliary Care Ltd,138.69,06/09/2023
Delivery Units,Adults and Health,Other Agencies - Third Party P,0090628012,Nwando Domiciliary Care Ltd,306.08,06/09/2023
Delivery Units,Adults and Health,Other Agencies - Third Party P,0090628015,Nwando Domiciliary Care Ltd,"1,415.62",06/09/2023
Delivery Units,Adults and Health,Other Agencies - Third Party P,0090628016,Nwando Domiciliary Care Ltd,286.95,06/09/2023
Delivery Units,Adults and Health,Other Agencies - Third Party P,0090628017,Nwando Domiciliary Care Ltd,669.55,06/09/2023
Delivery Units,Adults and Health,Other Agencies - Third Party P,0090628019,Nwando Domiciliary Care Ltd,334.78,06/09/2023
Delivery Units,Adults and Health,Other Agencies - Third Party P,0090628020,Nwando Domiciliary Care Ltd,267.82,06/09/2023
Delivery Units,Adults and Health,Other Agencies - Third Party P,0090628021,Nwando Domiciliary Care Ltd,"1,941.70",06/09/2023
Delivery Units,Adults and Health,Other Agencies - Third Party P,0090628024,Nwando Domiciliary Care Ltd,329.99,06/09/2023
Delivery Units,Adults and Health,Other Agencies - Third Party P,0090628025,Nwando Domiciliary Care Ltd,66.96,06/09/2023
Delivery Units,Adults and Health,Other Agencies - Third Party P,0090628027,Nwando Domiciliary Care Ltd,353.91,06/09/2023
Delivery Units,Adults and Health,Other Agencies - Third Party P,0090628028,Nwando Domiciliary Care Ltd,200.87,06/09/2023
Delivery Units,Adults and Health,Other Agencies - Third Party P,0090628029,Nwando Domiciliary Care Ltd,650.42,06/09/2023
Delivery Units,Adults and Health,Other Agencies - Third Party P,0090628030,Nwando Domiciliary Care Ltd,133.91,06/09/2023
Delivery Units,Adults and Health,Other Agencies - Third Party P,0090628031,Nwando Domiciliary Care Ltd,138.69,06/09/2023
Delivery Units,Adults and Health,Other Agencies - Third Party P,0090628033,Nwando Domiciliary Care Ltd,306.08,06/09/2023
Delivery Units,Adults and Health,Other Agencies - Third Party P,0090628036,Nwando Domiciliary Care Ltd,"1,415.62",06/09/2023
Delivery Units,Adults and Health,Other Agencies - Third Party P,0090628037,Nwando Domiciliary Care Ltd,286.95,06/09/2023
Delivery Units,Adults and Health,Other Agencies - Third Party P,0090628038,Nwando Domiciliary Care Ltd,659.99,06/09/2023
Delivery Units,Adults and Health,Other Agencies - Third Party P,0090628040,Nwando Domiciliary Care Ltd,334.78,06/09/2023
Delivery Units,Adults and Health,Other Agencies - Third Party P,0090628041,Nwando Domiciliary Care Ltd,286.95,06/09/2023
Delivery Units,Adults and Health,Other Agencies - Third Party P,0090628042,Nwando Domiciliary Care Ltd,"1,941.70",06/09/2023
Delivery Units,Adults and Health,Other Agencies - Third Party P,0090628045,Nwando Domiciliary Care Ltd,329.99,06/09/2023
Delivery Units,Adults and Health,Other Agencies - Third Party P,0090628046,Nwando Domiciliary Care Ltd,66.96,06/09/2023
Delivery Units,Adults and Health,Other Agencies - Third Party P,0090628096,Navarros Care Ltd,107.10,06/09/2023
Delivery Units,Adults and Health,Other Agencies - Third Party P,0090628097,Navarros Care Ltd,899.64,06/09/2023
Delivery Units,Adults and Health,Other Agencies - Third Party P,0090628098,Navarros Care Ltd,224.91,06/09/2023
Delivery Units,Adults and Health,Other Agencies - Third Party P,0090628099,Bliss Care and Training Ltd,630.00,06/09/2023
Delivery Units,Adults and Health,Other Agencies - Third Party P,0090628100,Bliss Care and Training Ltd,351.00,06/09/2023
Delivery Units,Adults and Health,Other Agencies - Third Party P,0090628101,Bliss Care and Training Ltd,256.50,06/09/2023
Delivery Units,Adults and Health,Other Agencies - Third Party P,0090628102,Bliss Care and Training Ltd,36.00,06/09/2023
Delivery Units,Adults and Health,Other Agencies - Third Party P,0090628105,Bliss Care and Training Ltd,81.00,06/09/2023
Delivery Units,Adults and Health,Other Agencies - Third Party P,0090628108,Bliss Care and Training Ltd,63.00,06/09/2023
Delivery Units,Adults and Health,Other Agencies - Third Party P,0090628116,Bliss Care and Training Ltd,157.50,06/09/2023
Delivery Units,Adults and Health,Other Agencies - Third Party P,0090628117,Bliss Care and Training Ltd,499.50,06/09/2023
Delivery Units,Adults and Health,Other Agencies - Third Party P,0090628118,Bliss Care and Training Ltd,283.50,06/09/2023
Delivery Units,Adults and Health,Other Agencies - Third Party P,0090628119,Bliss Care and Training Ltd,630.00,06/09/2023
Delivery Units,Adults and Health,Other Agencies - Third Party P,0090628121,Bliss Care and Training Ltd,162.00,06/09/2023
Delivery Units,Adults and Health,Other Agencies - Third Party P,0090628122,Bliss Care and Training Ltd,220.50,06/09/2023
Delivery Units,Adults and Health,Other Agencies - Third Party P,0090628123,Bliss Care and Training Ltd,369.00,06/09/2023
Delivery Units,Adults and Health,Other Agencies - Third Party P,0090628124,Bliss Care and Training Ltd,18.00,06/09/2023
Delivery Units,Adults and Health,Other Agencies - Third Party P,0090628126,Bliss Care and Training Ltd,234.00,06/09/2023
Delivery Units,Adults and Health,Other Agencies - Third Party P,0090628128,Bliss Care and Training Ltd,252.00,06/09/2023
Delivery Units,Adults and Health,Other Agencies - Third Party P,0090628129,Bliss Care and Training Ltd,94.50,06/09/2023
Delivery Units,Adults and Health,Other Agencies - Third Party P,0090628130,Bliss Care and Training Ltd,346.50,06/09/2023
Delivery Units,Adults and Health,Other Agencies - Third Party P,0090628132,Bliss Care and Training Ltd,126.00,06/09/2023
Delivery Units,Adults and Health,Other Agencies - Third Party P,0090628134,Bliss Care and Training Ltd,63.00,06/09/2023
Delivery Units,Adults and Health,Other Agencies - Third Party P,0090628135,Bliss Care and Training Ltd,247.50,06/09/2023
Delivery Units,Adults and Health,Other Agencies - Third Party P,0090628136,Bliss Care and Training Ltd,126.00,06/09/2023
Delivery Units,Adults and Health,Other Agencies - Third Party P,0090628137,Bliss Care and Training Ltd,63.00,06/09/2023
Delivery Units,Adults and Health,Other Agencies - Third Party P,0090628138,Bliss Care and Training Ltd,157.50,06/09/2023
Delivery Units,Adults and Health,Other Agencies - Third Party P,0090628139,Bliss Care and Training Ltd,153.00,06/09/2023
Delivery Units,Adults and Health,Other Agencies - Third Party P,0090628140,Bliss Care and Training Ltd,94.50,06/09/2023
Delivery Units,Adults and Health,Other Agencies - Third Party P,0090628141,Bliss Care and Training Ltd,139.50,06/09/2023
Delivery Units,Adults and Health,Other Agencies - Third Party P,0090628142,Bliss Care and Training Ltd,315.00,06/09/2023
Delivery Units,Adults and Health,Other Agencies - Third Party P,0090628143,Bliss Care and Training Ltd,283.50,06/09/2023
Delivery Units,Adults and Health,Other Agencies - Third Party P,0090628144,Bliss Care and Training Ltd,684.00,06/09/2023
Delivery Units,Adults and Health,Other Agencies - Third Party P,0090628146,Bliss Care and Training Ltd,220.50,06/09/2023
Delivery Units,Adults and Health,Other Agencies - Third Party P,0090628147,Bliss Care and Training Ltd,207.00,06/09/2023
Delivery Units,Adults and Health,Other Agencies - Third Party P,0090628148,Bliss Care and Training Ltd,441.00,06/09/2023
Delivery Units,Adults and Health,Other Agencies - Third Party P,0090628149,Bliss Care and Training Ltd,283.50,06/09/2023
Delivery Units,Adults and Health,Other Agencies - Third Party P,0090628150,Bliss Care and Training Ltd,234.00,06/09/2023
Delivery Units,Adults and Health,Other Agencies - Third Party P,0090628153,Bliss Care and Training Ltd,630.00,06/09/2023
Delivery Units,Adults and Health,Other Agencies - Third Party P,0090628156,Bliss Care and Training Ltd,252.00,06/09/2023
Delivery Units,Adults and Health,Other Agencies - Third Party P,0090628157,Bliss Care and Training Ltd,157.50,06/09/2023
Delivery Units,Adults and Health,Other Agencies - Third Party P,0090628158,Bliss Care and Training Ltd,189.00,06/09/2023
Delivery Units,Adults and Health,Other Agencies - Third Party P,0090628159,Bliss Care and Training Ltd,346.50,06/09/2023
Delivery Units,Adults and Health,Other Agencies - Third Party P,0090628161,Bliss Care and Training Ltd,220.50,06/09/2023
Delivery Units,Adults and Health,Other Agencies - Third Party P,0090628162,Bliss Care and Training Ltd,"1,719.00",06/09/2023
Delivery Units,Adults and Health,Other Agencies - Third Party P,0090628163,Bliss Care and Training Ltd,315.00,06/09/2023
Delivery Units,Adults and Health,Other Agencies - Third Party P,0090628164,Bliss Care and Training Ltd,157.50,06/09/2023
Delivery Units,Adults and Health,Other Agencies - Third Party P,0090628165,Bliss Care and Training Ltd,882.00,06/09/2023
Delivery Units,Adults and Health,Other Agencies - Third Party P,0090628166,Bliss Care and Training Ltd,400.50,06/09/2023
Delivery Units,Adults and Health,Other Agencies - Third Party P,0090628167,Bliss Care and Training Ltd,724.50,06/09/2023
Delivery Units,Adults and Health,Other Agencies - Third Party P,0090628169,Bliss Care and Training Ltd,567.00,06/09/2023
Delivery Units,Adults and Health,Other Agencies - Third Party P,0090628170,Bliss Care and Training Ltd,630.00,06/09/2023
Delivery Units,Adults and Health,Other Agencies - Third Party P,0090628171,Bliss Care and Training Ltd,67.50,06/09/2023
Delivery Units,Adults and Health,Other Agencies - Third Party P,0090628174,Bliss Care and Training Ltd,117.00,06/09/2023
Delivery Units,Adults and Health,Other Agencies - Third Party P,0090628176,Bliss Care and Training Ltd,238.50,06/09/2023
Delivery Units,Adults and Health,Other Agencies - Third Party P,0090628180,Bliss Care and Training Ltd,243.00,06/09/2023
Delivery Units,Adults and Health,Other Agencies - Third Party P,0090628181,Bliss Care and Training Ltd,283.50,06/09/2023
Delivery Units,Adults and Health,Other Agencies - Third Party P,0090628184,Bliss Care and Training Ltd,27.00,06/09/2023
Delivery Units,Adults and Health,Other Agencies - Third Party P,0090628187,Bliss Care and Training Ltd,85.50,06/09/2023
Delivery Units,Adults and Health,Other Agencies - Third Party P,0090628188,Bliss Care and Training Ltd,90.00,06/09/2023
Delivery Units,Adults and Health,Other Agencies - Third Party P,0090628196,Bliss Care and Training Ltd,378.00,06/09/2023
Delivery Units,Adults and Health,Other Agencies - Third Party P,0090628200,Bliss Care and Training Ltd,90.00,06/09/2023
Delivery Units,Adults and Health,Other Agencies - Third Party P,0090628202,Bliss Care and Training Ltd,36.00,06/09/2023
Delivery Units,Adults and Health,Other Agencies - Third Party P,0090628206,Bliss Care and Training Ltd,630.00,06/09/2023
Delivery Units,Adults and Health,Other Agencies - Third Party P,0090628207,Bliss Care and Training Ltd,351.00,06/09/2023
Delivery Units,Adults and Health,Other Agencies - Third Party P,0090628208,Bliss Care and Training Ltd,256.50,06/09/2023
Delivery Units,Adults and Health,Other Agencies - Third Party P,0090628211,Bliss Care and Training Ltd,81.00,06/09/2023
Delivery Units,Adults and Health,Other Agencies - Third Party P,0090628214,Bliss Care and Training Ltd,63.00,06/09/2023
Delivery Units,Adults and Health,Other Agencies - Third Party P,0090628222,Bliss Care and Training Ltd,157.50,06/09/2023
Delivery Units,Adults and Health,Other Agencies - Third Party P,0090628223,Bliss Care and Training Ltd,499.50,06/09/2023
Delivery Units,Adults and Health,Other Agencies - Third Party P,0090628224,Bliss Care and Training Ltd,283.50,06/09/2023
Delivery Units,Adults and Health,Other Agencies - Third Party P,0090628225,Bliss Care and Training Ltd,630.00,06/09/2023
Delivery Units,Adults and Health,Other Agencies - Third Party P,0090628227,Bliss Care and Training Ltd,162.00,06/09/2023
Delivery Units,Adults and Health,Other Agencies - Third Party P,0090628228,Bliss Care and Training Ltd,220.50,06/09/2023
Delivery Units,Adults and Health,Other Agencies - Third Party P,0090628229,Bliss Care and Training Ltd,369.00,06/09/2023
Delivery Units,Adults and Health,Other Agencies - Third Party P,0090628230,Bliss Care and Training Ltd,18.00,06/09/2023
Delivery Units,Adults and Health,Other Agencies - Third Party P,0090628232,Bliss Care and Training Ltd,117.00,06/09/2023
Delivery Units,Adults and Health,Other Agencies - Third Party P,0090628234,Bliss Care and Training Ltd,252.00,06/09/2023
Delivery Units,Adults and Health,Other Agencies - Third Party P,0090628235,Bliss Care and Training Ltd,94.50,06/09/2023
Delivery Units,Adults and Health,Other Agencies - Third Party P,0090628236,Bliss Care and Training Ltd,346.50,06/09/2023
Delivery Units,Adults and Health,Other Agencies - Third Party P,0090628238,Bliss Care and Training Ltd,126.00,06/09/2023
Delivery Units,Adults and Health,Other Agencies - Third Party P,0090628240,Bliss Care and Training Ltd,63.00,06/09/2023
Delivery Units,Adults and Health,Other Agencies - Third Party P,0090628241,Bliss Care and Training Ltd,247.50,06/09/2023
Delivery Units,Adults and Health,Other Agencies - Third Party P,0090628242,Bliss Care and Training Ltd,126.00,06/09/2023
Delivery Units,Adults and Health,Other Agencies - Third Party P,0090628243,Bliss Care and Training Ltd,63.00,06/09/2023
Delivery Units,Adults and Health,Other Agencies - Third Party P,0090628244,Bliss Care and Training Ltd,157.50,06/09/2023
Delivery Units,Adults and Health,Other Agencies - Third Party P,0090628245,Bliss Care and Training Ltd,153.00,06/09/2023
Delivery Units,Adults and Health,Other Agencies - Third Party P,0090628246,Bliss Care and Training Ltd,94.50,06/09/2023
Delivery Units,Adults and Health,Other Agencies - Third Party P,0090628247,Bliss Care and Training Ltd,139.50,06/09/2023
Delivery Units,Adults and Health,Other Agencies - Third Party P,0090628248,Bliss Care and Training Ltd,315.00,06/09/2023
Delivery Units,Adults and Health,Other Agencies - Third Party P,0090628249,Bliss Care and Training Ltd,283.50,06/09/2023
Delivery Units,Adults and Health,Other Agencies - Third Party P,0090628250,Bliss Care and Training Ltd,684.00,06/09/2023
Delivery Units,Adults and Health,Other Agencies - Third Party P,0090628252,Bliss Care and Training Ltd,220.50,06/09/2023
Delivery Units,Adults and Health,Other Agencies - Third Party P,0090628253,Bliss Care and Training Ltd,441.00,06/09/2023
Delivery Units,Adults and Health,Other Agencies - Third Party P,0090628254,Bliss Care and Training Ltd,283.50,06/09/2023
Delivery Units,Adults and Health,Other Agencies - Third Party P,0090628255,Bliss Care and Training Ltd,108.00,06/09/2023
Delivery Units,Adults and Health,Other Agencies - Third Party P,0090628258,Bliss Care and Training Ltd,630.00,06/09/2023
Delivery Units,Adults and Health,Other Agencies - Third Party P,0090628261,Bliss Care and Training Ltd,252.00,06/09/2023
Delivery Units,Adults and Health,Other Agencies - Third Party P,0090628262,Bliss Care and Training Ltd,157.50,06/09/2023
Delivery Units,Adults and Health,Other Agencies - Third Party P,0090628263,Bliss Care and Training Ltd,189.00,06/09/2023
Delivery Units,Adults and Health,Other Agencies - Third Party P,0090628264,Bliss Care and Training Ltd,346.50,06/09/2023
Delivery Units,Adults and Health,Other Agencies - Third Party P,0090628266,Bliss Care and Training Ltd,220.50,06/09/2023
Delivery Units,Adults and Health,Other Agencies - Third Party P,0090628267,Bliss Care and Training Ltd,315.00,06/09/2023
Delivery Units,Adults and Health,Other Agencies - Third Party P,0090628268,Bliss Care and Training Ltd,157.50,06/09/2023
Delivery Units,Adults and Health,Other Agencies - Third Party P,0090628269,Bliss Care and Training Ltd,882.00,06/09/2023
Delivery Units,Adults and Health,Other Agencies - Third Party P,0090628270,Bliss Care and Training Ltd,400.50,06/09/2023
Delivery Units,Adults and Health,Other Agencies - Third Party P,0090628271,Bliss Care and Training Ltd,724.50,06/09/2023
Delivery Units,Adults and Health,Other Agencies - Third Party P,0090628273,Bliss Care and Training Ltd,630.00,06/09/2023
Delivery Units,Adults and Health,Other Agencies - Third Party P,0090628274,Bliss Care and Training Ltd,67.50,06/09/2023
Delivery Units,Adults and Health,Other Agencies - Third Party P,0090628276,Bliss Care and Training Ltd,117.00,06/09/2023
Delivery Units,Adults and Health,Other Agencies - Third Party P,0090628277,Bliss Care and Training Ltd,162.00,06/09/2023
Delivery Units,Adults and Health,Other Agencies - Third Party P,0090628278,Bliss Care and Training Ltd,238.50,06/09/2023
Delivery Units,Adults and Health,Other Agencies - Third Party P,0090628280,Bliss Care and Training Ltd,283.50,06/09/2023
Delivery Units,Adults and Health,Other Agencies - Third Party P,0090628282,Bliss Care and Training Ltd,27.00,06/09/2023
Delivery Units,Adults and Health,Other Agencies - Third Party P,0090628285,Bliss Care and Training Ltd,85.50,06/09/2023
Delivery Units,Adults and Health,Other Agencies - Third Party P,0090628286,Bliss Care and Training Ltd,90.00,06/09/2023
Delivery Units,Adults and Health,Other Agencies - Third Party P,0090628292,Bliss Care and Training Ltd,378.00,06/09/2023
Delivery Units,Adults and Health,Other Agencies - Third Party P,0090628294,Bliss Care and Training Ltd,549.00,06/09/2023
Delivery Units,Adults and Health,Other Agencies - Third Party P,0090628302,Bliss Care and Training Ltd,630.00,06/09/2023
Delivery Units,Adults and Health,Other Agencies - Third Party P,0090628304,Bliss Care and Training Ltd,630.00,06/09/2023
Delivery Units,Adults and Health,Other Agencies - Third Party P,0090628305,Bliss Care and Training Ltd,351.00,06/09/2023
Delivery Units,Adults and Health,Other Agencies - Third Party P,0090628306,Bliss Care and Training Ltd,256.50,06/09/2023
Delivery Units,Adults and Health,Other Agencies - Third Party P,0090628307,Bliss Care and Training Ltd,36.00,06/09/2023
Delivery Units,Adults and Health,Other Agencies - Third Party P,0090628309,Bliss Care and Training Ltd,81.00,06/09/2023
Delivery Units,Adults and Health,Other Agencies - Third Party P,0090628312,Bliss Care and Training Ltd,63.00,06/09/2023
Delivery Units,Adults and Health,Other Agencies - Third Party P,0090628320,Bliss Care and Training Ltd,445.50,06/09/2023
Delivery Units,Adults and Health,Other Agencies - Third Party P,0090628321,Bliss Care and Training Ltd,112.50,06/09/2023
Delivery Units,Adults and Health,Other Agencies - Third Party P,0090628322,Bliss Care and Training Ltd,499.50,06/09/2023
Delivery Units,Adults and Health,Other Agencies - Third Party P,0090628323,Bliss Care and Training Ltd,283.50,06/09/2023
Delivery Units,Adults and Health,Other Agencies - Third Party P,0090628324,Bliss Care and Training Ltd,630.00,06/09/2023
Delivery Units,Adults and Health,Other Agencies - Third Party P,0090628326,Bliss Care and Training Ltd,162.00,06/09/2023
Delivery Units,Adults and Health,Other Agencies - Third Party P,0090628327,Bliss Care and Training Ltd,220.50,06/09/2023
Delivery Units,Adults and Health,Other Agencies - Third Party P,0090628328,Bliss Care and Training Ltd,369.00,06/09/2023
Delivery Units,Adults and Health,Other Agencies - Third Party P,0090628329,Bliss Care and Training Ltd,18.00,06/09/2023
Delivery Units,Adults and Health,Other Agencies - Third Party P,0090628331,Bliss Care and Training Ltd,333.00,06/09/2023
Delivery Units,Adults and Health,Other Agencies - Third Party P,0090628333,Bliss Care and Training Ltd,252.00,06/09/2023
Delivery Units,Adults and Health,Other Agencies - Third Party P,0090628334,Bliss Care and Training Ltd,94.50,06/09/2023
Delivery Units,Adults and Health,Other Agencies - Third Party P,0090628335,Bliss Care and Training Ltd,346.50,06/09/2023
Delivery Units,Adults and Health,Other Agencies - Third Party P,0090628337,Bliss Care and Training Ltd,126.00,06/09/2023
Delivery Units,Adults and Health,Other Agencies - Third Party P,0090628339,Bliss Care and Training Ltd,63.00,06/09/2023
Delivery Units,Adults and Health,Other Agencies - Third Party P,0090628340,Bliss Care and Training Ltd,247.50,06/09/2023
Delivery Units,Adults and Health,Other Agencies - Third Party P,0090628341,Bliss Care and Training Ltd,126.00,06/09/2023
Delivery Units,Adults and Health,Other Agencies - Third Party P,0090628342,Bliss Care and Training Ltd,63.00,06/09/2023
Delivery Units,Adults and Health,Other Agencies - Third Party P,0090628343,Bliss Care and Training Ltd,157.50,06/09/2023
Delivery Units,Adults and Health,Other Agencies - Third Party P,0090628344,Bliss Care and Training Ltd,153.00,06/09/2023
Delivery Units,Adults and Health,Other Agencies - Third Party P,0090628345,Bliss Care and Training Ltd,94.50,06/09/2023
Delivery Units,Adults and Health,Other Agencies - Third Party P,0090628346,Bliss Care and Training Ltd,139.50,06/09/2023
Delivery Units,Adults and Health,Other Agencies - Third Party P,0090628347,Bliss Care and Training Ltd,315.00,06/09/2023
Delivery Units,Adults and Health,Other Agencies - Third Party P,0090628348,Bliss Care and Training Ltd,283.50,06/09/2023
Delivery Units,Adults and Health,Other Agencies - Third Party P,0090628349,Bliss Care and Training Ltd,684.00,06/09/2023
Delivery Units,Adults and Health,Other Agencies - Third Party P,0090628351,Bliss Care and Training Ltd,220.50,06/09/2023
Delivery Units,Adults and Health,Other Agencies - Third Party P,0090628352,Bliss Care and Training Ltd,117.00,06/09/2023
Delivery Units,Adults and Health,Other Agencies - Third Party P,0090628353,Bliss Care and Training Ltd,441.00,06/09/2023
Delivery Units,Adults and Health,Other Agencies - Third Party P,0090628354,Bliss Care and Training Ltd,283.50,06/09/2023
Delivery Units,Adults and Health,Other Agencies - Third Party P,0090628355,Bliss Care and Training Ltd,378.00,06/09/2023
Delivery Units,Adults and Health,Other Agencies - Third Party P,0090628358,Bliss Care and Training Ltd,630.00,06/09/2023
Delivery Units,Adults and Health,Other Agencies - Third Party P,0090628361,Bliss Care and Training Ltd,252.00,06/09/2023
Delivery Units,Adults and Health,Other Agencies - Third Party P,0090628362,Bliss Care and Training Ltd,157.50,06/09/2023
Delivery Units,Adults and Health,Other Agencies - Third Party P,0090628363,Bliss Care and Training Ltd,189.00,06/09/2023
Delivery Units,Adults and Health,Other Agencies - Third Party P,0090628364,Bliss Care and Training Ltd,346.50,06/09/2023
Delivery Units,Adults and Health,Other Agencies - Third Party P,0090628366,Bliss Care and Training Ltd,220.50,06/09/2023
Delivery Units,Adults and Health,Other Agencies - Third Party P,0090628367,Bliss Care and Training Ltd,"2,376.00",06/09/2023
Delivery Units,Adults and Health,Other Agencies - Third Party P,0090628368,Bliss Care and Training Ltd,315.00,06/09/2023
Delivery Units,Adults and Health,Other Agencies - Third Party P,0090628369,Bliss Care and Training Ltd,157.50,06/09/2023
Delivery Units,Adults and Health,Other Agencies - Third Party P,0090628370,Bliss Care and Training Ltd,882.00,06/09/2023
Delivery Units,Adults and Health,Other Agencies - Third Party P,0090628371,Bliss Care and Training Ltd,400.50,06/09/2023
Delivery Units,Adults and Health,Other Agencies - Third Party P,0090628373,Bliss Care and Training Ltd,630.00,06/09/2023
Delivery Units,Adults and Health,Other Agencies - Third Party P,0090628374,Bliss Care and Training Ltd,67.50,06/09/2023
Delivery Units,Adults and Health,Other Agencies - Third Party P,0090628376,Bliss Care and Training Ltd,90.00,06/09/2023
Delivery Units,Adults and Health,Other Agencies - Third Party P,0090628377,Bliss Care and Training Ltd,162.00,06/09/2023
Delivery Units,Adults and Health,Other Agencies - Third Party P,0090628378,Bliss Care and Training Ltd,238.50,06/09/2023
Delivery Units,Adults and Health,Other Agencies - Third Party P,0090628379,Bliss Care and Training Ltd,283.50,06/09/2023
Delivery Units,Adults and Health,Other Agencies - Third Party P,0090628381,Bliss Care and Training Ltd,27.00,06/09/2023
Delivery Units,Adults and Health,Other Agencies - Third Party P,0090628383,Bliss Care and Training Ltd,40.50,06/09/2023
Delivery Units,Adults and Health,Other Agencies - Third Party P,0090628384,Bliss Care and Training Ltd,90.00,06/09/2023
Delivery Units,Adults and Health,Other Agencies - Third Party P,0090628388,Bliss Care and Training Ltd,378.00,06/09/2023
Delivery Units,Adults and Health,Other Agencies - Third Party P,0090628394,Bliss Care and Training Ltd,126.00,06/09/2023
Delivery Units,Adults and Health,Other Agencies - Third Party P,0090628397,Bliss Care and Training Ltd,630.00,06/09/2023
Delivery Units,Adults and Health,Other Agencies - Third Party P,0090628399,Bliss Care and Training Ltd,630.00,06/09/2023
Delivery Units,Adults and Health,Other Agencies - Third Party P,0090628400,Bliss Care and Training Ltd,351.00,06/09/2023
Delivery Units,Adults and Health,Other Agencies - Third Party P,0090628401,Bliss Care and Training Ltd,256.50,06/09/2023
Delivery Units,Adults and Health,Other Agencies - Third Party P,0090628402,Bliss Care and Training Ltd,36.00,06/09/2023
Delivery Units,Adults and Health,Other Agencies - Third Party P,0090628405,Bliss Care and Training Ltd,81.00,06/09/2023
Delivery Units,Adults and Health,Other Agencies - Third Party P,0090628408,Bliss Care and Training Ltd,63.00,06/09/2023
Delivery Units,Adults and Health,Other Agencies - Third Party P,0090628416,Bliss Care and Training Ltd,769.50,06/09/2023
Delivery Units,Adults and Health,Other Agencies - Third Party P,0090628417,Bliss Care and Training Ltd,499.50,06/09/2023
Delivery Units,Adults and Health,Other Agencies - Third Party P,0090628418,Bliss Care and Training Ltd,283.50,06/09/2023
Delivery Units,Adults and Health,Other Agencies - Third Party P,0090628419,Bliss Care and Training Ltd,630.00,06/09/2023
Delivery Units,Adults and Health,Other Agencies - Third Party P,0090628421,Bliss Care and Training Ltd,162.00,06/09/2023
Delivery Units,Adults and Health,Other Agencies - Third Party P,0090628422,Bliss Care and Training Ltd,220.50,06/09/2023
Delivery Units,Adults and Health,Other Agencies - Third Party P,0090628423,Bliss Care and Training Ltd,369.00,06/09/2023
Delivery Units,Adults and Health,Other Agencies - Third Party P,0090628424,Bliss Care and Training Ltd,18.00,06/09/2023
Delivery Units,Adults and Health,Other Agencies - Third Party P,0090628426,Bliss Care and Training Ltd,333.00,06/09/2023
Delivery Units,Adults and Health,Other Agencies - Third Party P,0090628428,Bliss Care and Training Ltd,252.00,06/09/2023
Delivery Units,Adults and Health,Other Agencies - Third Party P,0090628429,Bliss Care and Training Ltd,94.50,06/09/2023
Delivery Units,Adults and Health,Other Agencies - Third Party P,0090628430,Bliss Care and Training Ltd,346.50,06/09/2023
Delivery Units,Adults and Health,Other Agencies - Third Party P,0090628432,Bliss Care and Training Ltd,126.00,06/09/2023
Delivery Units,Adults and Health,Other Agencies - Third Party P,0090628434,Bliss Care and Training Ltd,63.00,06/09/2023
Delivery Units,Adults and Health,Other Agencies - Third Party P,0090628435,Bliss Care and Training Ltd,247.50,06/09/2023
Delivery Units,Adults and Health,Other Agencies - Third Party P,0090628436,Bliss Care and Training Ltd,126.00,06/09/2023
Delivery Units,Adults and Health,Other Agencies - Third Party P,0090628437,Bliss Care and Training Ltd,63.00,06/09/2023
Delivery Units,Adults and Health,Other Agencies - Third Party P,0090628438,Bliss Care and Training Ltd,157.50,06/09/2023
Delivery Units,Adults and Health,Other Agencies - Third Party P,0090628439,Bliss Care and Training Ltd,153.00,06/09/2023
Delivery Units,Adults and Health,Other Agencies - Third Party P,0090628440,Bliss Care and Training Ltd,94.50,06/09/2023
Delivery Units,Adults and Health,Other Agencies - Third Party P,0090628441,Bliss Care and Training Ltd,139.50,06/09/2023
Delivery Units,Adults and Health,Other Agencies - Third Party P,0090628442,Bliss Care and Training Ltd,315.00,06/09/2023
Delivery Units,Adults and Health,Other Agencies - Third Party P,0090628443,Bliss Care and Training Ltd,283.50,06/09/2023
Delivery Units,Adults and Health,Other Agencies - Third Party P,0090628444,Bliss Care and Training Ltd,684.00,06/09/2023
Delivery Units,Adults and Health,Other Agencies - Third Party P,0090628446,Bliss Care and Training Ltd,220.50,06/09/2023
Delivery Units,Adults and Health,Other Agencies - Third Party P,0090628447,Bliss Care and Training Ltd,81.00,06/09/2023
Delivery Units,Adults and Health,Other Agencies - Third Party P,0090628448,Bliss Care and Training Ltd,441.00,06/09/2023
Delivery Units,Adults and Health,Other Agencies - Third Party P,0090628449,Bliss Care and Training Ltd,283.50,06/09/2023
Delivery Units,Adults and Health,Other Agencies - Third Party P,0090628450,Bliss Care and Training Ltd,378.00,06/09/2023
Delivery Units,Adults and Health,Other Agencies - Third Party P,0090628453,Bliss Care and Training Ltd,630.00,06/09/2023
Delivery Units,Adults and Health,Other Agencies - Third Party P,0090628456,Bliss Care and Training Ltd,252.00,06/09/2023
Delivery Units,Adults and Health,Other Agencies - Third Party P,0090628457,Bliss Care and Training Ltd,157.50,06/09/2023
Delivery Units,Adults and Health,Other Agencies - Third Party P,0090628458,Bliss Care and Training Ltd,189.00,06/09/2023
Delivery Units,Adults and Health,Other Agencies - Third Party P,0090628459,Bliss Care and Training Ltd,346.50,06/09/2023
Delivery Units,Adults and Health,Other Agencies - Third Party P,0090628461,Bliss Care and Training Ltd,220.50,06/09/2023
Delivery Units,Adults and Health,Other Agencies - Third Party P,0090628462,Bliss Care and Training Ltd,"2,817.00",06/09/2023
Delivery Units,Adults and Health,Other Agencies - Third Party P,0090628463,Bliss Care and Training Ltd,315.00,06/09/2023
Delivery Units,Adults and Health,Other Agencies - Third Party P,0090628464,Bliss Care and Training Ltd,157.50,06/09/2023
Delivery Units,Adults and Health,Other Agencies - Third Party P,0090628465,Bliss Care and Training Ltd,882.00,06/09/2023
Delivery Units,Adults and Health,Other Agencies - Third Party P,0090628466,Bliss Care and Training Ltd,400.50,06/09/2023
Delivery Units,Adults and Health,Other Agencies - Third Party P,0090628467,Bliss Care and Training Ltd,724.50,06/09/2023
Delivery Units,Adults and Health,Other Agencies - Third Party P,0090628469,Bliss Care and Training Ltd,522.00,06/09/2023
Delivery Units,Adults and Health,Other Agencies - Third Party P,0090628470,Bliss Care and Training Ltd,67.50,06/09/2023
Delivery Units,Adults and Health,Other Agencies - Third Party P,0090628472,Bliss Care and Training Ltd,90.00,06/09/2023
Delivery Units,Adults and Health,Other Agencies - Third Party P,0090628473,Bliss Care and Training Ltd,162.00,06/09/2023
Delivery Units,Adults and Health,Other Agencies - Third Party P,0090628474,Bliss Care and Training Ltd,238.50,06/09/2023
Delivery Units,Adults and Health,Other Agencies - Third Party P,0090628475,Bliss Care and Training Ltd,283.50,06/09/2023
Delivery Units,Adults and Health,Other Agencies - Third Party P,0090628477,Bliss Care and Training Ltd,27.00,06/09/2023
Delivery Units,Adults and Health,Other Agencies - Third Party P,0090628479,Bliss Care and Training Ltd,90.00,06/09/2023
Delivery Units,Adults and Health,Other Agencies - Third Party P,0090628483,Bliss Care and Training Ltd,378.00,06/09/2023
Delivery Units,Adults and Health,Other Agencies - Third Party P,0090628485,Bliss Care and Training Ltd,36.00,06/09/2023
Delivery Units,Adults and Health,Other Agencies - Third Party P,0090628487,Bliss Care and Training Ltd,126.00,06/09/2023
Delivery Units,Adults and Health,Other Agencies - Third Party P,0090628488,Bliss Care and Training Ltd,108.00,06/09/2023
Delivery Units,Adults and Health,Other Agencies - Third Party P,0090628489,Bliss Care and Training Ltd,630.00,06/09/2023
Delivery Units,Adults and Health,Other Agencies - Third Party P,0090629737,ACE Homecare Services Ltd,"1,362.66",12/09/2023
Delivery Units,Adults and Health,Other Agencies - Third Party P,0090629738,ACE Homecare Services Ltd,"1,362.66",12/09/2023
Delivery Units,Adults and Health,Other Agencies - Third Party P,0090629740,ACE Homecare Services Ltd,104.84,12/09/2023
Delivery Units,Adults and Health,Other Agencies - Third Party P,0090629741,ACE Homecare Services Ltd,104.84,12/09/2023
Delivery Units,Adults and Health,Other Agencies - Third Party P,0090629742,ACE Homecare Services Ltd,"11,739.84",12/09/2023
Delivery Units,Adults and Health,Other Agencies - Third Party P,0090629743,ACE Homecare Services Ltd,611.44,12/09/2023
Delivery Units,Adults and Health,Other Agencies - Third Party P,0090629744,ACE Homecare Services Ltd,611.44,12/09/2023
Delivery Units,Adults and Health,Other Agencies - Third Party P,0090629745,Renaissance Personnel Ltd,487.42,12/09/2023
Delivery Units,Adults and Health,Other Agencies - Third Party P,0090629958,Bestchoice Global Ltd,138.25,13/09/2023
Delivery Units,Adults and Health,Other Agencies - Third Party P,0090629959,Bestchoice Global Ltd,103.69,13/09/2023
Delivery Units,Adults and Health,Other Agencies - Third Party P,0090629960,Bestchoice Global Ltd,345.63,13/09/2023
Delivery Units,Adults and Health,Other Agencies - Third Party P,0090629961,Bestchoice Global Ltd,553.00,13/09/2023
Delivery Units,Adults and Health,Other Agencies - Third Party P,0090629962,Bestchoice Global Ltd,790.00,13/09/2023
Delivery Units,Adults and Health,Other Agencies - Third Party P,0090629964,Bestchoice Global Ltd,74.06,13/09/2023
Delivery Units,Adults and Health,Other Agencies - Third Party P,0090629965,Bestchoice Global Ltd,553.00,13/09/2023
Delivery Units,Adults and Health,Other Agencies - Third Party P,0090629966,Bestchoice Global Ltd,103.69,13/09/2023
Delivery Units,Adults and Health,Other Agencies - Third Party P,0090629967,Bestchoice Global Ltd,172.81,13/09/2023
Delivery Units,Adults and Health,Other Agencies - Third Party P,0090629968,Bestchoice Global Ltd,172.81,13/09/2023
Delivery Units,Adults and Health,Other Agencies - Third Party P,0090629969,Bestchoice Global Ltd,404.88,13/09/2023
Delivery Units,Adults and Health,Other Agencies - Third Party P,0090629970,Bestchoice Global Ltd,311.06,13/09/2023
Delivery Units,Adults and Health,Other Agencies - Third Party P,0090629971,Bestchoice Global Ltd,138.25,13/09/2023
Delivery Units,Adults and Health,Other Agencies - Third Party P,0090629972,Bestchoice Global Ltd,104.68,13/09/2023
Delivery Units,Adults and Health,Other Agencies - Third Party P,0090629973,Bestchoice Global Ltd,345.63,13/09/2023
Delivery Units,Adults and Health,Other Agencies - Third Party P,0090629974,Bestchoice Global Ltd,790.00,13/09/2023
Delivery Units,Adults and Health,Other Agencies - Third Party P,0090629976,Bestchoice Global Ltd,74.06,13/09/2023
Delivery Units,Adults and Health,Other Agencies - Third Party P,0090629977,Bestchoice Global Ltd,276.50,13/09/2023
Delivery Units,Adults and Health,Other Agencies - Third Party P,0090629978,Bestchoice Global Ltd,553.00,13/09/2023
Delivery Units,Adults and Health,Other Agencies - Third Party P,0090629979,Bestchoice Global Ltd,103.69,13/09/2023
Delivery Units,Adults and Health,Other Agencies - Third Party P,0090629980,Bestchoice Global Ltd,172.81,13/09/2023
Delivery Units,Adults and Health,Other Agencies - Third Party P,0090629981,Bestchoice Global Ltd,169.40,13/09/2023
Delivery Units,Adults and Health,Other Agencies - Third Party P,0090629982,Bestchoice Global Ltd,404.88,13/09/2023
Delivery Units,Adults and Health,Other Agencies - Third Party P,0090629983,Bestchoice Global Ltd,304.92,13/09/2023
Delivery Units,Adults and Health,Other Agencies - Third Party P,0090629984,Bestchoice Global Ltd,138.25,13/09/2023
Delivery Units,Adults and Health,Other Agencies - Third Party P,0090629985,Bestchoice Global Ltd,103.69,13/09/2023
Delivery Units,Adults and Health,Other Agencies - Third Party P,0090629986,Bestchoice Global Ltd,345.63,13/09/2023
Delivery Units,Adults and Health,Other Agencies - Third Party P,0090629987,Bestchoice Global Ltd,790.00,13/09/2023
Delivery Units,Adults and Health,Other Agencies - Third Party P,0090629989,Bestchoice Global Ltd,74.06,13/09/2023
Delivery Units,Adults and Health,Other Agencies - Third Party P,0090629990,Bestchoice Global Ltd,276.50,13/09/2023
Delivery Units,Adults and Health,Other Agencies - Third Party P,0090629991,Bestchoice Global Ltd,553.00,13/09/2023
Delivery Units,Adults and Health,Other Agencies - Third Party P,0090629992,Bestchoice Global Ltd,103.69,13/09/2023
Delivery Units,Adults and Health,Other Agencies - Third Party P,0090629993,Bestchoice Global Ltd,172.81,13/09/2023
Delivery Units,Adults and Health,Other Agencies - Third Party P,0090629994,Bestchoice Global Ltd,172.81,13/09/2023
Delivery Units,Adults and Health,Other Agencies - Third Party P,0090629995,Bestchoice Global Ltd,409.81,13/09/2023
Delivery Units,Adults and Health,Other Agencies - Third Party P,0090629996,Bestchoice Global Ltd,380.19,13/09/2023
Delivery Units,Adults and Health,Other Agencies - Third Party P,0090629997,Bestchoice Global Ltd,103.69,13/09/2023
Delivery Units,Adults and Health,Other Agencies - Third Party P,0090629998,Bestchoice Global Ltd,345.63,13/09/2023
Delivery Units,Adults and Health,Other Agencies - Third Party P,0090629999,Bestchoice Global Ltd,345.63,13/09/2023
Delivery Units,Adults and Health,Other Agencies - Third Party P,0090630001,Bestchoice Global Ltd,74.06,13/09/2023
Delivery Units,Adults and Health,Other Agencies - Third Party P,0090630002,Bestchoice Global Ltd,276.50,13/09/2023
Delivery Units,Adults and Health,Other Agencies - Third Party P,0090630003,Bestchoice Global Ltd,553.00,13/09/2023
Delivery Units,Adults and Health,Other Agencies - Third Party P,0090630004,Bestchoice Global Ltd,103.69,13/09/2023
Delivery Units,Adults and Health,Other Agencies - Third Party P,0090630005,Bestchoice Global Ltd,172.81,13/09/2023
Delivery Units,Adults and Health,Other Agencies - Third Party P,0090630006,Bestchoice Global Ltd,172.81,13/09/2023
Delivery Units,Adults and Health,Other Agencies - Third Party P,0090630007,Bestchoice Global Ltd,404.88,13/09/2023
